Workbook

Sheet Who does what (hidden)
A1: Sheet Name | B1: Anlu | C1: Carika | D1: Dta Source
A2: At a glance
A3: Labour Market Trends 01&23 | D3: QLFS
A4: Labour Market Trends 22-23 | D4: QLFS
A5: Empl.unempl.&discouraged | D5: QLFS
A6: Employment & econ indicators | D6: SARB
A7: compensation of employees | D7: SARB
A8: Dependency on employed | D8: StatsSA dta, CRA calc
A9: Participation rate by race | D9: QLFS
A10: Labour mark part.rate by race | D10: StatsSA email
A11: Labour force absorption rate | D11: QLFS
A12: Intern. Labour participation.rat SC | D12: ILO
A13: Intern. Labour participation.rat EM | D13: ILO
A14: EAP by race 2001-23 | D14: QLFS
A15: EAP by race&sex 2023 | D15: StatsSA email
A16: EAP race&age 2001-23 | D16: StatsSA email
A17: EAP by race &age % 01-23 | D17: StatsSA email
A18: EAP race&age 01-23% | D18: Graph
A19: Employment by race 94-23 | D19: QLFS
A20: Employmentbyrace.age% 2001-23 | D20: StatsSA dta, CRA calc | E20: *need to check on QES data
A21: Formal empl. by industry 90-23 | D21: QES
A22: Employment by industry % 90-22 | D22: QES
A23: 2PCs Employm. by industry 90&23
A24: BC Change in employment 2008-23
A25: Employm. by sec&industry 01-23 | D25: StatsSA, P0210
A26: Change in employmeny by sector | D26: QLFS
A27: All employment 2008 and 2023 | D27: QLFS
A28: All empl. by ind.race.sex | D28: StatsSA email
A29: All empl. by ind. race, sex, % | D29: StatsSA email
A30: Employment by industry QLFSvsQES | D30: QLFS &QES
A31: Employment by occupation 01-23 | D31: QLFS
A32: BG Change in employm.01-23
A33: Employ.by. occup, race, sex.01 | D33: StatsSA email
A34: Employ. by occup,race,sex 2023 | D34: StatsSA email
A35: Employment by occup,race % | D35: StatsSA dta, CRA calc
A36: Change in employment 2001vs2023 | D36: StatsSA dta, CRA calc
A37: Informal sector employm. 08-23 | D37: QLFS
A38: BC Change informal sector empl
A39: Agriculture, private h.h 01-23 | D39: QLFS
A40: Government sector employ. 91-23 | D40: QES
A41: Employment by age group 2009-23 | D41: QLFS
A42: Employed by level of ed.9.23 | D42: QLFS
A43: Employm. by contract9.23 | D43: QLFS
A44: EE by occupational level 01-22 | D44: EE Report
A45: EE top management by industry | D45: EE Report
A46: Employment in management | D46: EE Report
A47: All government. | D47: EE Report
A48: Provincial government | D48: EE Report
A49: Local government | D49: EE Report
A50: State owned enterprises | D50: EE Report
A51: Private sector | D51: EE Report
A52: Non profit organisations | D52: EE Report
A53: All employers | D53: EE Report
A54: EE employed with disabilities | D54: EE Report
A55: Unemployment trends 94-23 | D55: QLFS
A56: Unempl.official definition94-23 | D56: QLFS
A57: Unemploy.expand definit.94-23 | D57: QLFS
A58: Unem rate.official defin.94-23 | D58: QLFS
A59: Unem rate.expand defin.94-23 | D59: QLFS
A60: International comparisons | D60: Trading Economics
A61: Unemployed by industry | D61: QLFS
A62: Unemployed by occupation | D62: QLFS
A63: Categories of unemployed | D63: QLFS
A64: Unemployed by age group | D64: QLFS
A65: Unempl. age, race, sex offi | D65: StatsSA email
A66: Unempl. age, race,sex expand | D66: StatsSA email
A67: Unemployment by education | D67: QLFS
A68: Unemployment by duration | D68: QLFS
A69: Reasons for empl. terminiation | D69: DOL, Job Opportunities and Unemployment Report
A70: Not economically active | D70: QLFS
A71: Inactivity rate by agre group | D71: QLFS
A72: Discouraged workseekers
A73: Discouraged workseekers by | D73: StatsSA email
A74: Underutilisation of labour | D74: QLFS
A75: Timerelated underempl by occup. | D75: QLFS
A76: Timerelated underempl. by indus | D76: QLFS
A77: EAP by province | D77: QLFS
A78: Provincial labour market trends | D78: QLFS
A79: Unemploym. numbers by province | D79: QLFS
A80: Unemployment rate by province | D80: QLFS
A81: Labour status metro&non-metro | D81: QLFS
A82: TOTAL: | B82: 40 | C82: 40

Sheet At a glance
B2: EMPLOYMENT
B4: Anlu Keeve
B5: Carika Middelberg
B7: At a glancea
B8: Workers employed in the formal sector (excluding agriculture) as a proportion of total employed | C8: 0.689
B9: Workers employed in the informal sector (excluding agriculture) as a proportion of total employed | C9: 0.188
B10: Workers employed in agriculture (formal and informal) as a proportion of total employed | C10: 0.054
B11: Workers employed in private households as a proportion of total employed | C11: 0.07
B12: Change in formal (non-agricultural) employment (2023-24) | C12: up 1.2%
B13: Change in informal (non-agricultural) employment (2023-24) | C13: up 3.3%
B14: Change in employment in agriculture (formal and informal) (2023-24) | C14: up 0.2%
B15: Change in employment in private households (2023-24) | C15: up 6.1%
B16: Change in total employment (1994-2024) | C16: up 108.9%
B17: Change in number of government sector employees (1990-2024) | C17: up 75.7%
B18: Labour market participation rate (Stats SA) | C18: 0.606
B19: Labour force participation rate (ILO) | C19: 0.581
B20: Labour absorption rate | C20: 0.408
B21: Change in economically active population (2023-24) | C21: up 3.2%
B22: Change in not economically active population (2023-24) | C22: down 1.3%
B23: Change in number of discouraged workseekers (2001-24) | C23: up 85.2%
B24: Change in labour market absorption rate (2001-24) | C24: down 10.9%
B25: Change in total number of unemployed (2001-24) | C25: up 87.4%
B26: Unemployment rate | C26: 0.335
B27: Unemployment rate (expanded definition) | C27: 0.426
B28: Youth unemployment rate (15-24) | C28: 0.607
B29: Unemployed Black people as a proportion of total unemployed | C29: 0.908
B30: Unemployed aged 15-34 as a proportion of total unemployed | C30: 0.678
B31: Short-term unemployment (less than 1 year) as proportion of total unemployed | C31: 0.227
B32: Long-term unemployment (1 year and more) as proportion of total unemployed | C32: 0.774
B33: a All figures are for the second quarter of 2023, unless otherwise stated. All unemployment figures are according to the official definition, unless otherwise stated.

Sheet OVERALL EMPLOYMENT PICTURE

Sheet Labour market trends 01&24
A2: THE OVERALL EMPLOYMENT PICTURE
A4: Labour market trends
A6: Labour market trends 2001 and 2024
D8: —Change—
B9: 2001 | C9: 2024 | D9: Number | E9: Proportion
A10: Total population | B10: 44819778 | C10: 63 015 904a | D10: 17207725 | E10: 0.384
A11: Total aged 15- 64 | B11: 27265000 | C11: 41556419 | D11: =C11-B11 -> 14291419 | E11: =(C11-B11)/B11 -> 0.5241672107
A12: Total economically active | B12: 16575000 | C12: 25036158 | D12: =C12-B12 -> 8461158 | E12: =(C12-B12)/B12 -> 0.5104771041
A13: Proportion aged 15-64 economically active | B13: 0.608 | C13: =C12/C11 -> 0.6024618724 | D13: — | E13: -0.009108762539
A14: Total not economically activeb | B14: 10690000 | C14: 16260000 | D14: =C14-B14 -> 5570000 | E14: 0.5210477081
A15: — discouraged workseekersc | B15: 1725000 | C15: 3195000 | D15: =C15-B15 -> 1470000 | E15: 0.852173913
A16: — other not economically actived | B16: 8965000 | C16: 13065000 | D16: =C16-B16 -> 4100000 | E16: 0.457334077
A17: Proportion aged 15-64 not economically active | B17: =B14/B11 -> 0.3920777554 | C17: =C14/C11 -> 0.3912752925 | D17: — | E17: =(C17-B17)/B17 -> -0.002046693138
A18: Total employed | B18: 12494000 | C18: 16652000 | D18: =(C18-12494000) -> 4158000 | E18: 0.3327997439
A19: — formal sector (not agriculture) | B19: 6984000 | C19: 11467000 | D19: =C19-B19 -> 4483000 | E19: 0.6418957617
A20: — informal sector (not agriculture) | B20: 3353000 | C20: 3129000 | D20: -224000 | E20: -0.06680584551
A21: — agriculture (formal and informal) | B21: 968000 | C21: 896000 | D21: -72000 | E21: -0.07438016529
A22: — private households | B22: 1188000 | C22: 11160000 | D22: 9972000 | E22: 8.393939394
A23: Total unemployed | B23: 4081000 | C23: 8384000 | D23: 4303000 | E23: 1.054398432
A24: Total unemployed (expanded) | B24: 6609000 | C24: 11579000 | D24: 4970000 | E24: 0.7520048419
A25: Proportion aged 15-64 unemployed | B25: 0.15 | C25: =C23/C11 -> 0.2017498187 | D25: — | E25: 0.3449987915
A26: Proportion aged 15- 64 unemployed (expanded) | B26: =B24/B11 -> 0.2423986796 | C26: =C24/C11 -> 0.278633248 | D26: — | E26: 0.1494833569
A27: Unemployment rate (official) | B27: 0.246 | C27: 0.335 | D27: — | E27: 0.3617886179
A28: Unemployment rate (expanded) | B28: 0.317 | C28: 0.426 | D28: — | E28: 0.3438485804
A29: Labour market participation ratee | B29: 0.608 | C29: 0.606 | D29: — | E29: -0.003289473684
A30: Labour absorption ratef | B30: 0.458 | C30: 0.403 | D30: — | E30: =(C30-B30)/B30 -> -0.1200873362
A31: Source: Statistics South Africa (Stats SA), Labour Force Survey Historical revision March series 2001 to 2021, Statistical release P0210, p8, 16; Quarterly Labour Force Survey (QLFS) 2008-2024Q2, accessed 18 August 2024; Economically active population QLFS Q2 2024, accessed 18 August 2024; Mid-year population estimates 2024, Statistical release P0302, p14, accessed 18 August 2024
A32: a 2024 Mid-year population estimates data.
A33: b People aged 15 to 64 who were neither employed nor unemployed during the reference week of the Quarterly Labour Force Survey. This category includes students, homemakers, people with a disability, those too old/young to work, discouraged, and other.
A34: c People who were not employed during the reference week of the survey, wanted to work/start a business but did not take active steps to find work during the last four weeks prior to being interviewed by Stats SA, provided that the main reason given for not seeking work was any of the following: no jobs available in the area, unable to find work requiring his/her skills, lost hope of finding any kind of work.
A35: d This category includes students, homemakers, people with disability, those too old/young to work and other.
A36: e Measures the proportion of the working-age population that is economically active, since it distinguishes between economic activity (the employed plus the unemployed) and non-activity (including full-time students, homemakers, and pensioners).
A37: f Measures the proportion of the working-age population that is employed — in other words, all those who do any work for pay, profit or family gain.

Sheet Labour market trends 23-24
A2: Labour market trends, 2023 and 2024
D4: —Change—
B5: 2023 | C5: 2024 | D5: Number | E5: Proportion
A6: Total population | B6: 62 027 503a | C6: 63 015 904a | D6: 988401 | E6: 0.016
A7: Total aged 15-64 | B7: 41673701 | C7: 41556419 | D7: =C7-B7 -> -117282 | E7: =(C7-B7)/B7 -> -0.00281429288
A8: Total economically active | B8: 24594000 | C8: 25036158 | D8: =C8-B8 -> 442158 | E8: =(C8-B8)/B8 -> 0.01797828739
A9: Proportion aged 15-64 economically active | B9: =B8/B7 -> 0.5901563674 | C9: =C8/C7 -> 0.6024618724 | D9: — | E9: =(C9-B9)/B9 -> 0.02085126182
A10: Total not economically activeb | B10: 16292000 | C10: 16260000 | D10: =C10-B10 -> -32000 | E10: =(C10-B10)/B10 -> -0.001964154186
A11: – discouraged workseekersc | B11: 3182000 | C11: 3195000 | D11: =C11-B11 -> 13000 | E11: 0.00408548083
A12: – otherd | B12: 13296000 | C12: 13065000 | D12: -231000 | E12: -0.01737364621
A13: Proportion aged 15- 64 not economically active | B13: =B10/B7 -> 0.3909419996 | C13: =C10/C7 -> 0.3912752925 | D13: — | E13: =(C13-B13)/B13 -> 0.0008525379853
A14: Total employed | B14: 16346000 | C14: 16652000 | D14: =C14-B14 -> 306000 | E14: =(C14-B14)/B14 -> 0.01872017619
A15: – formal sector (not agriculture) | B15: 11329000 | C15: 11467000 | D15: =C15-B15 -> 138000 | E15: 0.01218112808
A16: – informal sector (not agriculture) | B16: 3029000 | C16: 3129000 | D16: 100000 | E16: 0.0330141961
A17: – agriculture (formal and informal) | B17: 894000 | C17: 896000 | D17: 2000 | E17: 0.002237136465
A18: – private households | B18: 1093000 | C18: 1160000 | D18: 67000 | E18: 0.06129917658
A19: Total unemployed | B19: 7921000 | C19: 8384000 | D19: 463000 | E19: 0.05845221563
A20: Total unemployed (expanded) | B20: 11872000 | C20: 11579000 | D20: -293000 | E20: -0.02467991914
A21: Proportion aged 15- 64 unemployed | B21: =B19/B7 -> 0.1900719113 | C21: =C19/C7 -> 0.2017498187 | D21: — | E21: 0.06143941702
A22: Proportion aged 15- 64 unemployed (expanded) | B22: =B20/B7 -> 0.2848799054 | C22: =C20/C7 -> 0.278633248 | D22: — | E22: -0.0219273362
A23: Unemployment rate (official) | B23: 0.326 | C23: 0.335 | D23: — | E23: 0.02760736196
A24: Unemployment rate (expanded) | B24: 0.421 | C24: 0.426 | D24: — | E24: 0.01187648456
A25: Labour market participation ratee | B25: 0.596 | C25: 0.606 | D25: — | E25: 0.01677852349
A26: Labour absorption ratef | B26: 0.401 | C26: 0.403 | D26: — | E26: 0.004987531172
A27: Source: Stats SA, QLFS Trends 2008-2024Q2, accessed 18 August 2024; Economically active population QLFS Q2 2024, accessed 18 August 2024
A28: a Mid-year population estimates 2024 data.
A29: b People aged 15 to 64 who are neither employed nor unemployed during the reference week of the Quarterly Labour Force Survey. This category includes students, homemakers, people with a disability, those too old/young to work, discouraged and other.
A30: c People who were not employed during the reference week of the survey, wanted to work/start a business but did not take active steps to find work during the last four weeks prior to being interviewed by Stats SA, provided that the main reason given for not seeking work was any of the following: no jobs available in the area, unable to find work requiring his/her skills, lost hope of finding any kind of work.
A31: d This category includes students, homemakers, people with disability, those too old/young to work and other.
A32: e Measures the proportion of the working-age population that is economically active, since it distinguishes between economic activity (the employed plus the unemployed) and non-activity (including full-time students, homemakers, and pensioners).
A33: f Measures the proportion of the working-age population that is employed — in other words, all those who do any work for pay, profit or family gain.

Sheet Empl.unempl.&discouraged
A2: The employed, unemployed and discouraged workseekers, 1994-2024
B4: —Employed— | D4: —Unemployed— | F4: —Discouraged workseekersa—
A5: Yearb | B5: Number | C5: Year-on- year change | D5: Number | E5: Year-on- year change | F5: Number | G5: Year-on- year change | H5: Real GDP growth
A6: 1994 | B6: 7971000 | C6: – | D6: 1988000 | E6: – | F6: 1684000 | G6: – | H6: 0.032
A7: 1995 | B7: 8069000 | C7: 0.012 | D7: 1644000 | E7: -0.173 | F7: 1677000 | G7: -0.004 | H7: 0.031
A8: 1996 | B8: 7590000 | C8: -0.059 | D8: 2019000 | E8: 0.228 | F8: 2178000 | G8: 0.299 | H8: 0.043
A9: 1997 | B9: 7548000 | C9: -0.006 | D9: 2238000 | E9: 0.108 | F9: 2313000 | G9: 0.062 | H9: 0.026
A10: 1998 | B10: 9390000 | C10: 0.244 | D10: 3163000 | E10: 0.413 | F10: 2471000 | G10: 0.068 | H10: 0.005
A11: 1999 | B11: 10369000 | C11: 0.104 | D11: 3158000 | E11: -0.002 | F11: 2724000 | G11: 0.102 | H11: 0.024
A12: 2000 | B12: 11880000 | C12: 0.146 | D12: 4333000 | E12: 0.372 | F12: 2220000 | G12: -0.185 | H12: 0.042
A13: 2001 | B13: 12494000 | C13: 0.052 | D13: 4081000 | E13: -0.058 | F13: 1725000 | G13: —c | H13: 0.027
A14: 2002 | B14: 11995000 | C14: -0.04 | D14: 4603000 | E14: 0.128 | F14: 1958000 | G14: 0.135 | H14: 0.037
A15: 2003 | B15: 11666000 | C15: -0.027 | D15: 4843000 | E15: 0.052 | F15: 2067000 | G15: 0.056 | H15: 0.029
A16: 2004 | B16: 11823000 | C16: 0.013 | D16: 4231000 | E16: -0.126 | F16: 2285000 | G16: 0.105 | H16: 0.046
A17: 2005 | B17: 12503000 | C17: 0.058 | D17: 3993000 | E17: -0.056 | F17: 2324000 | G17: 0.017 | H17: 0.053
A18: 2006 | B18: 13237000 | C18: 0.059 | D18: 3984000 | E18: -0.002 | F18: 2445000 | G18: 0.052 | H18: 0.056
A19: 2007 | B19: 13236000 | C19: 0 | D19: 4119000 | E19: 0.034 | F19: 2511000 | G19: 0.027 | H19: 0.054
A20: 2008 | B20: 14584000 | C20: 0.102 | D20: 4267000 | E20: 0.036 | F20: 1101000 | G20: —c | H20: 0.032
A21: 2009 | B21: 14357000 | C21: -0.016 | D21: 4341000 | E21: 0.017 | F21: 1536000 | G21: 0.395 | H21: -0.015
A22: 2010 | B22: 13809000 | C22: -0.038 | D22: 4622000 | E22: 0.065 | F22: 1960000 | G22: 0.276 | H22: 0.03
A23: 2011 | B23: 13922000 | C23: 0.008 | D23: 4782000 | E23: 0.035 | F23: 2214000 | G23: 0.13 | H23: 0.032
A24: 2012 | B24: 14330000 | C24: 0.029 | D24: 4721000 | E24: -0.013 | F24: 2360000 | G24: 0.066 | H24: 0.024
A25: 2013 | B25: 14692000 | C25: 0.025 | D25: 4972000 | E25: 0.053 | F25: 2425000 | G25: 0.028 | H25: 0.025
A26: 2014 | B26: 15094000 | C26: 0.027 | D26: 5154000 | E26: 0.037 | F26: 2419000 | G26: -0.002 | H26: 0.014
A27: 2015 | B27: 15657000 | C27: 0.037 | D27: 5230000 | E27: 0.015 | F27: 2434000 | G27: 0.006 | H27: 0.013
A28: 2016 | B28: 15545000 | C28: -0.007 | D28: 5634000 | E28: 0.077 | F28: 2526000 | G28: =(F28-F27)/F27 -> 0.0377978636 | H28: 0.007
A29: 2017 | B29: 16100000 | C29: 0.036 | D29: 6177000 | E29: 0.096 | F29: 2361000 | G29: -0.065 | H29: 0.012
A30: 2018 | B30: 16288000 | C30: 0.012 | D30: 6083000 | E30: -0.015 | F30: 2864000 | G30: 0.213 | H30: 0.015
A31: 2019 | B31: 16313000 | C31: 0.002 | D31: 6655000 | E31: 0.094 | F31: 2749000 | G31: -0.04 | H31: 0.003
A32: 2020 | B32: 14148000 | C32: =(B32-B31)/B31 -> -0.1327162386 | D32: 4295000 | E32: =(D32-D31)/D31 -> -0.354620586 | F32: 2471000 | G32: =(F32-F31)/F31 -> -0.1011276828 | H32: -0.064
A33: 2021 | B33: 14942000 | C33: 0.056 | D33: 7826000 | E33: 0.822 | F33: 3317000 | G33: 0.342 | H33: 0.049
A34: 2022 | B34: 15562000 | C34: 0.041 | D34: 7994000 | E34: 0.021 | F34: 3568000 | G34: 0.076 | H34: 0.018
A35: 2023 | B35: 16346000 | C35: =(B35-B34)/B34 -> 0.05037912865 | D35: 7921000 | E35: =(D35-D34)/D34 -> -0.009131848887 | F35: 3182000 | G35: =(F35-F34)/F34 -> -0.1081838565 | H35: 1.1%d
A36: 2024 | B36: 16652000 | C36: =(B36-B35)/B35 -> 0.01872017619 | D36: 8384000 | E36: =(D36-D35)/D35 -> 0.05845221563 | F36: 3195000 | G36: =(F36-F35)/F35 -> 0.00408548083 | H36: 0.4%d
A37: 1994-2024 | B37: =(B36-B6)/B6 -> 1.089072889 | C37: — | D37: =(D36-D6)/D6 -> 3.217303823 | E37: — | F37: =(F36-F6)/F6 -> 0.8972684086 | G37: — | H37: —
A38: Source: Stats SA, Stats in brief, 2004, p67; Labour Force Survey Historical Revision March Series 2001–2007, Statistical release P0210; Quarterly Labour Force Survey Historical revisions of the QLFS 2008 to 2013, Statistical release P0211.3, 11 February 2014; QLFS Trends 2008-2024Q2, accessed 18 August 2024; Economically active population QLFS Q2 2024, Table 1, p1, accessed 18 August 2024
A39: a People who were not employed during the reference week of the survey, wanted to work/start a business but did not take active steps to find work during the last four weeks prior to being interviewed by Stats SA, provided that the main reason given for not seeking work was any of the following: no jobs available in the area, unable to find work requiring his/her skills, lost hope of finding any kind of work.
A40: b From 1994 to 1999 the figures are based on October Household Surveys. For 2000, the figures are from the February 2000 Labour Force Survey. From 2001 to 2007 the figures are based on the Labour Force Survey Historical Revision March Series. From 2008 to 2024 the figures are based on the Quarterly Labour Force Survey, and refers to the second quarter. Therefore only the figures from 2008 to 2024 are strictly comparable.
A41: c The definition of discouraged workseekers was changed by Stats SA in 2008 to make it more restrictive. The figures from 2001 onwards have been revised and refer to the 2008 definition, whereas the figures for 1994 to 2000 refer to the old definition. The large drop in the number of discouraged workseekers between 2000 and 2001 can be explained by this, and for this reason a year-on-year change has not been calculated between these years. In 2014, the figures from 2008 to 2013 have been revised to incorporate the new population benchmarks from Census 2011.
A42: d Bureau for Economic Research (BER) forecast, 18 August 2024.

Sheet Employment & econom indicators
A2: Change in employment and main economic indicators, 1994-2023
A4: Year | B4: GDPa | C4: GFCFa | D4: Consumer spendingab | E4: CPI | F4: Prime overdraft rate | G4: Employment | H4: Labour productivity | I4: Remuneration per workera | J4: Nominal unit labour costs
A5: 1994 | B5: 0.032 | C5: 0.082 | D5: 0.04 | E5: 0.09 | F5: 0.158 | G5: 0.011 | H5: 0.017 | I5: 0.037 | J5: 0.115
A6: 1995 | B6: 0.031 | C6: 0.107 | D6: 0.059 | E6: 0.087 | F6: 0.179 | G6: 0.018 | H6: 0.019 | I6: 0.004 | J6: 0.094
A7: 1996 | B7: 0.043 | C7: 0.09 | D7: 0.045 | E7: 0.074 | F7: 0.195 | G7: 0.015 | H7: 0.022 | I7: 0.025 | J7: 0.089
A8: 1997 | B8: 0.026 | C8: 0.057 | D8: 0.033 | E8: 0.086 | F8: 0.2 | G8: 0.001 | H8: 0.025 | I8: 0.022 | J8: 0.079
A9: 1998 | B9: 0.005 | C9: 0.048 | D9: 0.017 | E9: 0.069 | F9: 0.218 | G9: -0.021 | H9: 0.03 | I9: 0.085 | J9: 0.13
A10: 1999 | B10: 0.024 | C10: -0.076 | D10: 0.017 | E10: 0.051 | F10: 0.18 | G10: -0.007 | H10: 0.033 | I10: 0.026 | J10: 0.06
A11: 2000 | B11: 0.042 | C11: 0.039 | D11: 0.041 | E11: 0.053 | F11: 0.145 | G11: -0.011 | H11: 0.055 | I11: 0.001 | J11: 0.038
A12: 2001 | B12: 0.027 | C12: 0.028 | D12: 0.035 | E12: 0.057 | F12: 0.138 | G12: -0.005 | H12: 0.036 | I12: 0.011 | J12: 0.047
A13: 2002 | B13: 0.037 | C13: 0.035 | D13: 0.032 | E13: 0.092 | F13: 0.158 | G13: 0.011 | H13: 0.026 | I13: -0.002 | J13: 0.095
A14: 2003 | B14: 0.029 | C14: 0.102 | D14: 0.028 | E14: 0.058 | F14: 0.15 | G14: -0.013 | H14: 0.044 | I14: 0.015 | J14: 0.036
A15: 2004 | B15: 0.046 | C15: 0.129 | D15: 0.062 | E15: 0.014 | F15: 0.113 | G15: 0.03 | H15: 0.016 | I15: 0.035 | J15: 0.073
A16: 2005 | B16: 0.053 | C16: 0.11 | D16: 0.061 | E16: 0.034 | F16: 0.106 | G16: 0.042 | H16: 0.011 | I16: 0.026 | J16: 0.068
A17: 2006 | B17: 0.056 | C17: 0.121 | D17: 0.088 | E17: 0.047 | F17: 0.111 | G17: 0.029 | H17: 0.028 | I17: 0.029 | J17: 0.056
A18: 2007 | B18: 0.054 | C18: 0.138 | D18: 0.065 | E18: 0.071 | F18: 0.131 | G18: 0.03 | H18: 0.024 | I18: -0.006 | J18: 0.046
A19: 2008 | B19: 0.032 | C19: 0.128 | D19: 0.012 | E19: 0.115 | F19: 0.151 | G19: 0.021 | H19: 0.008 | I19: 0.038 | J19: 0.119
A20: 2009 | B20: -0.015 | C20: -0.067 | D20: -0.026 | E20: 0.071 | F20: 0.119 | G20: -0.028 | H20: 0.014 | I20: 0.021 | J20: 0.103
A21: 2010 | B21: 0.03 | C21: -0.039 | D21: 0.057 | E21: 0.043 | F21: 0.099 | G21: -0.005 | H21: 0.035 | I21: 0.07 | J21: 0.101
A22: 2011 | B22: 0.032 | C22: 0.068 | D22: 0.041 | E22: 0.05 | F22: 0.09 | G22: 0.026 | H22: 0.005 | I22: 0.019 | J22: 0.066
A23: 2012 | B23: 0.024 | C23: 0.018 | D23: 0.032 | E23: 0.057 | F23: 0.088 | G23: 0.015 | H23: 0.007 | I23: 0.033 | J23: 0.07
A24: 2013 | B24: 0.025 | C24: 0.054 | D24: 0.016 | E24: 0.057 | F24: 0.085 | G24: 0.008 | H24: 0.017 | I24: 0.015 | J24: 0.055
A25: 2014 | B25: 0.014 | C25: -0.013 | D25: 0.007 | E25: 0.061 | F25: 0.091 | G25: 0.004 | H25: 0.009 | I25: 0.016 | J25: 0.058
A26: 2015 | B26: 0.013 | C26: 0.013 | D26: 0.022 | E26: 0.046 | F26: 0.094 | G26: -0.001 | H26: 0.014 | I26: 0.019 | J26: 0.056
A27: 2016 | B27: 0.007 | C27: -0.019 | D27: 0.007 | E27: 0.064 | F27: 0.104 | G27: 0.006 | H27: 0.004 | I27: -0.006 | J27: 0.054
A28: 2017 | B28: 0.012 | C28: -0.02 | D28: 0.017 | E28: 0.053 | F28: 0.104 | G28: -0.001 | H28: 0.009 | I28: 0.002 | J28: 0.055
A29: 2018 | B29: 0.016 | C29: -0.012 | D29: 0.032 | E29: 0.047 | F29: 0.101 | G29: 0.007 | H29: 0.01 | I29: 0.014 | J29: 0.039
A30: 2019 | B30: 0.003 | C30: -0.017 | D30: 0.013 | E30: 0.041 | F30: 0.101 | G30: 0.008 | H30: -0.004 | I30: -0.005 | J30: 0.045
A31: 2020 | B31: -0.062 | C31: -0.148 | D31: -0.061 | E31: 0.033 | F31: 0.077 | G31: -0.049 | H31: -0.016 | I31: -0.047 | J31: 0.025
A32: 2021 | B32: 0.05 | C32: -0.004 | D32: 0.062 | E32: 0.046 | F32: 0.07 | G32: -0.008 | H32: 0.055 | I32: 0.009 | J32: 0.017
A33: 2022 | B33: 0.019 | C33: 0.048 | D33: 0.025 | E33: 0.069 | F33: 0.088 | G33: 0.003 | H33: 0.016 | I33: -0.004 | J33: 0.024
A34: 2023 | B34: 0.007 | C34: 0.039 | D34: 0.007 | E34: 0.06 | F34: 0.115 | G34: 0.011 | H34: -0.002 | I34: -0.002 | J34: 0.047
A35: Source: South African Reserve Bank (SARB), www.resbank.co.za, time series data, accessed 10 October 2024
A36: a At constant 2015 prices.
A37: b By households.

Sheet Compensation of employees
B2: Compensation of employees as a proportion of GDP, 1994-2023
B4: Year | C4: Proportion
B5: 1994 | C5: 0.548
B6: 1995 | C6: 0.547
B7: 1996 | C7: 0.542
B8: 1997 | C8: 0.544
B9: 1998 | C9: 0.556
B10: 1999 | C10: 0.554
B11: 2000 | C11: 0.532
B12: 2001 | C12: 0.514
B13: 2002 | C13: 0.487
B14: 2003 | C14: 0.492
B15: 2004 | C15: 0.496
B16: 2005 | C16: 0.493
B17: 2006 | C17: 0.492
B18: 2007 | C18: 0.489
B19: 2008 | C19: 0.496
B20: 2009 | C20: 0.498
B21: 2010 | C21: 0.507
B22: 2011 | C22: 0.517
B23: 2012 | C23: 0.53
B24: 2013 | C24: 0.539
B25: 2014 | C25: 0.547
B26: 2015 | C26: 0.557
B27: 2016 | C27: 0.556
B28: 2017 | C28: 0.555
B29: 2018 | C29: 0.554
B30: 2019 | C30: 0.553
B31: 2020 | C31: 0.544
B32: 2021 | C32: 0.525
B33: 2022 | C33: 0.515
B34: 2023 | C34: 0.516
B35: Source: SARB, www.resbank.co.za, time series data, accessed 10 October 2024

Sheet Dependency on employed
C2: Dependency on the employed by race, 1994-2024
C4: Year | D4: Black | E4: Coloured | F4: Indian/Asian | G4: White | H4: Total
C5: 1994 | D5: 490 | E5: 180 | F5: 140 | G5: 220 | H5: 380
C6: 1995 | D6: 490 | E6: 200 | F6: 130 | G6: 230 | H6: 390
C7: 1996 | D7: 580 | E7: 180 | F7: 150 | G7: 220 | H7: 430
C8: 1997 | D8: 590 | E8: 200 | F8: 130 | G8: 240 | H8: 450 | Z8: Black | AA8: Coloured | AB8: Indian/Asian | AC8: White
C9: 1998 | D9: 450 | E9: 220 | F9: 210 | G9: 130 | H9: 350 | Z9: =(51509312-12668000)/12668000*100 -> 306.6096621 | AA9: =(5338586-1685000)/1685000*100 -> 216.8300297 | AB9: =(1628794-552000)/552000*100 -> 195.0713768 | AC9: =(4539212-1749000)/1748000*100 -> 159.6231121
C10: 1999 | D10: 400 | E10: 190 | F10: 180 | G10: 120 | H10: 320
C11: 2000 | D11: 330 | E11: 190 | F11: 180 | G11: 120 | H11: 270
C12: 2001 | D12: 300 | E12: 190 | F12: 190 | G12: 120 | H12: 260
C13: 2002 | D13: 330 | E13: 190 | F13: 200 | G13: 120 | H13: 280
C14: 2003 | D14: 370 | E14: 190 | F14: 190 | G14: 110 | H14: 300 | AF14: Formula: (Total population -employed)/employed*100
C15: 2004 | D15: 360 | E15: 180 | F15: 190 | G15: 120 | H15: 290
C16: 2005 | D16: 330 | E16: 190 | F16: 180 | G16: 110 | H16: 280
C17: 2006 | D17: 310 | E17: 190 | F17: 160 | G17: 110 | H17: 260
C18: 2007 | D18: 310 | E18: 180 | F18: 170 | G18: 110 | H18: 260
C19: 2008 | D19: 300 | E19: 180 | F19: 160 | G19: 120 | H19: 250
C20: 2009 | D20: 320 | E20: 180 | F20: 170 | G20: 120 | H20: 270
C21: 2010 | D21: 340 | E21: 200 | F21: 160 | G21: 130 | H21: 280
C22: 2011 | D22: 340 | E22: 220 | F22: 160 | G22: 130 | H22: 290
C23: 2012 | D23: 320 | E23: 210 | F23: 170 | G23: 140 | H23: 280
C24: 2013 | D24: 331 | E24: 223 | F24: 160 | G24: 139 | H24: 286
C25: 2014 | D25: 291 | E25: 198 | F25: 180 | G25: 135 | H25: 257
C26: 2015 | D26: 280 | E26: 200 | F26: 180 | G26: 130 | H26: 250
C27: 2016 | D27: 280 | E27: 200 | F27: 170 | G27: 130 | H27: 250
C28: 2017 | D28: 279.67 | E28: 200 | F28: 168 | G28: 134 | H28: 250
C29: 2018 | D29: 284 | E29: 196 | F29: 165 | G29: 144 | H29: 254
C30: 2019 | D30: 287 | E30: 207 | F30: 184 | G30: 152 | H30: 260
C31: 2020 | D31: 356 | E31: 272 | F31: 216 | G31: 176 | H31: 321
C32: 2021 | D32: 331 | E32: 274 | F32: 217 | G32: 138 | H32: 303
C33: 2022 | D33: 316 | E33: 249 | F33: 186 | G33: 173 | H33: 289
C34: 2023 | D34: 302 | E34: 213 | F34: 201 | G34: 166 | H34: 275
C35: 2024 | D35: 307 | E35: 217 | F35: 195 | G35: 160 | H35: 278
C36: 1994-2024 | D36: =(D35-D5)/D5 -> -0.3734693878 | E36: =(E35-E5)/E5 -> 0.2055555556 | F36: 0.3928571429 | G36: -0.2727272727 | H36: -0.2684210526
C37: Source: CRA calculations based on Stats SA data
B38: This table shows the number of people not working (including both the officially unemployed, those who choose not to work, and those too young or old to work) for every 100 employed people. For example, in 1994, there were on average 490 black people who were not working for every 100 employed black people. The total column reflects the average for the whole country. So in 1994, there were 380 people not working for every 100 employed. This data gives a more comprehensive picture of dependency than the official dependency ratio, which assesses the ratio of the young and old to the working-age population, regardless of whether they are actually working or not (also see the Demographics chapter).

Sheet Participation.absorption

Sheet Participation rate by race
A2: Labour market participation and absorption rates
A4: The labour market participation rate refers to the proportion of the working-age population (between 15 and 64) that is economically active (employed or unemployed). Excluded are people of working age who are not available for work — among them, pupils, students, homemakers, those who are retired and those unwilling or unable to work. In other words, the labour market participation rate refers to the supply of labour or the economically active expressed as a percentage.
A5: The labour absorption rate measures the proportion of the working-age population that is employed — in other words all those who do any work for pay, profit or family gain. Put differently, the labour absorption rate refers to the demand for labour [Stats SA, Quarterly Labour Force Survey].
A7: Labour market participation by race, 1994-2024
A9: Year | B9: Black | C9: Coloured | D9: Indian/Asian | E9: White | F9: Total
A10: 1994 | B10: 0.431 | C10: 0.605 | D10: 0.529 | E10: 0.633 | F10: 0.477
A11: 1995 | B11: 0.412 | C11: 0.559 | D11: 0.547 | E11: 0.609 | F11: 0.455
A12: 1996 | B12: 0.39 | C12: 0.568 | D12: 0.523 | E12: 0.617 | F12: 0.44
A13: 1997 | B13: 0.395 | C13: 0.551 | D13: 0.54 | E13: 0.581 | F13: 0.439
A14: 1998 | B14: 0.449 | C14: 0.583 | D14: 0.545 | E14: 0.65 | F14: 0.488
A15: 1999 | B15: 0.472 | C15: 0.626 | D15: 0.608 | E15: 0.677 | F15: 0.515
A16: 2000 | B16: 0.592 | C16: 0.676 | D16: 0.645 | E16: 0.686 | F16: 0.613
A17: 2001 | B17: 0.588 | C17: 0.669 | D17: 0.608 | E17: 0.685 | F17: 0.608
A18: 2002 | B18: 0.57 | C18: 0.689 | D18: 0.591 | E18: 0.696 | F18: 0.597
A19: 2003 | B19: 0.553 | C19: 0.684 | D19: 0.627 | E19: 0.685 | F19: 0.583
A20: 2004 | B20: 0.527 | C20: 0.656 | D20: 0.58 | E20: 0.672 | F20: 0.557
A21: 2005 | B21: 0.533 | C21: 0.652 | D21: 0.589 | E21: 0.684 | F21: 0.563
A22: 2006 | B22: 0.554 | C22: 0.649 | D22: 0.583 | E22: 0.688 | F22: 0.578
A23: 2007 | B23: 0.554 | C23: 0.66 | D23: 0.562 | E23: 0.679 | F23: 0.577
A24: 2008 | B24: 0.573 | C24: 0.65 | D24: 0.616 | E24: 0.699 | F24: 0.595
A25: 2009 | B25: 0.554 | C25: 0.65 | D25: 0.593 | E25: 0.701 | F25: 0.579
A26: 2010 | B26: 0.533 | C26: 0.641 | D26: 0.611 | E26: 0.688 | F26: 0.561
A27: 2011 | B27: 0.535 | C27: 0.61 | D27: 0.609 | E27: 0.684 | F27: 0.559
A28: 2012 | B28: 0.536 | C28: 0.637 | D28: 0.568 | E28: 0.677 | F28: 0.559
A29: 2013 | B29: 0.543 | C29: 0.637 | D29: 0.624 | E29: 0.681 | F29: 0.566
A30: 2014 | B30: 0.552 | C30: 0.653 | D30: 0.574 | E30: 0.676 | F30: 0.573
A31: 2015 | B31: 0.564 | C31: 0.642 | D31: 0.579 | E31: 0.673 | F31: 0.581
A32: 2016 | B32: 0.564 | C32: 0.622 | D32: 0.58 | E32: 0.676 | F32: 0.579
A33: 2017 | B33: 0.587 | C33: 0.627 | D33: 0.61 | E33: 0.673 | F33: 0.599
A34: 2018 | B34: 0.576 | C34: 0.65 | D34: 0.609 | E34: 0.675 | F34: 0.591
A35: 2019 | B35: 0.587 | C35: 0.626 | D35: 0.591 | E35: 0.675 | F35: 0.598
A36: 2020 | B36: 0.454 | C36: 0.497 | D36: 0.559 | E36: 0.618 | F36: 0.473
A37: 2021 | B37: 0.567 | C37: 0.56 | D37: 0.588 | E37: 0.674 | F37: 0.575
A38: 2022 | B38: 0.579 | C38: 0.592 | D38: 0.62 | E38: 0.653 | F38: 0.586
A39: 2023 | B39: 0.587 | C39: 0.616 | D39: 0.599 | E39: 0.669 | F39: 0.596
A40: 2024 | B40: 0.594 | C40: 0.608 | D40: 0.58 | E40: 0.677 | F40: 0.606
A41: 1994-2024 | B41: =(B40-B10)/B10 -> 0.3781902552 | C41: =(C40-C10)/C10 -> 0.004958677686 | D41: =(D40-D10)/D10 -> 0.09640831758 | E41: =(E40-E10)/E10 -> 0.06951026856 | F41: =(F40-F10)/F10 -> 0.2704402516
A42: 2023-24 | B42: =(B40-B39)/B39 -> 0.01192504259 | C42: =(C40-C39)/C39 -> -0.01298701299 | D42: =(D40-D39)/D39 -> -0.03171953255 | E42: =(E40-E39)/E39 -> 0.01195814649 | F42: =(F40-F39)/F39 -> 0.01677852349
A43: Source: QLFS Trends 2008-2024Q2, accessed 27 September 2024

Sheet Labour mark part.rate by race
A2: Labour market participation ratea by race and sex, 2023 and 2024
A4: Sex | B4: —Black— | D4: —Coloured— | F4: —Indian/Asian— | H4: —White— | J4: —Total—
B5: 2023 | C5: 2024 | D5: 2023 | E5: 2024 | F5: 2023 | G5: 2024 | H5: 2023 | I5: 2024 | J5: 2023 | K5: 2024
A6: Male | B6: 0.636 | C6: 0.644 | D6: 0.678 | E6: 0.67 | F6: 0.724 | G6: 0.733 | H6: 0.737 | I6: 0.743 | J6: 0.649 | K6: 0.6556
A7: Female | B7: 0.538 | C7: 0.555 | D7: 0.558 | E7: 0.552 | F7: 0.462 | G7: 0.472 | H7: 0.602 | I7: 0.628 | J7: 0.543 | K7: 0.5575
A8: Total | B8: 0.587 | C8: 0.599 | D8: 0.616 | E8: 0.609 | F8: 0.599 | G8: 0.608 | H8: 0.669 | I8: 0.6855 | J8: 0.596 | K8: 0.606
A9: Source: Stats SA, email communication, 9 September 2024
A10: a Stats SA defines the labour market participation rate as the proportion of the working-age population (between 15 and 64) that is economically active (employed or unemployed). Excluded are people of working age who are not available for work — among them pupils, students, homemakers, those who are retired, and those unwilling or unable to work.

Sheet Labour force absorption rate
A2: Labour absorption ratea by race, 2001-24
A4: Year | B4: Black | C4: Coloured | D4: Indian/Asian | E4: White | F4: Total
A5: 2001 | B5: 0.421 | C5: 0.518 | D5: 0.515 | E5: 0.633 | F5: 0.458
A6: 2002 | B6: 0.386 | C6: 0.513 | D6: 0.48 | E6: 0.646 | F6: 0.431
A7: 2003 | B7: 0.362 | C7: 0.521 | D7: 0.505 | E7: 0.632 | F7: 0.412
A8: 2004 | B8: 0.36 | C8: 0.526 | D8: 0.484 | E8: 0.635 | F8: 0.41
A9: 2005 | B9: 0.381 | C9: 0.522 | D9: 0.507 | E9: 0.645 | F9: 0.426
A10: 2006 | B10: 0.404 | C10: 0.518 | D10: 0.528 | E10: 0.648 | F10: 0.444
A11: 2007 | B11: 0.401 | C11: 0.519 | D11: 0.501 | E11: 0.649 | F11: 0.441
A12: 2008 | B12: 0.422 | C12: 0.523 | D12: 0.541 | E12: 0.668 | F12: 0.46
A13: 2009 | B13: 0.403 | C13: 0.524 | D13: 0.529 | E13: 0.669 | F13: 0.445
A14: 2010 | B14: 0.378 | C14: 0.496 | D14: 0.552 | E14: 0.643 | F14: 0.42
A15: 2011 | B15: 0.376 | C15: 0.469 | D15: 0.543 | E15: 0.65 | F15: 0.416
A16: 2012 | B16: 0.384 | C16: 0.478 | D16: 0.515 | E16: 0.639 | F16: 0.42
A17: 2013 | B17: 0.388 | C17: 0.476 | D17: 0.543 | E17: 0.64 | F17: 0.423
A18: 2014 | B18: 0.396 | C18: 0.488 | D18: 0.505 | E18: 0.622 | F18: 0.427
A19: 2015 | B19: 0.407 | C19: 0.485 | D19: 0.501 | E19: 0.626 | F19: 0.435
A20: 2016 | B20: 0.394 | C20: 0.478 | D20: 0.512 | E20: 0.631 | F20: 0.425
A21: 2017 | B21: 0.404 | C21: 0.479 | D21: 0.529 | E21: 0.635 | F21: 0.433
A22: 2018 | B22: 0.4 | C22: 0.498 | D22: 0.541 | E22: 0.62 | F22: 0.431
A23: 2019 | B23: 0.395 | C23: 0.485 | D23: 0.524 | E23: 0.625 | F23: 0.424
A24: 2020 | B24: 0.334 | C24: 0.403 | D24: 0.479 | E24: 0.58 | F24: 0.363
A25: 2021 | B25: 0.35 | C25: 0.4 | D25: 0.474 | E25: 0.616 | F25: 0.377
A26: 2022 | B26: 0.36 | C26: 0.43 | D26: 0.524 | E26: 0.597 | F26: 0.387
A27: 2023 | B27: 0.371 | C27: 0.482 | D27: 0.499 | E27: 0.62 | F27: 0.401
A28: 2024 | B28: 0.379 | C28: 0.476 | D28: 0.513 | E28: 0.62 | F28: 0.408
A29: 2001-24 | B29: =(B28-B5)/B5 -> -0.09976247031 | C29: =(C28-C5)/C5 -> -0.08108108108 | D29: -0.003883495146 | E29: -0.0205371248 | F29: -0.1091703057
A30: 2023-24 | B30: =(B28-B27)/B27 -> 0.02156334232 | C30: =(C28-C27)/C27 -> -0.01244813278 | D30: 0.02805611222 | E30: 0 | F30: 0.0174563591
A31: Source: Stats SA, QLFS Trends 2008-2023Q2, accessed 27 September 2024
A32: a The labour absorption rate measures the proportion of the working-age population that is employed — in other words, all those who do any work for pay, profit or family gain.

Sheet Intern. Labour particip.rat SC
A2: Labour force participationa and unemployment ratesb, selected countries, 2009 and 2024
B4: —Male— | D4: —Female— | F4: —Total— | H4: Unemployment rate 2024c
A5: Country | B5: 2009 | C5: 2024 | D5: 2009 | E5: 2024 | F5: 2009 | G5: 2024
A6: Australia | B6: 0.825 | C6: 0.717 | D6: 0.701 | E6: 0.628 | F6: 0.764 | G6: 0.672 | H6: 0.042
A7: Botswana | B7: 0.715 | C7: 0.731 | D7: 0.585 | E7: 0.631 | F7: 0.65 | G7: 0.678 | H7: 0.259
A8: Brazil | B8: 0.817 | C8: 0.731 | D8: 0.599 | E8: 0.531 | F8: 0.706 | G8: 0.628 | H8: 0.066
A9: Chile | B9: 0.797 | C9: 0.714 | D9: 0.519 | E9: 0.52 | F9: 0.658 | G9: 0.615 | H9: 0.087
A10: China | B10: N/A | C10: N/A | D10: N/A | E10: N/A | F10: N/A | G10: N/A | H10: 0.053
A11: Denmark | B11: 0.837 | C11: 0.677 | D11: 0.768 | E11: 0.597 | F11: 0.803 | G11: 0.636 | H11: 0.026
A12: Egyptd | B12: 0.781 | C12: 0.692 | D12: 0.244 | E12: 0.15 | F12: 0.516 | G12: 0.428 | H12: 0.065
A13: France | B13: 0.75 | C13: 0.601 | D13: 0.656 | E13: 0.528 | F13: 0.703 | G13: 0.563 | H13: 0.073
A14: Germany | B14: 0.822 | C14: 0.667 | D14: 0.704 | E14: 0.564 | F14: 0.764 | G14: 0.615 | H14: 0.06
A15: Ghanad | B15: 0.736 | C15: 0.652 | D15: 0.688 | E15: 0.62 | F15: 0.711 | G15: 0.634 | H15: 0.036
A16: Greece | B16: 0.787 | C16: 0.6 | D16: 0.57 | E16: 0.448 | F16: 0.679 | G16: 0.522 | H16: 0.099
A17: Hong Kong | B17: 0.791 | C17: 0.636 | D17: 0.612 | E17: 0.522 | F17: 0.695 | G17: 0.573 | H17: 0.03
A18: India | B18: 0.839 | C18: 0.764 | D18: 0.284 | E18: 0.351 | F18: 0.571 | G18: 0.558 | H18: 0.085
A19: Indonesia | B19: 0.843 | C19: 0.822 | D19: 0.522 | E19: 0.534 | F19: 0.684 | G19: 0.679 | H19: 0.0482
A20: Ireland | B20: 0.809 | C20: 0.708 | D20: 0.652 | E20: 0.604 | F20: 0.731 | G20: 0.655 | H20: 0.043
A21: Israel | B21: 0.76 | C21: 0.689 | D21: 0.661 | E21: 0.614 | F21: 0.71 | G21: 0.651 | H21: 0.026
A22: Italy | B22: 0.735 | C22: 0.588 | D22: 0.509 | E22: 0.415 | F22: 0.622 | G22: 0.499 | H22: 0.065
A23: Japan | B23: 0.849 | C23: 0.714 | D23: 0.628 | E23: 0.548 | F23: 0.74 | G23: 0.629 | H23: 0.027
A24: Kazakhstan | B24: 0.803 | C24: 0.746 | D24: 0.727 | E24: 0.633 | F24: 0.764 | G24: 0.687 | H24: 0.047
A25: Lithuania | B25: 0.717 | C25: 0.685 | D25: 0.677 | E25: 0.585 | F25: 0.696 | G25: 0.631 | H25: 0.085
A26: Mexico | B26: 0.834 | C26: 0.764 | D26: 0.461 | E26: 0.462 | F26: 0.646 | G26: 0.604 | H26: 0.029
A27: Mozambique | B27: N/A | C27: N/A | D27: N/A | E27: N/A | F27: N/A | G27: N/A | H27: N/A
A28: Nigeria | B28: N/A | C28: N/A | D28: N/A | E28: N/A | F28: N/A | G28: N/A | H28: 0.053
A29: Pakistane | B29: 0.833 | C29: 0.81 | D29: 0.217 | E29: 0.245 | F29: 0.532 | G29: 0.527 | H29: 0.057
A30: Philippinesd | B30: 0.778 | C30: 0.725 | D30: 0.498 | E30: 0.502 | F30: 0.64 | G30: 0.614 | H30: 0.047
A31: Poland | B31: 0.717 | C31: 0.663 | D31: 0.577 | E31: 0.52 | F31: 0.647 | G31: 0.588 | H31: 0.05
A32: Russia | B32: 0.774 | C32: 0.705 | D32: 0.686 | E32: 0.562 | F32: 0.729 | G32: 0.627 | H32: 0.024
A33: Saudi Arabia | B33: 0.754 | C33: 0.836 | D33: 0.18 | E33: 0.346 | F33: 0.518 | G33: 0.666 | H33: 0.033
A34: South Africa | B34: 0.657 | C34: 0.614 | D34: 0.506 | E34: 0.49 | F34: 0.58 | G34: 0.55 | H34: 0.335
A35: Spain | B35: 0.811 | C35: 0.63 | D35: 0.651 | E35: 0.534 | F35: 0.732 | G35: 0.581 | H35: 0.1127
A36: Switzerland | B36: 0.878 | C36: 0.729 | D36: 0.771 | E36: 0.626 | F36: 0.825 | G36: 0.677 | H36: 0.024
A37: Thailand | B37: 0.86 | C37: 0.766 | D37: 0.707 | E37: 0.606 | F37: 0.782 | G37: 0.682 | H37: 0.0107
A38: Turkey | B38: N/A | C38: N/A | D38: N/A | E38: N/A | F38: N/A | G38: N/A | H38: 0.088
A39: Ugandae | B39: 0.767 | C39: 0.842 | D39: 0.67 | E39: 0.745 | F39: 0.718 | G39: 0.792 | H39: 0.029
A40: United Kingdom | B40: 0.817 | C40: 0.666 | D40: 0.693 | E40: 0.581 | F40: 0.755 | G40: 0.622 | H40: 0.041
A41: United States | B41: 0.788 | C41: 0.681 | D41: 0.678 | E41: 0.573 | F41: 0.733 | G41: 0.626 | H41: 0.042
A42: Venezuelaf | B42: 0.822 | C42: 0.727 | D42: 0.544 | E42: 0.472 | F42: 0.683 | G42: 0.599 | H42: 0.059
A43: Source: International Labour Organisation (ILO), ILO modelled estimates, January 2024, accessed 28 October 2024; tradingeconomics.com, accessed 27 September 2024
A44: a The figures used for labour force participation are drawn from the International Labour Organisation statistical database. The figures used are from 2023, unless indicated otherwise.
A45: b The labour force participation rate is the proportion of the population aged 15 and older that is economically active: all people who supply labour for the production of goods and services during a specified period.
A46: c The unemployment figures are for the latest period of 2024 or the latest available data.
A47: d 2022 data.
A48: e 2021 data.
A49: f 2020 data.
A50: N/A — Not available.

Sheet Intern. Labour particip.rate EM
A2: Labour force participationa and unemployment ratesb, emerging and selected frontier markets, 2009 and 2024
B4: —Male— | D4: —Female— | F4: — Total— | H4: Unemployment rate 2024b
A5: Country | B5: 2009 | C5: 2024 | D5: 2009 | E5: 2024 | F5: 2009 | G5: 2024
A6: Brazil | B6: 0.817 | C6: 0.731 | D6: 0.599 | E6: 0.531 | F6: 0.706 | G6: 0.628 | H6: 0.066
A7: Bulgaria | B7: 0.728 | C7: 0.622 | D7: 0.623 | E7: 0.498 | F7: 0.676 | G7: 0.557 | H7: 0.053
A8: Chile | B8: 0.797 | C8: 0.714 | D8: 0.519 | E8: 0.52 | F8: 0.658 | G8: 0.615 | H8: 0.087
A9: China | B9: N/A | C9: N/A | D9: N/A | E9: N/A | F9: N/A | G9: N/A | H9: 0.053
A10: Colombia | B10: 0.854 | C10: 0.764 | D10: 0.589 | E10: 0.52 | F10: 0.719 | G10: 0.637 | H10: 0.099
A11: Czech Republic | B11: 0.784 | C11: 0.685 | D11: 0.615 | E11: 0.517 | F11: 0.7 | G11: 0.599 | H11: 0.038
A12: Egypt | B12: 0.781 | C12: 0.692 | D12: 0.244 | E12: 0.15 | F12: 0.516 | G12: 0.428 | H12: 0.065
A13: Estonia | B13: 0.779 | C13: 0.716 | D13: 0.706 | E13: 0.62 | F13: 0.742 | G13: 0.665 | H13: 0.076
A14: Greece | B14: 0.787 | C14: 0.6 | D14: 0.57 | E14: 0.448 | F14: 0.679 | G14: 0.522 | H14: 0.099
A15: Hungary | B15: 0.677 | C15: 0.683 | D15: 0.549 | E15: 0.545 | F15: 0.612 | G15: 0.61 | H15: 0.043
A16: India | B16: 0.839 | C16: 0.764 | D16: 0.284 | E16: 0.351 | F16: 0.571 | G16: 0.558 | H16: 0.085
A17: Indonesia | B17: 0.843 | C17: 0.822 | D17: 0.522 | E17: 0.534 | F17: 0.684 | G17: 0.679 | H17: 0.0482
A18: Jordand | B18: 0.717 | C18: 0.605 | D18: 0.165 | E18: 0.138 | F18: 0.448 | G18: 0.386 | H18: 0.214
A19: Kuwait | B19: 0.843 | C19: 0.878 | D19: 0.534 | E19: 0.499 | F19: 0.72 | G19: 0.738 | H19: 0.021
A20: Latvia | B20: 0.769 | C20: 0.679 | D20: 0.708 | E20: 0.557 | F20: 0.737 | G20: 0.612 | H20: 0.069
A21: Lithuania | B21: 0.717 | C21: 0.685 | D21: 0.677 | E21: 0.585 | F21: 0.696 | G21: 0.631 | H21: 0.085
A22: Malaysiad | B22: 0.786 | C22: 0.819 | D22: 0.462 | E22: 0.558 | F22: 0.63 | G22: 0.693 | H22: 0.033
A23: Mauritius | B23: 0.795 | C23: 0.697 | D23: 0.461 | E23: 0.469 | F23: 0.628 | G23: 0.579 | H23: 0.063
A24: Mexico | B24: 0.834 | C24: 0.764 | D24: 0.461 | E24: 0.462 | F24: 0.646 | G24: 0.604 | H24: 0.029
A25: Moroccod | B25: 0.793 | C25: 0.696 | D25: 0.274 | E25: 0.198 | F25: 0.527 | G25: 0.443 | H25: 0.131
A26: Omand | B26: 0.826 | C26: 0.865 | D26: 0.276 | E26: 0.399 | F26: 0.621 | G26: 0.706 | H26: 0.015
A27: Pakistane | B27: 0.833 | C27: 0.807 | D27: 0.217 | E27: 0.245 | F27: 0.532 | G27: 0.527 | H27: 0.057
A28: Peru | B28: 0.886 | C28: 0.805 | D28: 0.735 | E28: 0.651 | F28: 0.81 | G28: 0.727 | H28: 0.061
A29: Philippines | B29: 0.778 | C29: 0.725 | D29: 0.498 | E29: 0.502 | F29: 0.64 | G29: 0.614 | H29: 0.047
A30: Poland | B30: 0.717 | C30: 0.663 | D30: 0.577 | E30: 0.52 | F30: 0.647 | G30: 0.588 | H30: 0.05
A31: Qatard | B31: 0.952 | C31: 0.953 | D31: 0.497 | E31: 0.617 | F31: 0.857 | G31: 0.874 | H31: 0.001
A32: Romania | B32: 0.707 | C32: 0.619 | D32: 0.551 | E32: 0.419 | F32: 0.628 | G32: 0.515 | H32: 0.054
A33: Russia | B33: 0.774 | C33: 0.705 | D33: 0.686 | E33: 0.562 | F33: 0.729 | G33: 0.627 | H33: 0.024
A34: Slovakia | B34: 0.763 | C34: 0.673 | D34: 0.606 | E34: 0.563 | F34: 0.684 | G34: 0.616 | H34: 0.05
A35: South Africa | B35: 0.657 | C35: 0.614 | D35: 0.506 | E35: 0.49 | F35: 0.58 | G35: 0.55 | H35: 0.335
A36: Sri Lanka | B36: 0.807 | C36: 0.705 | D36: 0.397 | E36: 0.31 | F36: 0.597 | G36: 0.497 | H36: 0.045
A37: Thailand | B37: 0.86 | C37: 0.766 | D37: 0.707 | E37: 0.606 | F37: 0.782 | G37: 0.682 | H37: 0.0107
A38: Turkey | B38: N/A | C38: N/A | D38: N/A | E38: N/A | F38: N/A | G38: N/A | H38: 0.088
A39: United Arab Emirates | B39: 0.941 | C39: 0.908 | D39: 0.43 | E39: 0.545 | F39: 0.829 | G39: 0.785 | H39: 0.0295
A40: Vietnam | B40: N/A | C40: N/A | D40: N/A | E40: N/A | F40: N/A | G40: N/A | H40: 0.0229
A41: Source: ILO, ILO modelled estimates, January 2024, accessed 28 October 2024; tradingeconomics.com, accessed 27 September 2024
A42: a The data used for labour force participation is drawn from the International Labour Organisation statistical database. The data used is from 2023 unless indicated otherwise.
A43: b The labour force participation rate is the proportion of the population aged 15 and older that is economically active: all people who supply labour for the production of goods and services during a specified period.
A44: c The unemployment figures are for the latest period of 2024 or the latest available data.
A45: d 2022 data.
A46: e 2021 data.
A47: N/A — Not available.

Sheet EAP definition
B2: Economically active population (EAP)
B4: The economically active population is defined by Statistics South Africa (Stats SA) as people between the ages of 15 and 64 who are either employed in the formal and informal sector, or unemployed people who are actively looking for work. This does not include people who are not available for work, such as students, homemakers, people who are too ill to work and discouraged jobseekers. Unemployed people are defined as follows:
B5: ● | C5: They had not worked in the week in which the Quarterly Labour Force Survey was conducted.
B6: ● | C6: They had actively looked for work or tried to start a business in the four weeks prior to the survey.
B7: ● | C7: They were available for work in the week in which the survey was conducted.
B8: ● | C8: They had not actively looked for work in the four weeks prior to the survey, but were starting at a definite date in the future.
B9: People are divided into those who work in the formal and those who work in the informal sector. People who work in the informal sector are those who:
B10: ● | C10: Work in an establishment that employs fewer than five people, and income tax is not deducted from wages and salaries.
B11: ● | C11: Are unpaid people who help in a household business not registered for income tax or value-added tax.

Sheet EAP by race 2001-24
A2: Economically active population by race, 2001-24
A4: Year | B4: Black | C4: Coloured | D4: Indian/Asian | E4: White | F4: Totala
A5: 2001 | B5: 12127000 | C5: 1747000 | D5: 456000 | E5: 2245000 | F5: 16575000
A6: 2002 | B6: 12046000 | C6: 1830000 | D6: 453000 | E6: 2268000 | F6: 16598000
A7: 2003 | B7: 11950000 | C7: 1847000 | D7: 491000 | E7: 2219000 | F7: 16509000
A8: 2004 | B8: 11626000 | C8: 1802000 | D8: 465000 | E8: 2162000 | F8: 16054000
A9: 2005 | B9: 12009000 | C9: 1818000 | D9: 482000 | E9: 2187000 | F9: 16497000
A10: 2006 | B10: 12710000 | C10: 1840000 | D10: 487000 | E10: 2184000 | F10: 17221000
A11: 2007 | B11: 12927000 | C11: 1901000 | D11: 479000 | E11: 2137000 | F11: 17444000
A12: 2008 | B12: 14082000 | C12: 1937000 | D12: 543000 | E12: 2289000 | F12: 18851000
A13: 2009 | B13: 13915000 | C13: 1971000 | D13: 531000 | E13: 2280000 | F13: 18698000
A14: 2010 | B14: 13677000 | C14: 1977000 | D14: 556000 | E14: 2220000 | F14: 18431000
A15: 2011 | B15: 14037000 | C15: 1913000 | D15: 563000 | E15: 2191000 | F15: 18703000
A16: 2012 | B16: 14364000 | C16: 2005000 | D16: 532000 | E16: 2149000 | F16: 19051000
A17: 2013 | B17: 14869000 | C17: 2062000 | D17: 593000 | E17: 2140000 | F17: 19663000
A18: 2014 | B18: 15447000 | C18: 2144000 | D18: 552000 | E18: 2105000 | F18: 20248000
A19: 2015 | B19: 16113000 | C19: 2135000 | D19: 564000 | E19: 2075000 | F19: 20887000
A20: 2016 | B20: 16452000 | C20: 2094000 | D20: 572000 | E20: 2062000 | F20: 21179000
A21: 2017 | B21: 17504000 | C21: 2134000 | D21: 606000 | E21: 2033000 | F21: 22277000
A22: 2018 | B22: 17509000 | C22: 2236000 | D22: 610000 | E22: 2015000 | F22: 22370000
A23: 2019 | B23: 18201000 | C23: 2175000 | D23: 597000 | E23: 1994000 | F23: 22968000
A24: 2020 | B24: 14325000 | C24: 1744000 | D24: 571000 | E24: 1803000 | F24: 18443000
A25: 2021 | B25: 18240000 | C25: 1981000 | D25: 605000 | E25: 1941000 | F25: 22768000
A26: 2022 | B26: 18948000 | C26: 2108000 | D26: 643000 | E26: 1858000 | F26: 23556000
A27: 2023 | B27: 19554000 | C27: 2210000 | D27: 626000 | E27: 1878000 | F27: 24268000
A28: 2024 | B28: 20300000 | C28: 2197000 | D28: 641000 | E28: 1898000 | F28: 25036000
A29: 2001-24 | B29: =(B28-B5)/B5 -> 0.6739506885 | C29: =(C28-C5)/C5 -> 0.2575844305 | D29: =(D28-D5)/D5 -> 0.4057017544 | E29: =(E28-E5)/E5 -> -0.1545657016 | F29: =(F28-F5)/F5 -> 0.5104675716
A30: 2023-24 | B30: =(B28-B27)/B27 -> 0.03815076199 | C30: =(C28-C27)/C27 -> -0.005882352941 | D30: =(D28-D27)/D27 -> 0.02396166134 | E30: =(E28-E27)/E27 -> 0.01064962726 | F30: =(F28-F27)/F27 -> 0.03164661282
A31: Source: Stats SA, Labour Force Survey Historical Revision March Series 2001–2007, Statistical release P0210, 28 August 2008; Quarterly Labour Force Survey Historical revisions of the QLFS 2008 to 2013, 11 February 2014; Quarterly Labour Force Survey Quarter 2: 2021, Statistical release P0211, 24 August 2021, pp21-22; Socio-Economic Survey of South Africa 2022, p236; Economically active population QLFS Q2 2022, accessed 4 October 2022; Economically active population QLFS Q2 2023, accessed 20 November 2023; Economically active population QLFS Q2 2024, accessed 19 September 2024
A32: a Figures should add up horizontally but may not, owing to rounding, and to the fact that Stats SA disregarded sample sizes smaller than 10 000 as unreliable.

Sheet EAP by race&sex2024
A2: Economically active population by race and sex, 2024
A4: Employed | B4: Black | C4: Coloured | D4: Indian/Asian | E4: White | F4: Totala
A5: Male | B5: 6977323 | C5: 911758 | D5: 365131 | E5: 950111 | F5: 9204322
A6: Female | B6: 5690686 | C6: 772758 | D6: 187003 | E6: 797564 | F6: 7448011
A7: Totala | B7: 12688009 | C7: 1684516 | D7: 552134 | E7: 1747675 | F7: 16652333
A8: Unemployed
A9: Male | B9: 3859955 | C9: 261182 | D9: 38661 | E9: 76917 | F9: 4236715
A10: Female | B10: 3771874 | C10: 251643 | D10: 50129 | E10: 73463 | F10: 4147109
A11: Totala | B11: 7631829 | C11: 512825 | D11: 88791 | E11: 150380 | F11: 8383824
A12: Total EAP
A13: Male | B13: 10837278 | C13: 1172940 | D13: 403793 | E13: 1027027 | F13: 13441038
A14: Female | B14: 9462560 | C14: 1024401 | D14: 237132 | E14: 871027 | F14: 11595120
A15: Totala | B15: 20299837 | C15: 2197341 | D15: 640924 | E15: 1898055 | F15: 25036158
A16: Source: Stats SA, email communication, 9 September 2024
A17: a Figures should add up vertically and horizontally but may not, owing to rounding, and to the fact that Stats SA disregarded sample sizes smaller than 10 000 as unreliable.

Sheet EAP race&age 2001-24
A2: Economically active population by race and age (actual numbers), 2001-24
A4: 2001 | B4: Black | C4: Coloured | D4: Indian/Asian | E4: White | F4: Totala
A5: 15-24 years | B5: 2157000 | C5: 404000 | D5: 96000 | E5: 330000 | F5: 2987000
A6: 25-34 years | B6: 4355000 | C6: 600000 | D6: 136000 | E6: 549000 | F6: 5639000
A7: 35- 44 years | B7: 2958000 | C7: 439000 | D7: 114000 | E7: 620000 | F7: 4130000
A8: 45-54 years | B8: 1836000 | C8: 224000 | D8: 81000 | E8: 516000 | F8: 2657000
A9: 55- 64 years | B9: 821000 | C9: 80000 | D9: 30000 | E9: 231000 | F9: 1162000
A10: Totala | B10: 12127000 | C10: 1747000 | D10: 456000 | E10: 2245000 | F10: 16575000
A11: 2023
A12: 15-24 years | B12: 2238001.698 | C12: 333444.606 | D12: 63896.56209 | E12: 150290.3126 | F12: 2785633.178
A13: 25-34 years | B13: 6451086.87 | C13: 624384.5756 | D13: 175869.7601 | E13: 433619.7098 | F13: 7684960.916
A14: 35- 44 years | B14: 5847384.406 | C14: 562951.1817 | D14: 191294.3779 | E14: 464146.0261 | F14: 7065775.991
A15: 45-54 years | B15: 3824802.802 | C15: 511500.7081 | D15: 141706.0645 | E15: 463417.3762 | F15: 4941426.95
A16: 55- 64 years | B16: 1192340.088 | C16: 177935.26 | D16: 53143.92857 | E16: 366350.4287 | F16: 1789769.705
A17: Totala | B17: 19553615.86 | C17: 2210216.331 | D17: 625910.6931 | E17: 1877823.853 | F17: 24267566.74
A18: 2024
A19: 15-24 years | B19: 2257920 | C19: 328322 | D19: 36542 | E19: 156988 | F19: 2779772
A20: 25-34 years | B20: 6637423 | C20: 643579 | D20: 193433 | E20: 470670 | F20: 7935105
A21: 35- 44 years | B21: 6045847 | C21: 542093 | D21: 201075 | E21: 461752 | F21: 7250767
A22: 45-54 years | B22: 4032309 | C22: 489870 | D22: 145335 | E22: 459726 | F22: 5127240
A23: 55- 64 years | B23: 1336339 | C23: 193477 | D23: 64540 | E23: 349918 | F23: 1943273
A24: Totala | B24: 20299837 | C24: 2197341 | D24: 640924 | E24: 1898055 | F24: 25036158
A25: 2001-24 | B25: =(B24-B10)/B10 -> 0.6739372475 | C25: =(C24-C10)/C10 -> 0.2577796222 | D25: =(D24-D10)/D10 -> 0.4055350877 | E25: =(E24-E10)/E10 -> -0.1545412027 | F25: =(F24-F10)/F10 -> 0.5104771041
A26: 2023-24 | B26: =(B24-B17)/B17 -> 0.03816282073 | C26: =(C24-C17)/C17 -> -0.005825371537 | D26: =(D24-D17)/D17 -> 0.02398634026 | E26: =(E24-E17)/E17 -> 0.01077371911 | F26: =(F24-F17)/F17 -> 0.03167154199
A27: Source: Stats SA, email communication, 9 September 2024
A28: a Figures should add up vertically and horizontally but may not, owing to rounding, and to the fact that Stats SA disregarded sample sizes smaller than 10 000 as unreliable.

Sheet EAP by race&age % 01-24
A2: Economically active population by race and age (proportions), 2001-24
A4: 2001 | B4: Black | C4: Coloured | D4: Indian/Asian | E4: White | F4: Totala
A5: 15-24 years | B5: 0.1778675682 | C5: 0.2312535776 | D5: 0.2105263158 | E5: 0.1469933185 | F5: 0.1802111614
A6: 25-34 years | B6: 0.3591160221 | C6: 0.3434459073 | D6: 0.298245614 | E6: 0.2445434298 | F6: 0.3402111614
A7: 35- 44 years | B7: 0.2439185289 | C7: 0.2512879222 | D7: 0.25 | E7: 0.276169265 | F7: 0.2491704374
A8: 45-54 years | B8: 0.1513977076 | C8: 0.1282198054 | D8: 0.1776315789 | E8: 0.229844098 | F8: 0.1603016591
A9: 55- 64 years | B9: 0.06770017317 | C9: 0.04579278764 | D9: 0.06578947368 | E9: 0.1028953229 | F9: 0.07010558069
A10: Totala | B10: 1 | C10: 1 | D10: 1 | E10: 1 | F10: 1
A11: 2023
A12: 15-24 years | B12: 0.1144546212 | C12: 0.1508651444 | D12: 0.1020857493 | E12: 0.08003429734 | F12: 0.1147883184
A13: 25-34 years | B13: 0.3299178482 | C13: 0.2824993041 | D13: 0.2809821944 | E13: 0.2309160729 | F13: 0.316676204
A14: 35- 44 years | B14: 0.2990436371 | C14: 0.2547041091 | D14: 0.3056256747 | E14: 0.2471722921 | F14: 0.2911612881
A15: 45-54 years | B15: 0.1956059088 | C15: 0.2314256305 | D15: 0.2263998141 | E15: 0.2467842633 | F15: 0.2036226789
A16: 55- 64 years | B16: 0.06097798465 | C16: 0.08050581179 | D16: 0.08490656758 | E16: 0.1950930744 | F16: 0.07375151058
A17: Totala | B17: 1 | C17: 1 | D17: 1 | E17: 1 | F17: 1
A18: 2024
A19: 15-24 years | B19: 0.111 | C19: 0.149 | D19: 0.057 | E19: 0.083 | F19: 0.111
A20: 25-34 years | B20: 0.326 | C20: 0.293 | D20: 0.302 | E20: 0.248 | F20: 0.317
A21: 35- 44 years | B21: 0.298 | C21: 0.247 | D21: 0.314 | E21: 0.243 | F21: 0.29
A22: 45-54 years | B22: 0.199 | C22: 0.223 | D22: 0.227 | E22: 0.242 | F22: 0.205
A23: 55- 64 years | B23: 0.066 | C23: 0.088 | D23: 0.101 | E23: 0.184 | F23: 0.078
A24: Totala | B24: 1 | C24: 1 | D24: 1 | E24: 1 | F24: 1
A25: Source: Stats SA, email communication, 9 September 2024
A26: a Figures should add up vertically and horizontally but may not, owing to rounding, and to the fact that Stats SA disregarded sample sizes smaller than 10 000 as unreliable.

Sheet EAP race&age 01-24%
B4: 2001 | C4: Black | D4: Coloured | E4: Indian | F4: White | G4: Totala
B5: 15–24 years | C5: 0.1778675682 | D5: 0.231 | E5: 0.211 | F5: 0.147 | G5: 0.18 | L5: 2001 | M5: 2024
B6: 25–34 years | C6: 0.3591160221 | D6: 0.343 | E6: 0.298 | F6: 0.245 | G6: 0.34 | K6: 15–24 years | L6: 0.18 | M6: 0.111
B7: 35– 44 years | C7: 0.2439185289 | D7: 0.251 | E7: 0.25 | F7: 0.276 | G7: 0.249 | K7: 25–34 years | L7: 0.34 | M7: 0.317
B8: 45–54 years | C8: 0.1513977076 | D8: 0.128 | E8: 0.178 | F8: 0.23 | G8: 0.16 | K8: 35– 44 years | L8: 0.249 | M8: 0.29
B9: 55– 64 years | C9: 0.06770017317 | D9: 0.046 | E9: 0.066 | F9: 0.103 | G9: 0.07 | K9: 45–54 years | L9: 0.16 | M9: 0.205
B10: Totala | C10: 1 | D10: 1 | E10: 1 | F10: 1 | G10: 1 | K10: 55– 64 years | L10: 0.07 | M10: 0.078
B11: 2024
B12: 15-24 years | C12: 0.111 | D12: 0.149 | E12: 0.057 | F12: 0.083 | G12: 0.111
B13: 25-34 years | C13: 0.326 | D13: 0.293 | E13: 0.302 | F13: 0.248 | G13: 0.317
B14: 35- 44 years | C14: 0.298 | D14: 0.247 | E14: 0.314 | F14: 0.243 | G14: 0.29
B15: 45-54 years | C15: 0.199 | D15: 0.223 | E15: 0.227 | F15: 0.242 | G15: 0.205
B16: 55- 64 years | C16: 0.066 | D16: 0.088 | E16: 0.101 | F16: 0.184 | G16: 0.078
B17: Totala | C17: 1 | D17: 1 | E17: 1 | F17: 1 | G17: 1
B18: Source: CRA calculations based on Stats SA data.
B19: a Figures should add up vertically and horizontally but may not, owing to rounding, and to the fact that Stats SA disregarded sample sizes smaller than 10 000 as unreliable.

Sheet EMPLOYMENT

Sheet Employment by race 94-24
A2: EMPLOYMENT
A4: Stats SA defines the employed as people aged 15 to 64 who, during the reference week: did any work for at least one hour; or had a job or business but were not at work (temporarily absent). This is in accordance with the International Labour Organisation’s definition of employment.
A5: This chapter contains employment figures obtained from Stats SA, primarily from the Quarterly Labour Force Survey (QLFS), which measures both formal and informal employment. The formal, non-agricultural employment data is obtained from the Quarterly Employment Statistics (QES) survey, which collects data from VAT registered businesses (excluding those in agriculture).
A7: Employment by race, 1994-2024
A9: Yeara | B9: Black | C9: Coloured | D9: Indian/Asian | E9: White | F9: Totalb
A10: 1994 | B10: 4980000 | C10: 1220000 | D10: 421000 | E10: 1351000 | F10: 7971000
A11: 1995 | B11: 5124000 | C11: 1160000 | D11: 453000 | E11: 1332000 | F11: 8069000
A12: 1996 | B12: 4535000 | C12: 1262000 | D12: 419000 | E12: 1375000 | F12: 7590000
A13: 1997 | B13: 4580000 | C13: 1202000 | D13: 457000 | E13: 1309000 | F13: 7548000
A14: 1998 | B14: 5922000 | C14: 1177000 | D14: 342000 | E14: 1935000 | F14: 9390000
A15: 1999 | B15: 6668000 | C15: 1288000 | D15: 392000 | E15: 2004000 | F15: 10369000
A16: 2000 | B16: 8124000 | C16: 1318000 | D16: 395000 | E16: 2037000 | F16: 11880000
A17: 2001 | B17: 8680000 | C17: 1352000 | D17: 386000 | E17: 2075000 | F17: 12494000
A18: 2002 | B18: 8161000 | C18: 1363000 | D18: 368000 | E18: 2104000 | F18: 11995000
A19: 2003 | B19: 7815000 | C19: 1408000 | D19: 396000 | E19: 2047000 | F19: 11666000
A20: 2004 | B20: 7945000 | C20: 1445000 | D20: 388000 | E20: 2045000 | F20: 11823000
A21: 2005 | B21: 8572000 | C21: 1455000 | D21: 415000 | E21: 2062000 | F21: 12503000
A22: 2006 | B22: 9271000 | C22: 1469000 | D22: 441000 | E22: 2056000 | F22: 13237000
A23: 2007 | B23: 9362000 | C23: 1494000 | D23: 427000 | E23: 2042000 | F23: 13236000
A24: 2008 | B24: 10363000 | C24: 1560000 | D24: 477000 | E24: 2185000 | F24: 14584000
A25: 2009 | B25: 10119000 | C25: 1588000 | D25: 474000 | E25: 2176000 | F25: 14357000
A26: 2010 | B26: 9700000 | C26: 1531000 | D26: 502000 | E26: 2076000 | F26: 13809000
A27: 2011 | B27: 9868000 | C27: 1470000 | D27: 502000 | E27: 2082000 | F27: 13922000
A28: 2012 | B28: 10297000 | C28: 1524000 | D28: 482000 | E28: 2027000 | F28: 14330000
A29: 2013 | B29: 10623000 | C29: 1541000 | D29: 516000 | E29: 2011000 | F29: 14692000
A30: 2014 | B30: 11072000 | C30: 1601000 | D30: 485000 | E30: 1936000 | F30: 15094000
A31: 2015 | B31: 11625000 | C31: 1613000 | D31: 488000 | E31: 1930000 | F31: 15657000
A32: 2016 | B32: 11506000 | C32: 1609000 | D32: 505000 | E32: 1926000 | F32: 15545000
A33: 2017 | B33: 12025000 | C33: 1631000 | D33: 526000 | E33: 1918000 | F33: 16100000
A34: 2018 | B34: 12172000 | C34: 1716000 | D34: 547000 | E34: 1853000 | F34: 16288000
A35: 2019 | B35: 12250000 | C35: 1687000 | D35: 530000 | E35: 1845000 | F35: 16313000
A36: 2020 | B36: 10555000 | C36: 1412000 | D36: 488000 | E36: 1693000 | F36: 14148000
A37: 2021 | B37: 11264000 | C37: 1416000 | D37: 487000 | E37: 1941000 | F37: 14942000
A38: 2022 | B38: 11789000 | C38: 1531000 | D38: 543000 | E38: 1699000 | F38: 15562000
A39: 2023 | B39: 12358000 | C39: 1727000 | D39: 522000 | E39: 1739000 | F39: 16346000
A40: 2024 | B40: 12668000 | C40: 1685000 | D40: 552000 | E40: 1748000 | F40: 16652000
A41: 1994-2024 | B41: =(B40-B10)/B10 -> 1.5437751 | C41: =(C40-C10)/C10 -> 0.381147541 | D41: 0.3111638955 | E41: =(E40-E10)/E10 -> 0.2938564027 | F41: 1.089072889
A42: 2023-24 | B42: =(B40-B39)/B39 -> 0.0250849652 | C42: =(C40-C39)/C39 -> -0.02431962942 | D42: 0.05747126437 | E42: =(E40-E39)/E39 -> 0.005175388154 | F42: 0.01872017619
A43: Source: Stats SA, Stats in brief, 2004, 2004, p67; Labour Force Survey Historical Revision March Series 2001-2007, Statistical release P0210, 28 August 2008; Quarterly Labour Force Survey Historical revisions of the QLFS 2008 to 2013, 11 February 2014; Quarterly Labour Force Survey Quarter 2: 2021, Statistical release P0211, 24 August 2021, pp21-22; Socio-Economic Survey of South Africa 2022, p238; Economically active population QLFS Q2 2022, accessed 4 October 2022; Economically active population QLFS Q2 2023, accessed 20 November 202; Economically active population QLFS Q2 2024, accessed 18 August 2024
A44: a From 1994 to 1999, the figures are based on October Household Surveys. For 2000 the figures are from the February 2000, Labour Force Survey. From 2001 to 2007, the figures are based on the Labour Force Survey Historical Revision March Series. From 2008 to 2013 the figures are based on the Quarterly Labour Force Survey Historical revisions of the QLFS 2008 to 2013, and refers to the second quarter. Therefore, only the figures from 2008 to 2024 are strictly comparable.
A45: b Totals should add up horizontally but may not, owing to rounding.

Sheet Employmentbyrace.age 2001-24
B2: Employment by race and age (actual numbers), 2001-24
B4: 2001 | C4: Black | D4: Coloured | E4: Indian/Asian | F4: White | G4: Totala
B5: 15–24 years | C5: 972000 | D5: 234000 | E5: 60000 | F5: 267000 | G5: 1532000
B6: 25–34 years | C6: 2897000 | D6: 479000 | E6: 123000 | F6: 510000 | G6: 4009000
B7: 35– 44 years | C7: 2447000 | D7: 372000 | E7: 104000 | F7: 592000 | G7: 3515000
B8: 45–54 years | C8: 1608000 | D8: 194000 | E8: 71000 | F8: 488000 | G8: 2361000
B9: 55– 64 years | C9: 756000 | D9: 73000 | E9: 29000 | F9: 219000 | G9: 1077000
B10: Totala | C10: 8680000 | D10: 1352000 | E10: 386000 | F10: 2075000 | G10: 12494000
B11: 2023
B12: 15–24 years | C12: 748000 | D12: 202000 | E12: 35000 | F12: 110000 | G12: 1095000
B13: 25–34 years | C13: 3627000 | D13: 470000 | E13: 142000 | F13: 390000 | G13: 4629000
B14: 35– 44 years | C14: 4014000 | D14: 444000 | E14: 173000 | F14: 440000 | G14: 5069000
B15: 45–54 years | C15: 2943000 | D15: 449000 | E15: 126000 | F15: 440000 | G15: 3958000
B16: 55– 64 years | C16: 1027000 | D16: 163000 | E16: 46000 | F16: 360000 | G16: 1595000
B17: Totala | C17: 12358000 | D17: 1727000 | E17: 522000 | F17: 1739000 | G17: 16346000
B18: 2024
B19: 15–24 years | C19: 772000 | D19: 166000 | E19: 24000 | F19: 127000 | G19: 1089000
B20: 25–34 years | C20: 3571000 | D20: 487000 | E20: 152000 | F20: 420000 | G20: 4630000
B21: 35– 44 years | C21: 4118000 | D21: 444000 | E21: 186000 | F21: 421000 | G21: 5169000
B22: 45–54 years | C22: 3078000 | D22: 413000 | E22: 131000 | F22: 443000 | G22: 4065000
B23: 55– 64 years | C23: 1129000 | D23: 175000 | E23: 59000 | F23: 338000 | G23: 1701000
B24: Totala | C24: 12668000 | D24: 1685000 | E24: 552000 | F24: 1748000 | G24: 16652000
B25: 2001-24 | C25: =(C24-C10)/C10 -> 0.4594470046 | D25: =(D24-D10)/D10 -> 0.2463017751 | E25: =(E24-E10)/E10 -> 0.4300518135 | F25: =(F24-F10)/F10 -> -0.1575903614 | G25: =(G24-G10)/G10 -> 0.3327997439
B26: 2023-24 | C26: =(C24-C17)/C17 -> 0.0250849652 | D26: =(D24-D17)/D17 -> -0.02431962942 | E26: =(E24-E17)/E17 -> 0.05747126437 | F26: 0.005175388154 | G26: =(G24-G17)/G17 -> 0.01872017619
B27: Source: Stats SA, email communication, 28 October 2024
B28: a Figures should add up vertically and horizontally but may not, owing to rounding, and to the fact that Stats SA disregarded sample sizes smaller than 10 000 as unreliable.

Sheet Employmentbyrace.age% 2001-24
C2: Employment by race and age (proportions), 2001-24
C4: 2001 | D4: Black | E4: Coloured | F4: Indian/Asian | G4: White | H4: Totala
C5: 15-24 years | D5: 0.112 | E5: 0.173 | F5: 0.155 | G5: 0.129 | H5: 0.123 | Q5: 2001 | R5: 2024
C6: 25-34 years | D6: 0.334 | E6: 0.354 | F6: 0.319 | G6: 0.246 | H6: 0.321 | P6: 15–24 years | Q6: 0.123 | R6: 0.06539754984
C7: 35- 44 years | D7: 0.282 | E7: 0.275 | F7: 0.269 | G7: 0.285 | H7: 0.281 | P7: 25–34 years | Q7: 0.321 | R7: 0.2780446793
C8: 45-54 years | D8: 0.185 | E8: 0.143 | F8: 0.184 | G8: 0.235 | H8: 0.189 | P8: 35– 44 years | Q8: 0.281 | R8: 0.3104131636
C9: 55- 64 years | D9: 0.087 | E9: 0.054 | F9: 0.075 | G9: 0.106 | H9: 0.086 | P9: 45–54 years | Q9: 0.189 | R9: 0.244114821
C10: Totala | D10: 1 | E10: 1 | F10: 1 | G10: 1 | H10: 1 | P10: 55– 64 years | Q10: 0.086 | R10: 0.1021498919
C11: 2023
C12: 15-24 years | D12: 0.06049238255 | E12: 0.1168050624 | F12: 0.06762871078 | G12: 0.06348945127 | H12: 0.06698772767
C13: 25-34 years | D13: 0.2935094345 | E13: 0.2720794558 | F13: 0.2729341337 | G13: 0.2239714463 | H13: 0.2831901133
C14: 35- 44 years | D14: 0.3247683324 | E14: 0.256905425 | F14: 0.3307968243 | G14: 0.252733421 | H14: 0.3101280903
C15: 45-54 years | D15: 0.2381653691 | E15: 0.2598935321 | F15: 0.2414468722 | G15: 0.2527981465 | H15: 0.2421222604
C16: 55- 64 years | D16: 0.08306448143 | E16: 0.09431652463 | F16: 0.08719345905 | G16: 0.207007535 | H16: 0.09757180834
C17: Totala | D17: 1 | E17: 1 | F17: 1 | G17: 1 | H17: 1
C18: 2024
C19: 15-24 years | D19: 0.061 | E19: 0.09851632047 | F19: 0.04347826087 | G19: 0.07265446224 | H19: 0.06539754984
C20: 25-34 years | D20: 0.282 | E20: 0.289 | F20: 0.275 | G20: 0.24 | H20: 0.2780446793
C21: 35- 44 years | D21: 0.325 | E21: 0.264 | F21: 0.337 | G21: 0.241 | H21: 0.3104131636
C22: 45-54 years | D22: 0.243 | E22: 0.245 | F22: 0.2373188406 | G22: 0.253 | H22: 0.244114821
C23: 55- 64 years | D23: 0.089 | E23: 0.104 | F23: 0.107 | G23: 0.193 | H23: 0.1021498919
C24: Totala | D24: 1 | E24: 1 | F24: 1 | G24: 1 | H24: 1
C25: Source: Stats SA, email communication, 28 October 2024
C26: a Figures should add up vertically and horizontally but may not, owing to rounding, and to the fact that Stats SA disregarded sample sizes smaller than 10 000 as unreliable. | W26: 2024 | X26: Black | Y26: Coloured | Z26: Indian | AA26: White | AB26: Total
W28: 15-24 | X28: =SUM(Q38/Q43) -> 0.06095369841 | Y28: =SUM(R38/R43) -> 0.09836950198 | Z28: =SUM(S38/S43) -> 0.0441342138 | AA28: =SUM(T38/T43) -> 0.07239961663 | AB28: =SUM(U38/U43) -> 0.06538225004
W29: 25-34 | X29: =SUM(Q39/Q43) -> 0.2819240971 | Y29: =SUM(R39/R43) -> 0.2889298766 | Z29: =SUM(S39/S43) -> 0.2745529165 | AA29: =SUM(T39/T43) -> 0.240203127 | AB29: =SUM(U39/U43) -> 0.2780097539
W30: 35-44 | X30: =SUM(Q40/Q43) -> 0.3250506848 | Y30: =SUM(R40/R43) -> 0.2635457306 | Z30: =SUM(S40/S43) -> 0.3368946669 | AA30: =SUM(T40/T43) -> 0.240806214 | AB30: =SUM(U40/U43) -> 0.3103801131
W31: 45-54 | X31: =SUM(Q41/Q43) -> 0.2429736196 | Y31: =SUM(R41/R43) -> 0.2449742241 | Z31: =SUM(S41/S43) -> 0.2377864794 | AA31: =SUM(T41/T43) -> 0.2532942338 | AB31: =SUM(U41/U43) -> 0.2440871799
W32: 55-64 | X32: =SUM(Q42/Q43) -> 0.08909782113 | Y32: =SUM(R42/R43) -> 0.1041806667 | Z32: =SUM(S42/S43) -> 0.1066317235 | AA32: =SUM(T42/T43) -> 0.1932968086 | AB32: =SUM(U42/U43) -> 0.2440871799
W33: Total | X33: =SUM(X28:X32) -> 0.9999999211 | Y33: =SUM(Y28:Y32) -> 1 | Z33: =SUM(Z28:Z32) -> 1 | AA33: =SUM(AA28:AA32) -> 1 | AB33: =SUM(AB28:AB32) -> 1.141946477
Q37: Black | R37: Coloured | S37: Indian/Asian | T37: White | U37: Total
P38: 15-24 years | Q38: 772162 | R38: 165705 | S38: 24368 | T38: 126531 | U38: 1088767
P39: 25-34 years | Q39: 3571417 | R39: 486707 | S39: 151590 | T39: 419797 | U39: 4629511
P40: 35- 44 years | Q40: 4117745 | R40: 443947 | S40: 186011 | T40: 420851 | U40: 5168553
P41: 45-54 years | Q41: 3077992 | R41: 412663 | S41: 131290 | T41: 442676 | U41: 4064621
P42: 55- 64 years | Q42: 1128692 | R42: 175494 | S42: 58875 | T42: 337820 | U42: 4064621
P43: Totala | Q43: 12668009 | R43: 1684516 | S43: 552134 | T43: 1747675 | U43: 16652333

Sheet Employment by industry

Sheet Formal empl. by industry 90-24
A2: Employment by industry
A4: Formal employment by industrya (actual numbers), 1990-2024
I6: —Community, social and personal services—
A7: Year | B7: Miningb | C7: Manufacturingc | D7: Utilitiesd | E7: Constructione | F7: Tradef | G7: Transport | H7: Financeg | I7: Government sector | J7: Other servicesh | K7: Totali | L7: Total
A8: 1990 | B8: 692900 | C8: 1537511 | D8: 50920 | E8: 417600 | F8: 788100 | G8: 361268 | H8: 186280 | I8: 1310484 | J8: N/A | K8: 1323884 | L8: 5358463
A9: 1991 | B9: 653134 | C9: 1499484 | D9: 47940 | E9: 391100 | F9: 781600 | G9: 343340 | H9: 186545 | I9: 1321498 | J9: N/A | K9: 1335498 | L9: 5238641
A10: 1992 | B10: 607950 | C10: 1453151 | D10: 45890 | E10: 373700 | F10: 775000 | G10: 334995 | H10: 190503 | I10: 1330333 | J10: N/A | K10: 1344433 | L10: 5125622
A11: 1993 | B11: 561655 | C11: 1425626 | D11: 42480 | E11: 374529 | F11: 762000 | G11: 303072 | H11: 193076 | I11: 1324937 | J11: N/A | K11: 1340037 | L11: 5002475
A12: 1994 | B12: 613584 | C12: 1421815 | D12: 39975 | E12: 366173 | F12: 730005 | G12: 280642 | H12: 193779 | I12: 1572706 | J12: N/A | K12: 1587386 | L12: 5233359
A13: 1995 | B13: 599885 | C13: 1437553 | D13: 39684 | E13: 359126 | F13: 751629 | G13: 284348 | H13: 200981 | I13: 1450838 | J13: N/A | K13: 1465808 | L13: 5139014
A14: 1996 | B14: 563396 | C14: 1456367 | D14: 40112 | E14: 325926 | F14: 757475 | G14: 283275 | H14: 215250 | I14: 1582721 | J14: N/A | K14: 1596771 | L14: 5238572
A15: 1997 | B15: 558256 | C15: 1395636 | D15: 39613 | E15: 313608 | F15: 764162 | G15: 276085 | H15: 217180 | I15: 1583855 | J15: N/A | K15: 1596745 | L15: 5161285
A16: 1998 | B16: 462166 | C16: 1351568 | D16: 38519 | E16: 284132 | F16: 800433 | G16: 245483 | H16: 218286 | I16: 1566896 | J16: N/A | K16: 1577616 | L16: 4978203
A17: 1999 | B17: 441459 | C17: 1314488 | D17: 43167 | E17: 232174 | F17: 872316 | G17: 243180 | H17: 204665 | I17: 1523932 | J17: N/A | K17: 1534583 | L17: 4886032
A18: 2000 | B18: 412752 | C18: 1306795 | D18: 39743 | E18: 222999 | F18: 865977 | G18: 221522 | H18: 196699 | I18: 1462605 | J18: N/A | K18: 1473408 | L18: 4739895
A19: 2001 | B19: 404963 | C19: 1259672 | D19: 39235 | E19: 224906 | F19: 884877 | G19: 207723 | H19: 192649 | I19: 1436272 | J19: N/A | K19: 1445723 | L19: 4659748
A20: 2002 | B20: 409677 | C20: 1261309 | D20: 38663 | E20: 213528 | F20: 885193 | G20: 199843 | H20: 186092 | I20: 1441396 | J20: N/A | K20: 1451710 | L20: 4646015
A21: 2003 | B21: 419942 | C21: 1237015 | D21: 42565 | E21: 295597 | F21: 1263937 | G21: 206112 | H21: 1131230 | I21: 1428056 | J21: 310927 | K21: 1738983 | L21: 6335381
A22: 2004 | B22: 457295 | C22: 1265358 | D22: 43932 | E22: 272693 | F22: 1276554 | G22: 206134 | H22: 1171798 | I22: 1453547 | J22: 344303 | K22: 1797850 | L22: 6491614
A23: 2005 | B23: 443790 | C23: 1182056 | D23: 43698 | E23: 431841 | F23: 1373336 | G23: 320398 | H23: 1478210 | I23: 1500771 | J23: 307390 | K23: 1804584 | L23: 7077913
A24: 2006 | B24: 458506 | C24: 1331332 | D24: 51503 | E24: 455772 | F24: 1663744 | G24: 352494 | H24: 1744558 | I24: 1574021 | J24: 427436 | K24: 2001457 | L24: 8059366
A25: 2007 | B25: 496894 | C25: 1323498 | D25: 53641 | E25: 472571 | F25: 1729861 | G25: 358939 | H25: 1824609 | I25: 1622622 | J25: 405783 | K25: 2028405 | L25: 8288420
A26: 2008 | B26: 519943 | C26: 1306588 | D26: 58686 | E26: 474108 | F26: 1725813 | G26: 363556 | H26: 1907412 | I26: 1700459 | J26: 399599 | K26: 2100058 | L26: 8456164
A27: 2009 | B27: 487132 | C27: 1203405 | D27: 55366 | E27: 424138 | F27: 1641843 | G27: 361340 | H27: 1794979 | I27: 1781092 | J27: 429581 | K27: 2210673 | L27: 8178876
A28: 2010 | B28: 496710 | C28: 1176113 | D28: 56156 | E28: 437721 | F28: 1676307 | G28: 379547 | H28: 1815187 | I28: 1816509 | J28: 430166 | K28: 2246676 | L28: 8284416
A29: 2011 | B29: 517104 | C29: 1161491 | D29: 58572 | E29: 469231 | F29: 1741054 | G29: 396255 | H29: 1906361 | I29: 1903542 | J29: 452380 | K29: 2355922 | L29: 8605990
A30: 2012 | B30: 534344 | C30: 1161333 | D30: 59405 | E30: 509477 | F30: 1811938 | G30: 436190 | H30: 1967082 | I30: 1943360 | J30: 466183 | K30: 2409543 | L30: 8889313
A31: 2013 | B31: 510753 | C31: 1162172 | D31: 59665 | E31: 523979 | F31: 1843680 | G31: 453245 | H31: 2009599 | I31: 1973835 | J31: 472929 | K31: 2446764 | L31: 9009858
A32: 2014 | B32: 490684 | C32: 1159827 | D32: 59255 | E32: 554291 | F32: 1889445 | G32: 459663 | H32: 2037537 | I32: 2230396 | J32: 485067 | K32: 2715463 | L32: 9366164
A33: 2015 | B33: 488746 | C33: 1164076 | D33: 60203 | E33: 556166 | F33: 1926183 | G33: 464175 | H33: 2088548 | I33: 2060843 | J33: 484106 | K33: 2544948 | L33: 9293045
A34: 2016 | B34: 458346 | C34: 1181812 | D34: 62369 | E34: 614046 | F34: 2051377 | G34: 463566 | H34: 2188533 | I34: 2079220 | J34: 534475 | K34: 2613694 | L34: 9633743
A35: 2017 | B35: 471579 | C35: 1193089 | D35: 63860 | E35: 626785 | F35: 2122156 | G35: 469989 | H35: 2232988 | I35: 2037886 | J35: 582982 | K35: 2620868 | L35: 9801315
A36: 2018 | B36: 459380 | C36: 1212249 | D36: 62595 | E36: 637948 | F36: 2199340 | G36: 482684 | H36: 2301337 | I36: 2048505 | J36: 638348 | K36: 2686853 | L36: 10042386
A37: 2019 | B37: 462492 | C37: 1219499 | D37: 61074 | E37: 599369 | F37: 2264106 | G37: 497347 | H37: 2342519 | I37: 2109362 | J37: 664726 | K37: 2774088 | L37: 10220494
A38: 2020 | B38: 452138 | C38: 1112947 | D38: 58818 | E38: 488703 | F38: 2074255 | G38: 459891 | H38: 2179761 | I38: 2077812 | J38: 602577 | K38: 2683999 | L38: 9506902
A39: 2021 | B39: 461026 | C39: 1092557 | D39: 57437 | E39: 476185 | F39: 2118834 | G39: 453251 | H39: 2164836 | I39: 2136451 | J39: 607018 | K39: 2743469 | L39: 9567595
A40: 2022 | B40: 462231 | C40: 1170357 | D40: 59607 | E40: 521403 | F40: 2140172 | G40: 411919 | H40: 2311673 | I40: 2216843 | J40: 656173 | K40: 2873016 | L40: 9950378
A41: 2023 | B41: 477574 | C41: 1185686 | D41: 58977 | E41: 505089 | F41: 2138408 | G41: 407234 | H41: 2339992 | I41: 2302335 | J41: 662021 | K41: 2964355 | L41: 10077316
A42: 2024 | B42: 472153 | C42: 1292451 | D42: 63630 | E42: 590714 | F42: 2322445 | G42: 479596 | H42: 2473349 | I42: 2293428 | J42: 656335 | K42: 3021246 | L42: 10715584
A43: 1990-2024 | B43: =(B42-B8)/B8 -> -0.3185842113 | C43: =(C42-C8)/C8 -> -0.1593874776 | D43: 0.249607227 | E43: 0.4145450192 | F43: 1.946891257 | G43: 0.327535237 | H43: 12.2775875 | I43: 0.7500618092 | J43: =(J42-J21)/J21 -> 1.110897413 | K43: 1.282107798 | L43: 0.999749555
A44: 2023-24 | B44: =(B42-B41)/B41 -> -0.01135112045 | C44: =(C42-C41)/C41 -> 0.09004491914 | D44: 0.07889516252 | E44: 0.1695245788 | F44: 0.08606262229 | G44: 0.1776914501 | H44: 0.05699036578 | I44: -0.003868681143 | J44: -0.008588851411 | K44: 0.019191696 | L44: 0.06333710286
A45: Source: Stats SA, South African Statistics 2010-12; Quarterly employment statistics (QES) details breakdown, Statistical release P0277, 28 September 2021, accessed 7 October 2021; Quarterly Employment Statistics: June 2022 (QES) details breakdown 2009-2022, accessed 12 October 2022; Quarterly Employment Statistics: September 2023 (QES) details breakdown 2009-2023, accessed 12 November 2023; Quarterly Employment Statistics (QES) details breakdown details breakdown 2009-2024Q2, accessed 27 September 2024
A46: a The figures in this table are based on Survey of employment and earnings, Statistical release P0275, and, as from 2005, on the Quarterly employment statistics survey.
A47: b Former Transkei, Bophuthatswana, Venda and Ciskei (TBVC) states figures are included as from January 1994. The total employment in these states for January 1994 amounted to approximately 9% of the total employment of the mining and quarrying sector.
A48: c Former TBVC states figures are included as from January 1996. The total employment in these states for January 1996 amounted to 5.8% of the total employment of the manufacturing sector.
A49: d The figures are based on a sample survey and refer to private establishments and public corporations which have as their main activity the generation and/or distribution of electricity, gas, and water supply. As from January 1996, data on the electricity sector also include particulars of the former TBVC states. The contribution regarding former TBVC states for March 1996 was 1.9% of the total employment of the electricity sector. As from 1998, there has been a reclassification of water boards from local governments into the electricity, gas, and water supply industry.
A50: e As from January 1996, figures representing employment in the private construction industry also include particulars of the former TBVC states. The former TBVC contribution to the employment of the construction industry in 1996 was 0.1%.
A51: f The figures on the formal TBVC states relating to wholesale and retail trade; repair of motor vehicles, motorcycles and personal and household goods, and hotels and restaurants were included as from the first quarter of 1996. The total employment of the commercial industries in these areas for March 1996 was about 0.1% of the total employment for the wholesale trade industry, 1% for the retail trade industry, and 0.7% for the motor trade industry. For the hotels industry, the former TBVC states figures were included from 1995. The total employment in these states was approximately 16% of the total employment of the hotels industry.
A52: g The former TBVC states figures for banking institutions, building societies and insurance companies, were included as from the first quarter of 1995. The total employment in these states for March 1995 was approximately 1% of the total employment of the financial institutions industry.
A53: h The Other services include activities of membership organisation; recreational, cultural, and sporting activities; and other services.
A54: i The information on the governments and the local governments of the former TBVC states was included in the public sector from the first quarter of 1995. The total employment in these states for June 1994 was approximately 12% of the total employment of the public sector. The information on all the universities of the former TBVC states is included in the public sector from the first quarter of 1996. The total employment for universities in these states for March 1996 was approximately 11% of the total employment of the universities.
A55: From 1990 to 2004 data coverage is restricted to both employing and non-employing VAT registered enterprises with an annual turnover of R300 000 or more.
A56: As from December 2004, the employment statistics survey covers employing enterprises in the formal non-agricultural non-domestic business sector that are registered for income tax (IT), resulting in the extensive coverage of all small businesses. The samples for the survey are drawn from Stats SA’s Business Register, a registry of business information which serves as a key source of economic information. It records when businesses enter, perform in and exit the economy. The information is collected from businesses that operate within the borders of South Africa through questionnaires.
A57: The new sample was introduced from the June quarter of 2006.
A58: It is important to distinguish between the lift in the level of the series from improvements in the coverage of employers and the growth in employment shown by the series due to new employer entities entering the economy and continuing employers taking on additional staff.
A59: This break in series relates mainly to the level of employment, rather than the growth rate of employment. The published series based on the 2004 sample show somewhat smaller growth than would have been shown from a sample revised in 2005.
A60: The growth of the series between 2004 and 2006 was affected by the expansion of the formal sector as a result of legislative changes, growth resulting from small businesses moving from the informal to the formal sector, and greater overall compliance by businesses in registering for PAYE and/or UIF.
A61: Employment refers to the number of people employed by the business who received payment (in salaries; wages; commission, in addition to a retainer, salary or wage; piece rates; or payments in kind) for any part of the reference period. This excludes independent contractors and consultants; working proprietors, sole and joint owners; employees paid on commission where a retainer, salary or wage was not paid; and employees based in South Africa but paid from abroad, e.g. embassy employees.
A62: Annual employment data is shown as at 30 June of the relevant year.
A64: For sectoral contributions to GDP, please refer to the Economy chapter.

Sheet Employ by industry % 90-24
A1: NOT FOR TYPSETTING BUT KEEP IN EXCEL
A2: Formal employment by industrya (proportions), 1990-2024
I4: —Community, social and personal services—
A5: Year | B5: Miningb | C5: Manufacturingc | D5: Utilitiesd | E5: Constructione | F5: Tradef | G5: Transport | H5: Financeg | I5: Government sector | J5: Other servicesh | K5: Totali | L5: Total
A6: 1990 | B6: =('Formal empl. by industry 90-24'!B8/'Formal empl. by industry 90-24'!L8) -> 0.129309468 | C6: =('Formal empl. by industry 90-24'!C8/'Formal empl. by industry 90-24'!L8) -> 0.2869313458 | D6: =('Formal empl. by industry 90-24'!D8/'Formal empl. by industry 90-24'!L8) -> 0.009502724942 | E6: =('Formal empl. by industry 90-24'!E8/'Formal empl. by industry 90-24'!L8) -> 0.07793279528 | F6: =('Formal empl. by industry 90-24'!F8/'Formal empl. by industry 90-24'!L8) -> 0.1470757566 | G6: =('Formal empl. by industry 90-24'!G8/'Formal empl. by industry 90-24'!L8) -> 0.06742007923 | H6: =('Formal empl. by industry 90-24'!H8/'Formal empl. by industry 90-24'!L8) -> 0.03476369996 | I6: =('Formal empl. by industry 90-24'!I8/'Formal empl. by industry 90-24'!L8) -> 0.2445634131 | J6: N/A | K6: ='Formal empl. by industry 90-24'!K8/'Formal empl. by industry 90-24'!L8 -> 0.2470641301 | L6: =('Formal empl. by industry 90-24'!L8/'Formal empl. by industry 90-24'!L8) -> 1
A7: 1991 | B7: =('Formal empl. by industry 90-24'!B9/'Formal empl. by industry 90-24'!L9) -> 0.1246762281 | C7: =('Formal empl. by industry 90-24'!C9/'Formal empl. by industry 90-24'!L9) -> 0.2862353042 | D7: =('Formal empl. by industry 90-24'!D9/'Formal empl. by industry 90-24'!L9) -> 0.009151228343 | E7: =('Formal empl. by industry 90-24'!E9/'Formal empl. by industry 90-24'!L9) -> 0.0746567669 | F7: =('Formal empl. by industry 90-24'!F9/'Formal empl. by industry 90-24'!L9) -> 0.1491990003 | G7: =('Formal empl. by industry 90-24'!G9/'Formal empl. by industry 90-24'!L9) -> 0.06553989861 | H7: =('Formal empl. by industry 90-24'!H9/'Formal empl. by industry 90-24'!L9) -> 0.03560942619 | I7: =('Formal empl. by industry 90-24'!I9/'Formal empl. by industry 90-24'!L9) -> 0.2522596987 | J7: N/A | K7: ='Formal empl. by industry 90-24'!K9/'Formal empl. by industry 90-24'!L9 -> 0.2549321475 | L7: =('Formal empl. by industry 90-24'!L9/'Formal empl. by industry 90-24'!L9) -> 1
A8: 1992 | B8: =('Formal empl. by industry 90-24'!B10/'Formal empl. by industry 90-24'!L10) -> 0.118609995 | C8: =('Formal empl. by industry 90-24'!C10/'Formal empl. by industry 90-24'!L10) -> 0.2835072504 | D8: =('Formal empl. by industry 90-24'!D10/'Formal empl. by industry 90-24'!L10) -> 0.008953059746 | E8: =('Formal empl. by industry 90-24'!E10/'Formal empl. by industry 90-24'!L10) -> 0.0729082246 | F8: =('Formal empl. by industry 90-24'!F10/'Formal empl. by industry 90-24'!L10) -> 0.1512011615 | G8: =('Formal empl. by industry 90-24'!G10/'Formal empl. by industry 90-24'!L10) -> 0.06535694595 | H8: =('Formal empl. by industry 90-24'!H10/'Formal empl. by industry 90-24'!L10) -> 0.03716680629 | I8: =('Formal empl. by industry 90-24'!I10/'Formal empl. by industry 90-24'!L10) -> 0.2595456707 | J8: N/A | K8: ='Formal empl. by industry 90-24'!K10/'Formal empl. by industry 90-24'!L10 -> 0.2622965564 | L8: =('Formal empl. by industry 90-24'!L10/'Formal empl. by industry 90-24'!L10) -> 1
A9: 1993 | B9: =('Formal empl. by industry 90-24'!B11/'Formal empl. by industry 90-24'!L11) -> 0.1122754237 | C9: =('Formal empl. by industry 90-24'!C11/'Formal empl. by industry 90-24'!L11) -> 0.2849841329 | D9: =('Formal empl. by industry 90-24'!D11/'Formal empl. by industry 90-24'!L11) -> 0.008491796561 | E9: =('Formal empl. by industry 90-24'!E11/'Formal empl. by industry 90-24'!L11) -> 0.07486873997 | F9: =('Formal empl. by industry 90-24'!F11/'Formal empl. by industry 90-24'!L11) -> 0.1523245993 | G9: =('Formal empl. by industry 90-24'!G11/'Formal empl. by industry 90-24'!L11) -> 0.06058441072 | H9: =('Formal empl. by industry 90-24'!H11/'Formal empl. by industry 90-24'!L11) -> 0.03859609493 | I9: =('Formal empl. by industry 90-24'!I11/'Formal empl. by industry 90-24'!L11) -> 0.2648562961 | J9: N/A | K9: ='Formal empl. by industry 90-24'!K11/'Formal empl. by industry 90-24'!L11 -> 0.267874802 | L9: =('Formal empl. by industry 90-24'!L11/'Formal empl. by industry 90-24'!L11) -> 1
A10: 1994 | B10: =('Formal empl. by industry 90-24'!B12/'Formal empl. by industry 90-24'!L12) -> 0.1172447753 | C10: =('Formal empl. by industry 90-24'!C12/'Formal empl. by industry 90-24'!L12) -> 0.2716830624 | D10: =('Formal empl. by industry 90-24'!D12/'Formal empl. by industry 90-24'!L12) -> 0.007638497569 | E10: =('Formal empl. by industry 90-24'!E12/'Formal empl. by industry 90-24'!L12) -> 0.0699690199 | F10: =('Formal empl. by industry 90-24'!F12/'Formal empl. by industry 90-24'!L12) -> 0.1394907171 | G10: =('Formal empl. by industry 90-24'!G12/'Formal empl. by industry 90-24'!L12) -> 0.05362559687 | H10: =('Formal empl. by industry 90-24'!H12/'Formal empl. by industry 90-24'!L12) -> 0.03702765279 | I10: =('Formal empl. by industry 90-24'!I12/'Formal empl. by industry 90-24'!L12) -> 0.3005155962 | J10: N/A | K10: ='Formal empl. by industry 90-24'!K12/'Formal empl. by industry 90-24'!L12 -> 0.303320678 | L10: =('Formal empl. by industry 90-24'!L12/'Formal empl. by industry 90-24'!L12) -> 1
A11: 1995 | B11: =('Formal empl. by industry 90-24'!B13/'Formal empl. by industry 90-24'!L13) -> 0.1167315364 | C11: =('Formal empl. by industry 90-24'!C13/'Formal empl. by industry 90-24'!L13) -> 0.2797332329 | D11: =('Formal empl. by industry 90-24'!D13/'Formal empl. by industry 90-24'!L13) -> 0.00772210389 | E11: =('Formal empl. by industry 90-24'!E13/'Formal empl. by industry 90-24'!L13) -> 0.06988227703 | F11: =('Formal empl. by industry 90-24'!F13/'Formal empl. by industry 90-24'!L13) -> 0.1462593797 | G11: =('Formal empl. by industry 90-24'!G13/'Formal empl. by industry 90-24'!L13) -> 0.05533123669 | H11: =('Formal empl. by industry 90-24'!H13/'Formal empl. by industry 90-24'!L13) -> 0.03910886407 | I11: =('Formal empl. by industry 90-24'!I13/'Formal empl. by industry 90-24'!L13) -> 0.2823183591 | J11: N/A | K11: ='Formal empl. by industry 90-24'!K13/'Formal empl. by industry 90-24'!L13 -> 0.2852313693 | L11: =('Formal empl. by industry 90-24'!L13/'Formal empl. by industry 90-24'!L13) -> 1
A12: 1996 | B12: =('Formal empl. by industry 90-24'!B14/'Formal empl. by industry 90-24'!L14) -> 0.1075476294 | C12: =('Formal empl. by industry 90-24'!C14/'Formal empl. by industry 90-24'!L14) -> 0.2780083962 | D12: =('Formal empl. by industry 90-24'!D14/'Formal empl. by industry 90-24'!L14) -> 0.007657048524 | E12: =('Formal empl. by industry 90-24'!E14/'Formal empl. by industry 90-24'!L14) -> 0.06221657352 | F12: =('Formal empl. by industry 90-24'!F14/'Formal empl. by industry 90-24'!L14) -> 0.1445957028 | G12: =('Formal empl. by industry 90-24'!G14/'Formal empl. by industry 90-24'!L14) -> 0.05407485093 | H12: =('Formal empl. by industry 90-24'!H14/'Formal empl. by industry 90-24'!L14) -> 0.04108944193 | I12: =('Formal empl. by industry 90-24'!I14/'Formal empl. by industry 90-24'!L14) -> 0.3021283281 | J12: N/A | K12: ='Formal empl. by industry 90-24'!K14/'Formal empl. by industry 90-24'!L14 -> 0.3048103567 | L12: =('Formal empl. by industry 90-24'!L14/'Formal empl. by industry 90-24'!L14) -> 1
A13: 1997 | B13: =('Formal empl. by industry 90-24'!B15/'Formal empl. by industry 90-24'!L15) -> 0.1081622115 | C13: =('Formal empl. by industry 90-24'!C15/'Formal empl. by industry 90-24'!L15) -> 0.2704047539 | D13: =('Formal empl. by industry 90-24'!D15/'Formal empl. by industry 90-24'!L15) -> 0.007675026665 | E13: =('Formal empl. by industry 90-24'!E15/'Formal empl. by industry 90-24'!L15) -> 0.06076161266 | F13: =('Formal empl. by industry 90-24'!F15/'Formal empl. by industry 90-24'!L15) -> 0.1480565402 | G13: =('Formal empl. by industry 90-24'!G15/'Formal empl. by industry 90-24'!L15) -> 0.05349152391 | H13: =('Formal empl. by industry 90-24'!H15/'Formal empl. by industry 90-24'!L15) -> 0.04207866839 | I13: =('Formal empl. by industry 90-24'!I15/'Formal empl. by industry 90-24'!L15) -> 0.3068722227 | J13: N/A | K13: ='Formal empl. by industry 90-24'!K15/'Formal empl. by industry 90-24'!L15 -> 0.3093696628 | L13: =('Formal empl. by industry 90-24'!L15/'Formal empl. by industry 90-24'!L15) -> 1
A14: 1998 | B14: =('Formal empl. by industry 90-24'!B16/'Formal empl. by industry 90-24'!L16) -> 0.09283791762 | C14: =('Formal empl. by industry 90-24'!C16/'Formal empl. by industry 90-24'!L16) -> 0.2714971647 | D14: =('Formal empl. by industry 90-24'!D16/'Formal empl. by industry 90-24'!L16) -> 0.007737530993 | E14: =('Formal empl. by industry 90-24'!E16/'Formal empl. by industry 90-24'!L16) -> 0.05707521369 | F14: =('Formal empl. by industry 90-24'!F16/'Formal empl. by industry 90-24'!L16) -> 0.1607875372 | G14: =('Formal empl. by industry 90-24'!G16/'Formal empl. by industry 90-24'!L16) -> 0.04931156885 | H14: =('Formal empl. by industry 90-24'!H16/'Formal empl. by industry 90-24'!L16) -> 0.04384835251 | I14: =('Formal empl. by industry 90-24'!I16/'Formal empl. by industry 90-24'!L16) -> 0.3147513269 | J14: N/A | K14: ='Formal empl. by industry 90-24'!K16/'Formal empl. by industry 90-24'!L16 -> 0.3169047144 | L14: =('Formal empl. by industry 90-24'!L16/'Formal empl. by industry 90-24'!L16) -> 1
A15: 1999 | B15: =('Formal empl. by industry 90-24'!B17/'Formal empl. by industry 90-24'!L17) -> 0.09035122979 | C15: =('Formal empl. by industry 90-24'!C17/'Formal empl. by industry 90-24'!L17) -> 0.2690297567 | D15: =('Formal empl. by industry 90-24'!D17/'Formal empl. by industry 90-24'!L17) -> 0.008834776358 | E15: =('Formal empl. by industry 90-24'!E17/'Formal empl. by industry 90-24'!L17) -> 0.0475179041 | F15: =('Formal empl. by industry 90-24'!F17/'Formal empl. by industry 90-24'!L17) -> 0.1785326007 | G15: =('Formal empl. by industry 90-24'!G17/'Formal empl. by industry 90-24'!L17) -> 0.04977044768 | H15: =('Formal empl. by industry 90-24'!H17/'Formal empl. by industry 90-24'!L17) -> 0.04188777315 | I15: =('Formal empl. by industry 90-24'!I17/'Formal empl. by industry 90-24'!L17) -> 0.3118956241 | J15: N/A | K15: ='Formal empl. by industry 90-24'!K17/'Formal empl. by industry 90-24'!L17 -> 0.3140755116 | L15: =('Formal empl. by industry 90-24'!L17/'Formal empl. by industry 90-24'!L17) -> 1
A16: 2000 | B16: =('Formal empl. by industry 90-24'!B18/'Formal empl. by industry 90-24'!L18) -> 0.08708041001 | C16: =('Formal empl. by industry 90-24'!C18/'Formal empl. by industry 90-24'!L18) -> 0.275701255 | D16: =('Formal empl. by industry 90-24'!D18/'Formal empl. by industry 90-24'!L18) -> 0.008384784895 | E16: =('Formal empl. by industry 90-24'!E18/'Formal empl. by industry 90-24'!L18) -> 0.04704724472 | F16: =('Formal empl. by industry 90-24'!F18/'Formal empl. by industry 90-24'!L18) -> 0.1826996168 | G16: =('Formal empl. by industry 90-24'!G18/'Formal empl. by industry 90-24'!L18) -> 0.04673563444 | H16: =('Formal empl. by industry 90-24'!H18/'Formal empl. by industry 90-24'!L18) -> 0.0414985986 | I16: =('Formal empl. by industry 90-24'!I18/'Formal empl. by industry 90-24'!L18) -> 0.3085732912 | J16: N/A | K16: ='Formal empl. by industry 90-24'!K18/'Formal empl. by industry 90-24'!L18 -> 0.3108524556 | L16: =('Formal empl. by industry 90-24'!L18/'Formal empl. by industry 90-24'!L18) -> 1
A17: 2001 | B17: =('Formal empl. by industry 90-24'!B19/'Formal empl. by industry 90-24'!L19) -> 0.086906631 | C17: =('Formal empl. by industry 90-24'!C19/'Formal empl. by industry 90-24'!L19) -> 0.2703304986 | D17: =('Formal empl. by industry 90-24'!D19/'Formal empl. by industry 90-24'!L19) -> 0.008419983227 | E17: =('Formal empl. by industry 90-24'!E19/'Formal empl. by industry 90-24'!L19) -> 0.04826570021 | F17: =('Formal empl. by industry 90-24'!F19/'Formal empl. by industry 90-24'!L19) -> 0.1898980374 | G17: =('Formal empl. by industry 90-24'!G19/'Formal empl. by industry 90-24'!L19) -> 0.04457816174 | H17: =('Formal empl. by industry 90-24'!H19/'Formal empl. by industry 90-24'!L19) -> 0.04134322285 | I17: =('Formal empl. by industry 90-24'!I19/'Formal empl. by industry 90-24'!L19) -> 0.3082295437 | J17: N/A | K17: ='Formal empl. by industry 90-24'!K19/'Formal empl. by industry 90-24'!L19 -> 0.310257765 | L17: =('Formal empl. by industry 90-24'!L19/'Formal empl. by industry 90-24'!L19) -> 1
A18: 2002 | B18: =('Formal empl. by industry 90-24'!B20/'Formal empl. by industry 90-24'!L20) -> 0.08817814837 | C18: =('Formal empl. by industry 90-24'!C20/'Formal empl. by industry 90-24'!L20) -> 0.2714819044 | D18: =('Formal empl. by industry 90-24'!D20/'Formal empl. by industry 90-24'!L20) -> 0.008321755311 | E18: =('Formal empl. by industry 90-24'!E20/'Formal empl. by industry 90-24'!L20) -> 0.0459593867 | F18: =('Formal empl. by industry 90-24'!F20/'Formal empl. by industry 90-24'!L20) -> 0.1905273659 | G18: =('Formal empl. by industry 90-24'!G20/'Formal empl. by industry 90-24'!L20) -> 0.04301385166 | H18: =('Formal empl. by industry 90-24'!H20/'Formal empl. by industry 90-24'!L20) -> 0.04005411089 | I18: =('Formal empl. by industry 90-24'!I20/'Formal empl. by industry 90-24'!L20) -> 0.3102435098 | J18: N/A | K18: ='Formal empl. by industry 90-24'!K20/'Formal empl. by industry 90-24'!L20 -> 0.3124634768 | L18: =('Formal empl. by industry 90-24'!L20/'Formal empl. by industry 90-24'!L20) -> 1
A19: 2003 | B19: =('Formal empl. by industry 90-24'!B21/'Formal empl. by industry 90-24'!L21) -> 0.06628520053 | C19: =('Formal empl. by industry 90-24'!C21/'Formal empl. by industry 90-24'!L21) -> 0.1952550289 | D19: =('Formal empl. by industry 90-24'!D21/'Formal empl. by industry 90-24'!L21) -> 0.006718617239 | E19: =('Formal empl. by industry 90-24'!E21/'Formal empl. by industry 90-24'!L21) -> 0.04665812522 | F19: =('Formal empl. by industry 90-24'!F21/'Formal empl. by industry 90-24'!L21) -> 0.199504497 | G19: =('Formal empl. by industry 90-24'!G21/'Formal empl. by industry 90-24'!L21) -> 0.03253348141 | H19: =('Formal empl. by industry 90-24'!H21/'Formal empl. by industry 90-24'!L21) -> 0.1785575327 | I19: =('Formal empl. by industry 90-24'!I21/'Formal empl. by industry 90-24'!L21) -> 0.2254096478 | J19: =('Formal empl. by industry 90-24'!J21/'Formal empl. by industry 90-24'!L21) -> 0.04907786919 | K19: ='Formal empl. by industry 90-24'!K21/'Formal empl. by industry 90-24'!L21 -> 0.274487517 | L19: =('Formal empl. by industry 90-24'!L21/'Formal empl. by industry 90-24'!L21) -> 1
A20: 2004 | B20: =('Formal empl. by industry 90-24'!B22/'Formal empl. by industry 90-24'!L22) -> 0.07044396047 | C20: =('Formal empl. by industry 90-24'!C22/'Formal empl. by industry 90-24'!L22) -> 0.1949219408 | D20: =('Formal empl. by industry 90-24'!D22/'Formal empl. by industry 90-24'!L22) -> 0.006767500347 | E20: =('Formal empl. by industry 90-24'!E22/'Formal empl. by industry 90-24'!L22) -> 0.04200696468 | F20: =('Formal empl. by industry 90-24'!F22/'Formal empl. by industry 90-24'!L22) -> 0.1966466275 | G20: =('Formal empl. by industry 90-24'!G22/'Formal empl. by industry 90-24'!L22) -> 0.03175389048 | H20: =('Formal empl. by industry 90-24'!H22/'Formal empl. by industry 90-24'!L22) -> 0.1805095004 | I20: =('Formal empl. by industry 90-24'!I22/'Formal empl. by industry 90-24'!L22) -> 0.2239114957 | J20: =('Formal empl. by industry 90-24'!J22/'Formal empl. by industry 90-24'!L22) -> 0.05303811964 | K20: ='Formal empl. by industry 90-24'!K22/'Formal empl. by industry 90-24'!L22 -> 0.2769496153 | L20: =('Formal empl. by industry 90-24'!L22/'Formal empl. by industry 90-24'!L22) -> 1
A21: 2005 | B21: =('Formal empl. by industry 90-24'!B23/'Formal empl. by industry 90-24'!L23) -> 0.06270068592 | C21: =('Formal empl. by industry 90-24'!C23/'Formal empl. by industry 90-24'!L23) -> 0.1670062913 | D21: =('Formal empl. by industry 90-24'!D23/'Formal empl. by industry 90-24'!L23) -> 0.00617385379 | E21: =('Formal empl. by industry 90-24'!E23/'Formal empl. by industry 90-24'!L23) -> 0.06101247642 | F21: =('Formal empl. by industry 90-24'!F23/'Formal empl. by industry 90-24'!L23) -> 0.1940312067 | G21: =('Formal empl. by industry 90-24'!G23/'Formal empl. by industry 90-24'!L23) -> 0.04526729843 | H21: =('Formal empl. by industry 90-24'!H23/'Formal empl. by industry 90-24'!L23) -> 0.2088482862 | I21: =('Formal empl. by industry 90-24'!I23/'Formal empl. by industry 90-24'!L23) -> 0.2120358077 | J21: =('Formal empl. by industry 90-24'!J23/'Formal empl. by industry 90-24'!L23) -> 0.04342946855 | K21: ='Formal empl. by industry 90-24'!K23/'Formal empl. by industry 90-24'!L23 -> 0.2549599013 | L21: =('Formal empl. by industry 90-24'!L23/'Formal empl. by industry 90-24'!L23) -> 1
A22: 2006 | B22: =('Formal empl. by industry 90-24'!B24/'Formal empl. by industry 90-24'!L24) -> 0.05689107555 | C22: =('Formal empl. by industry 90-24'!C24/'Formal empl. by industry 90-24'!L24) -> 0.1651906614 | D22: =('Formal empl. by industry 90-24'!D24/'Formal empl. by industry 90-24'!L24) -> 0.006390453046 | E22: =('Formal empl. by industry 90-24'!E24/'Formal empl. by industry 90-24'!L24) -> 0.05655184291 | F22: =('Formal empl. by industry 90-24'!F24/'Formal empl. by industry 90-24'!L24) -> 0.2064360894 | G22: =('Formal empl. by industry 90-24'!G24/'Formal empl. by industry 90-24'!L24) -> 0.04373718727 | H22: =('Formal empl. by industry 90-24'!H24/'Formal empl. by industry 90-24'!L24) -> 0.216463429 | I22: =('Formal empl. by industry 90-24'!I24/'Formal empl. by industry 90-24'!L24) -> 0.1953033278 | J22: =('Formal empl. by industry 90-24'!J24/'Formal empl. by industry 90-24'!L24) -> 0.0530359336 | K22: ='Formal empl. by industry 90-24'!K24/'Formal empl. by industry 90-24'!L24 -> 0.2483392614 | L22: =('Formal empl. by industry 90-24'!L24/'Formal empl. by industry 90-24'!L24) -> 1
A23: 2007 | B23: =('Formal empl. by industry 90-24'!B25/'Formal empl. by industry 90-24'!L25) -> 0.05995038861 | C23: =('Formal empl. by industry 90-24'!C25/'Formal empl. by industry 90-24'!L25) -> 0.1596803733 | D23: =('Formal empl. by industry 90-24'!D25/'Formal empl. by industry 90-24'!L25) -> 0.006471800416 | E23: =('Formal empl. by industry 90-24'!E25/'Formal empl. by industry 90-24'!L25) -> 0.05701581242 | F23: =('Formal empl. by industry 90-24'!F25/'Formal empl. by industry 90-24'!L25) -> 0.2087081736 | G23: =('Formal empl. by industry 90-24'!G25/'Formal empl. by industry 90-24'!L25) -> 0.04330608246 | H23: =('Formal empl. by industry 90-24'!H25/'Formal empl. by industry 90-24'!L25) -> 0.2201395441 | I23: =('Formal empl. by industry 90-24'!I25/'Formal empl. by industry 90-24'!L25) -> 0.1957697607 | J23: =('Formal empl. by industry 90-24'!J25/'Formal empl. by industry 90-24'!L25) -> 0.04895782308 | K23: ='Formal empl. by industry 90-24'!K25/'Formal empl. by industry 90-24'!L25 -> 0.2447275838 | L23: =('Formal empl. by industry 90-24'!L25/'Formal empl. by industry 90-24'!L25) -> 1
A24: 2008 | B24: =('Formal empl. by industry 90-24'!B26/'Formal empl. by industry 90-24'!L26) -> 0.06148686331 | C24: =('Formal empl. by industry 90-24'!C26/'Formal empl. by industry 90-24'!L26) -> 0.1545130865 | D24: =('Formal empl. by industry 90-24'!D26/'Formal empl. by industry 90-24'!L26) -> 0.006940026234 | E24: =('Formal empl. by industry 90-24'!E26/'Formal empl. by industry 90-24'!L26) -> 0.05606655689 | F24: =('Formal empl. by industry 90-24'!F26/'Formal empl. by industry 90-24'!L26) -> 0.2040893483 | G24: =('Formal empl. by industry 90-24'!G26/'Formal empl. by industry 90-24'!L26) -> 0.04299301669 | H24: =('Formal empl. by industry 90-24'!H26/'Formal empl. by industry 90-24'!L26) -> 0.2255646887 | I24: =('Formal empl. by industry 90-24'!I26/'Formal empl. by industry 90-24'!L26) -> 0.2010910621 | J24: =('Formal empl. by industry 90-24'!J26/'Formal empl. by industry 90-24'!L26) -> 0.04725535124 | K24: ='Formal empl. by industry 90-24'!K26/'Formal empl. by industry 90-24'!L26 -> 0.2483464133 | L24: =('Formal empl. by industry 90-24'!L26/'Formal empl. by industry 90-24'!L26) -> 1
A25: 2009 | B25: =('Formal empl. by industry 90-24'!B27/'Formal empl. by industry 90-24'!L27) -> 0.05955977325 | C25: =('Formal empl. by industry 90-24'!C27/'Formal empl. by industry 90-24'!L27) -> 0.1471357433 | D25: =('Formal empl. by industry 90-24'!D27/'Formal empl. by industry 90-24'!L27) -> 0.006769389828 | E25: =('Formal empl. by industry 90-24'!E27/'Formal empl. by industry 90-24'!L27) -> 0.05185773693 | F25: =('Formal empl. by industry 90-24'!F27/'Formal empl. by industry 90-24'!L27) -> 0.2007418868 | G25: =('Formal empl. by industry 90-24'!G27/'Formal empl. by industry 90-24'!L27) -> 0.04417966479 | H25: =('Formal empl. by industry 90-24'!H27/'Formal empl. by industry 90-24'!L27) -> 0.2194652419 | I25: =('Formal empl. by industry 90-24'!I27/'Formal empl. by industry 90-24'!L27) -> 0.2177673314 | J25: =('Formal empl. by industry 90-24'!J27/'Formal empl. by industry 90-24'!L27) -> 0.0525232318 | K25: ='Formal empl. by industry 90-24'!K27/'Formal empl. by industry 90-24'!L27 -> 0.2702905632 | L25: =('Formal empl. by industry 90-24'!L27/'Formal empl. by industry 90-24'!L27) -> 1
A26: 2010 | B26: =('Formal empl. by industry 90-24'!B28/'Formal empl. by industry 90-24'!L28) -> 0.05995715329 | C26: =('Formal empl. by industry 90-24'!C28/'Formal empl. by industry 90-24'!L28) -> 0.1419669172 | D26: =('Formal empl. by industry 90-24'!D28/'Formal empl. by industry 90-24'!L28) -> 0.006778510398 | E26: =('Formal empl. by industry 90-24'!E28/'Formal empl. by industry 90-24'!L28) -> 0.05283667551 | F26: =('Formal empl. by industry 90-24'!F28/'Formal empl. by industry 90-24'!L28) -> 0.2023446191 | G26: =('Formal empl. by industry 90-24'!G28/'Formal empl. by industry 90-24'!L28) -> 0.04581457522 | H26: =('Formal empl. by industry 90-24'!H28/'Formal empl. by industry 90-24'!L28) -> 0.2191086252 | I26: =('Formal empl. by industry 90-24'!I28/'Formal empl. by industry 90-24'!L28) -> 0.2192682019 | J26: =('Formal empl. by industry 90-24'!J28/'Formal empl. by industry 90-24'!L28) -> 0.05192472227 | K26: ='Formal empl. by industry 90-24'!K28/'Formal empl. by industry 90-24'!L28 -> 0.2711930449 | L26: =('Formal empl. by industry 90-24'!L28/'Formal empl. by industry 90-24'!L28) -> 1
A27: 2011 | B27: =('Formal empl. by industry 90-24'!B29/'Formal empl. by industry 90-24'!L29) -> 0.06008652113 | C27: =('Formal empl. by industry 90-24'!C29/'Formal empl. by industry 90-24'!L29) -> 0.1349630897 | D27: =('Formal empl. by industry 90-24'!D29/'Formal empl. by industry 90-24'!L29) -> 0.006805957246 | E27: =('Formal empl. by industry 90-24'!E29/'Formal empl. by industry 90-24'!L29) -> 0.05452376775 | F27: =('Formal empl. by industry 90-24'!F29/'Formal empl. by industry 90-24'!L29) -> 0.2023072302 | G27: =('Formal empl. by industry 90-24'!G29/'Formal empl. by industry 90-24'!L29) -> 0.04604409254 | H27: =('Formal empl. by industry 90-24'!H29/'Formal empl. by industry 90-24'!L29) -> 0.2215155955 | I27: =('Formal empl. by industry 90-24'!I29/'Formal empl. by industry 90-24'!L29) -> 0.221188033 | J27: =('Formal empl. by industry 90-24'!J29/'Formal empl. by industry 90-24'!L29) -> 0.05256571295 | K27: ='Formal empl. by industry 90-24'!K29/'Formal empl. by industry 90-24'!L29 -> 0.2737537459 | L27: =('Formal empl. by industry 90-24'!L29/'Formal empl. by industry 90-24'!L29) -> 1
A28: 2012 | B28: =('Formal empl. by industry 90-24'!B30/'Formal empl. by industry 90-24'!L30) -> 0.06011083196 | C28: =('Formal empl. by industry 90-24'!C30/'Formal empl. by industry 90-24'!L30) -> 0.1306437292 | D28: =('Formal empl. by industry 90-24'!D30/'Formal empl. by industry 90-24'!L30) -> 0.00668274365 | E28: =('Formal empl. by industry 90-24'!E30/'Formal empl. by industry 90-24'!L30) -> 0.05731342793 | F28: =('Formal empl. by industry 90-24'!F30/'Formal empl. by industry 90-24'!L30) -> 0.2038332996 | G28: =('Formal empl. by industry 90-24'!G30/'Formal empl. by industry 90-24'!L30) -> 0.04906903379 | H28: =('Formal empl. by industry 90-24'!H30/'Formal empl. by industry 90-24'!L30) -> 0.2212861669 | I28: =('Formal empl. by industry 90-24'!I30/'Formal empl. by industry 90-24'!L30) -> 0.2186175692 | J28: =('Formal empl. by industry 90-24'!J30/'Formal empl. by industry 90-24'!L30) -> 0.05244308531 | K28: ='Formal empl. by industry 90-24'!K30/'Formal empl. by industry 90-24'!L30 -> 0.2710606545 | L28: =('Formal empl. by industry 90-24'!L30/'Formal empl. by industry 90-24'!L30) -> 1
A29: 2013 | B29: =('Formal empl. by industry 90-24'!B31/'Formal empl. by industry 90-24'!L31) -> 0.05668824081 | C29: =('Formal empl. by industry 90-24'!C31/'Formal empl. by industry 90-24'!L31) -> 0.1289889363 | D29: =('Formal empl. by industry 90-24'!D31/'Formal empl. by industry 90-24'!L31) -> 0.006622190938 | E29: =('Formal empl. by industry 90-24'!E31/'Formal empl. by industry 90-24'!L31) -> 0.05815618848 | F29: =('Formal empl. by industry 90-24'!F31/'Formal empl. by industry 90-24'!L31) -> 0.2046291962 | G29: =('Formal empl. by industry 90-24'!G31/'Formal empl. by industry 90-24'!L31) -> 0.05030545431 | H29: =('Formal empl. by industry 90-24'!H31/'Formal empl. by industry 90-24'!L31) -> 0.2230444697 | I29: =('Formal empl. by industry 90-24'!I31/'Formal empl. by industry 90-24'!L31) -> 0.2190750398 | J29: =('Formal empl. by industry 90-24'!J31/'Formal empl. by industry 90-24'!L31) -> 0.05249017243 | K29: ='Formal empl. by industry 90-24'!K31/'Formal empl. by industry 90-24'!L31 -> 0.2715652122 | L29: =('Formal empl. by industry 90-24'!L31/'Formal empl. by industry 90-24'!L31) -> 1
A30: 2014 | B30: =('Formal empl. by industry 90-24'!B32/'Formal empl. by industry 90-24'!L32) -> 0.05238900365 | C30: =('Formal empl. by industry 90-24'!C32/'Formal empl. by industry 90-24'!L32) -> 0.1238315921 | D30: =('Formal empl. by industry 90-24'!D32/'Formal empl. by industry 90-24'!L32) -> 0.006326496098 | E30: =('Formal empl. by industry 90-24'!E32/'Formal empl. by industry 90-24'!L32) -> 0.05918015102 | F30: =('Formal empl. by industry 90-24'!F32/'Formal empl. by industry 90-24'!L32) -> 0.2017309327 | G30: =('Formal empl. by industry 90-24'!G32/'Formal empl. by industry 90-24'!L32) -> 0.04907697538 | H30: =('Formal empl. by industry 90-24'!H32/'Formal empl. by industry 90-24'!L32) -> 0.2175423151 | I30: =('Formal empl. by industry 90-24'!I32/'Formal empl. by industry 90-24'!L32) -> 0.2381333489 | J30: =('Formal empl. by industry 90-24'!J32/'Formal empl. by industry 90-24'!L32) -> 0.05178929175 | K30: ='Formal empl. by industry 90-24'!K32/'Formal empl. by industry 90-24'!L32 -> 0.2899226407 | L30: =('Formal empl. by industry 90-24'!L32/'Formal empl. by industry 90-24'!L32) -> 1
A31: 2015 | B31: =('Formal empl. by industry 90-24'!B33/'Formal empl. by industry 90-24'!L33) -> 0.05259266473 | C31: =('Formal empl. by industry 90-24'!C33/'Formal empl. by industry 90-24'!L33) -> 0.1252631403 | D31: =('Formal empl. by industry 90-24'!D33/'Formal empl. by industry 90-24'!L33) -> 0.006478285643 | E31: =('Formal empl. by industry 90-24'!E33/'Formal empl. by industry 90-24'!L33) -> 0.05984755266 | F31: =('Formal empl. by industry 90-24'!F33/'Formal empl. by industry 90-24'!L33) -> 0.2072714595 | G31: =('Formal empl. by industry 90-24'!G33/'Formal empl. by industry 90-24'!L33) -> 0.04994864439 | H31: =('Formal empl. by industry 90-24'!H33/'Formal empl. by industry 90-24'!L33) -> 0.2247431278 | I31: =('Formal empl. by industry 90-24'!I33/'Formal empl. by industry 90-24'!L33) -> 0.221761866 | J31: =('Formal empl. by industry 90-24'!J33/'Formal empl. by industry 90-24'!L33) -> 0.0520933666 | K31: ='Formal empl. by industry 90-24'!K33/'Formal empl. by industry 90-24'!L33 -> 0.273855125 | L31: =('Formal empl. by industry 90-24'!L33/'Formal empl. by industry 90-24'!L33) -> 1
A32: 2016 | B32: =('Formal empl. by industry 90-24'!B34/'Formal empl. by industry 90-24'!L34) -> 0.04757714629 | C32: =('Formal empl. by industry 90-24'!C34/'Formal empl. by industry 90-24'!L34) -> 0.1226742295 | D32: =('Formal empl. by industry 90-24'!D34/'Formal empl. by industry 90-24'!L34) -> 0.006474015344 | E32: =('Formal empl. by industry 90-24'!E34/'Formal empl. by industry 90-24'!L34) -> 0.06373908874 | F32: =('Formal empl. by industry 90-24'!F34/'Formal empl. by industry 90-24'!L34) -> 0.212936654 | G32: =('Formal empl. by industry 90-24'!G34/'Formal empl. by industry 90-24'!L34) -> 0.04811899176 | H32: =('Formal empl. by industry 90-24'!H34/'Formal empl. by industry 90-24'!L34) -> 0.2271736956 | I32: =('Formal empl. by industry 90-24'!I34/'Formal empl. by industry 90-24'!L34) -> 0.2158268079 | J32: =('Formal empl. by industry 90-24'!J34/'Formal empl. by industry 90-24'!L34) -> 0.05547947459 | K32: ='Formal empl. by industry 90-24'!K34/'Formal empl. by industry 90-24'!L34 -> 0.2713061787 | L32: =('Formal empl. by industry 90-24'!L34/'Formal empl. by industry 90-24'!L34) -> 1
A33: 2017 | B33: 0.04811385003 | C33: 0.1217274417 | D33: 0.006515452263 | E33: 0.06394907214 | F33: 0.2165174775 | G33: 0.0479516269 | H33: 0.2278253479 | I33: 0.2079196516 | J33: 0.05947997794 | K33: 0.2673996295 | L33: 1
A34: 2018 | B34: 0.04579010255 | C34: 0.1206084468 | D34: 0.00620366279 | E34: 0.06389841451 | F34: 0.2187227474 | G34: 0.04777369574 | H34: 0.2298005671 | I34: 0.2041290835 | J34: 0.06307327961 | K34: 0.2672023631 | L34: 1
A35: 2019 | B35: 0.04505625175 | C35: 0.1188664466 | D35: 0.005826634332 | E35: 0.06009023832 | F35: 0.2212989651 | G35: 0.04770957419 | H35: 0.230323977 | I35: 0.2070163584 | J35: 0.06381155424 | K35: 0.2708279127 | L35: 1
A36: 2020 | B36: ='Formal empl. by industry 90-24'!B38/'Formal empl. by industry 90-24'!L38 -> 0.04755892088 | C36: ='Formal empl. by industry 90-24'!C38/'Formal empl. by industry 90-24'!L38 -> 0.1170672633 | D36: ='Formal empl. by industry 90-24'!D38/'Formal empl. by industry 90-24'!L38 -> 0.006186873495 | E36: ='Formal empl. by industry 90-24'!E38/'Formal empl. by industry 90-24'!L38 -> 0.05140507391 | F36: ='Formal empl. by industry 90-24'!F38/'Formal empl. by industry 90-24'!L38 -> 0.2181841151 | G36: ='Formal empl. by industry 90-24'!G38/'Formal empl. by industry 90-24'!L38 -> 0.04837443365 | H36: ='Formal empl. by industry 90-24'!H38/'Formal empl. by industry 90-24'!L38 -> 0.2292819469 | I36: ='Formal empl. by industry 90-24'!I38/'Formal empl. by industry 90-24'!L38 -> 0.2185582643 | J36: ='Formal empl. by industry 90-24'!J38/'Formal empl. by industry 90-24'!L38 -> 0.0633831084 | K36: ='Formal empl. by industry 90-24'!K38/'Formal empl. by industry 90-24'!L38 -> 0.2823210968 | L36: ='Formal empl. by industry 90-24'!L38/'Formal empl. by industry 90-24'!L38 -> 1
A37: 2021 | B37: 0.04818619517 | C37: 0.1141934833 | D37: 0.006003285047 | E37: 0.04977060588 | F37: 0.2214594159 | G37: 0.04737355626 | H37: 0.2262675207 | I37: 0.2233007355 | J37: 0.06344520227 | K37: 0.2867459377 | L37: 1
A38: 2022 | B38: 0.04645361211 | C38: 0.1176193507 | D38: 0.00599042569 | E38: 0.05240032087 | F38: 0.2150844923 | G38: 0.04139732179 | H38: 0.2323201189 | I38: 0.2227898277 | J38: 0.06594452995 | K38: 0.2887343576 | L38: 1
A39: 2024 | B39: 0.044 | C39: =('Formal empl. by industry 90-24'!C42/'Formal empl. by industry 90-24'!$L$42) -> 0.1206141448 | D39: =('Formal empl. by industry 90-24'!D42/'Formal empl. by industry 90-24'!$L$42) -> 0.005938080463 | E39: =('Formal empl. by industry 90-24'!E42/'Formal empl. by industry 90-24'!$L$42) -> 0.05512662679 | F39: =('Formal empl. by industry 90-24'!F42/'Formal empl. by industry 90-24'!$L$42) -> 0.2167352708 | G39: =('Formal empl. by industry 90-24'!G42/'Formal empl. by industry 90-24'!$L$42) -> 0.04475686999 | H39: =('Formal empl. by industry 90-24'!H42/'Formal empl. by industry 90-24'!$L$42) -> 0.2308179377 | I39: =('Formal empl. by industry 90-24'!I42/'Formal empl. by industry 90-24'!$L$42) -> 0.2140273456 | J39: =('Formal empl. by industry 90-24'!J42/'Formal empl. by industry 90-24'!$L$42) -> 0.0612505114 | K39: =('Formal empl. by industry 90-24'!K42/'Formal empl. by industry 90-24'!$L$42) -> 0.2819487953 | L39: 1
A40: Source: Stats SA, South African Statistics 2010-12; Quarterly employment statistics (QES) details breakdown, Statistical release P0277, 28 September 2021, accessed 7 October 2021; Quarterly Employment Statistics: June 2022 (QES) details breakdown 200909-202206, accessed 12 October 2022
A41: a The data in this table is based on Survey of employment and earnings, Statistical release P0275, and, as from 2005, on the Quarterly employment statistics survey, Statistical release P0277.
A42: b Former Transkei, Bophuthatswana, Venda and Ciskei (TBVC) states data is included as from January 1994. The total employment in these states for January 1994 amounted to approximately 9.0% of the total employment of the mining and quarrying sector.
A43: c Former TBVC states data is included as from January 1996. The total employment in these states for January 1996 amounted to 5.8% of the total employment of the manufacturing sector.
A44: d The data is based on a sample survey and refers to private establishments and public corporations which have as their main activity the generation and/or distribution of electricity, gas, and water supply. As from January 1996, data on the electricity sector also include particulars of the former TBVC states. The contribution regarding former TBVC states for March 1996 was 1.9% of the total employment of the electricity sector. As from 1998, there has been a reclassification of water boards from local governments into the electricity, gas, and water supply industry.
A45: e As from January 1996, data representing employment in the private construction industry also includes particulars of the former TBVC states. The former TBVC contribution to the employment of the construction industry in 1996 was 0.1%.
A46: f The data on the formal TBVC states relating to wholesale and retail trade; repair of motor vehicles, motorcycles and personal and household goods, and hotels and restaurants was included as from the first quarter of 1996. The total employment of the commercial industries in these areas for March 1996 was about 0.1% of the total employment for the wholesale trade industry, 1.0% for the retail trade industry, and 0.7% for the motor trade industry. For the hotels industry the former TBVC states data was included from 1995. The total employment in these states was approximately 16.0% of the total employment of the hotels industry.
A47: g The former TBVC states data for banking institutions, building societies and insurance companies, was included as from the first quarter of 1995. The total employment in these states for March 1995 was approximately 1.0% of the total employment of the financial institutions industry.
A48: h The Other services include activities of membership organisation; recreational, cultural, and sporting activities; and other services.
A49: i The information on the governments and the local governments of the former TBVC (Transkei, Bophuthatswana, Venda, and Ciskei) states was included in the public sector from the first quarter of 1995. The total employment in these states for June 1994 was approximately 12.0% of the total employment of the public sector. The information on all the universities of the former TBVC states is included in the public sector from the first quarter of 1996. The total employment for universities in these states for March 1996 was approximately 11.0% of the total employment of the universities.

Sheet 2PCs Employm. by industry 90&24
B2: Formal employment by industry, 1990 and 2024
D5: Mining | E5: Manufacturing | F5: Utilities | G5: Construction | H5: Trade | I5: Transport | J5: Finance | K5: Community, social and personal services (including the Government)
C6: 1990 | D6: 0.129 | E6: 0.2869313458 | F6: 0.009502724942 | G6: 0.07793279528 | H6: 0.1470757566 | I6: 0.06742007923 | J6: 0.03476369996 | K6: 0.2470641301
C7: 2019 | D7: 0.04505625175 | E7: 0.1188664466 | F7: 0.005826634332 | G7: 0.06009023832 | H7: 0.2212989651 | I7: 0.04770957419 | J7: 0.230323977 | K7: 0.2708279127
C8: 2024 | D8: 0.1206141448 | E8: 0.1206141448 | F8: 0.005938080463 | G8: 0.05512662679 | H8: 0.2167352708 | I8: 0.04475686999 | J8: 0.2308179377 | K8: 0.282
N12: Mining | O12: Manufacturing | P12: Utilities | Q12: Construction | R12: Trade | S12: Transport | T12: Finance | U12: Community, social and personal services (including the Government)
M13: 2024 | N13: 0.044 | O13: 0.1206141448 | P13: 0.005938080463 | Q13: 0.05512662679 | R13: 0.2167352708 | S13: 0.04475686999 | T13: 0.2308179377 | U13: 0.282

Sheet BC Change in employment 2008-24
B1: Change in formal employment by industry, 2008-24
B2: Mining | C2: Manufacturing | D2: Utilities | E2: Construction | F2: Trade | G2: Transport | H2: Finance | I2: Government sector | J2: Other services | K2: Total | X2: Mining | Y2: Manufacturing | Z2: Utilities | AA2: Construction | AB2: Trade | AC2: Transport | AD2: Finance | AE2: Government sector | AF2: Other services | AG2: Total
B3: =('Formal empl. by industry 90-24'!B42-'Formal empl. by industry 90-24'!B26)/'Formal empl. by industry 90-24'!B26 -> -0.09191392133 | C3: =('Formal empl. by industry 90-24'!C42-'Formal empl. by industry 90-24'!C26)/'Formal empl. by industry 90-24'!C26 -> -0.01081978405 | D3: =('Formal empl. by industry 90-24'!D42-'Formal empl. by industry 90-24'!D26)/'Formal empl. by industry 90-24'!D26 -> 0.08424496473 | E3: =('Formal empl. by industry 90-24'!E42-'Formal empl. by industry 90-24'!E26)/'Formal empl. by industry 90-24'!E26 -> 0.2459481806 | F3: =('Formal empl. by industry 90-24'!F42-'Formal empl. by industry 90-24'!F26)/'Formal empl. by industry 90-24'!F26 -> 0.3457106882 | G3: =('Formal empl. by industry 90-24'!G42-'Formal empl. by industry 90-24'!G26)/'Formal empl. by industry 90-24'!G26 -> 0.3191805389 | H3: =('Formal empl. by industry 90-24'!H42-'Formal empl. by industry 90-24'!H26)/'Formal empl. by industry 90-24'!H26 -> 0.2967041206 | I3: =('Formal empl. by industry 90-24'!I42-'Formal empl. by industry 90-24'!I26)/'Formal empl. by industry 90-24'!I26 -> 0.3487111421 | J3: =('Formal empl. by industry 90-24'!J42-'Formal empl. by industry 90-24'!J26)/'Formal empl. by industry 90-24'!J26 -> 0.6424840903 | K3: =('Formal empl. by industry 90-24'!L42-'Formal empl. by industry 90-24'!L26)/'Formal empl. by industry 90-24'!L26 -> 0.2671920743
W4: 2008 | X4: 519943 | Y4: 1306588 | Z4: 58686 | AA4: 474108 | AB4: 1725813 | AC4: 363556 | AD4: 1907412 | AE4: 1700459 | AF4: 399599 | AG4: 2100058 | AH4: 8456164
W5: 2024 | X5: 472153 | Y5: 1292451 | Z5: 63630 | AA5: 590714 | AB5: 2322445 | AC5: 479596 | AD5: 2473349 | AE5: 2293428 | AF5: 656335 | AG5: 3021246 | AH5: 10715584
X6: =(X5-X4)/X4 -> -0.09191392133 | Y6: =(Y5-Y4)/Y4 -> -0.01081978405 | Z6: 0.08424496473 | AA6: 0.2459481806 | AB6: 0.3457106882 | AC6: 0.3191805389 | AD6: 0.2967041206 | AE6: 0.3487111421 | AF6: 0.6424840903 | AG6: 0.4386488373

Sheet Employm. by sec&industry 01-24
A2: Employment by economic sector and industry, 2001-24
A4: Sector and industry | B4: —2001— | D4: —2023— | F4: —2024— | U4: —2022—
A5: Formal (non-agricultural) | B5: Numbera | C5: Proportion | D5: Numbera | E5: Proportion | F5: Numbera | G5: Proportion | U5: Numbera | V5: Proportion
A6: Mining | B6: 485000 | C6: 0.039 | D6: 431000 | E6: =D6/16346000 -> 0.02636730699 | F6: 438000 | G6: =F6/16346000 -> 0.02679554631 | U6: 392000 | V6: =U6/15562000 -> 0.02518956432
A7: Manufacturing | B7: 1462000 | C7: 0.117 | D7: 1371000 | E7: =D7/16346000 -> 0.08387373058 | F7: 1430000 | G7: =F7/16346000 -> 0.08748317631 | U7: 1305000 | V7: =U7/15562000 -> 0.08385811592
A8: Utilities | B8: 77000 | C8: 0.006 | D8: 120000 | E8: 0.007341245565 | F8: 109000 | G8: 0.006668298055 | U8: 95000 | V8: 0.006104613803
A9: Construction | B9: 342000 | C9: 0.027 | D9: 808000 | E9: 0.04943105347 | F9: 744000 | G9: 0.0455157225 | U9: 725000 | V9: 0.04658784218
A10: Trade | B10: 1365000 | C10: 0.109 | D10: 2204000 | E10: 0.1348342102 | F10: 2168000 | G10: 0.1326318365 | U10: 1988000 | V10: 0.1277470762
A11: Transport | B11: 493000 | C11: 0.039 | D11: 675000 | E11: 0.0412945063 | F11: 681000 | G11: 0.04166156858 | U11: 608000 | V11: 0.03906952834
A12: Finance | B12: 988000 | C12: 0.079 | D12: 2290000 | E12: 0.1400954362 | F12: 2583000 | G12: 0.1580203108 | U12: 2134000 | V12: 0.1371289037
A13: Community and social servicesb | B13: 1772000 | C13: 0.142 | D13: 3418000 | E13: 0.2091031445 | F13: 3306000 | G13: 0.2022513153 | U13: 3339000 | V13: 0.2145611104
A14: Other | B14: —c | C14: —c | D14: 11000 | E14: 0.0006729475101 | F14: 9000 | G14: 0.0005505934173 | U14: 13000 | V14: 0.0008353682046
A15: Total | B15: 6984000 | C15: 0.559 | D15: 11329000 | E15: 0.6930747584 | F15: =SUM(F6:F14) -> 11468000 | G15: =F15/F29 -> 0.6886860437 | U15: 10599000 | V15: 0.6810821231
A16: Informal (non-agricultural)
A17: Mining | B17: —d | C17: —d | D17: 12000 | E17: =D17/16346000 -> 0.0007341245565 | F17: 19000 | G17: =F17/16346000 -> 0.001162363881 | U17: 15000 | V17: =U17/15562000 -> 0.0009638863899
A18: Manufacturing | B18: 382000 | C18: 0.031 | D18: 187000 | E18: =D18/16346000 -> 0.01144010767 | F18: 225000 | G18: =F18/16346000 -> 0.01376483543 | U18: 202000 | V18: =U18/15562000 -> 0.01298033672
A19: Utilities | B19: —d | C19: —d | D19: 9000 | E19: 0.0005505934173 | F19: 5000 | G19: 0.0003058852319 | U19: 9000 | V19: 0.000578331834
A20: Construction | B20: 299000 | C20: 0.024 | D20: 496000 | E20: 0.030343815 | F20: 461000 | G20: 0.02820261838 | U20: 452000 | V20: 0.02904510988
A21: Trade | B21: 1998000 | C21: 0.16 | D21: 1157000 | E21: 0.07078184265 | F21: 1192000 | G21: 0.07292303928 | U21: 1175000 | V21: 0.07550443388
A22: Transport | B22: 190000 | C22: 0.015 | D22: 310000 | E22: 0.01896488438 | F22: 383000 | G22: 0.02343080876 | U22: 298000 | V22: 0.01914920961
A23: Finance | B23: 146000 | C23: 0.012 | D23: 309000 | E23: 0.01890370733 | F23: 322000 | G23: 0.01969900893 | U23: 327000 | V23: 0.0210127233
A24: Community and social servicesb | B24: 330000 | C24: 0.026 | D24: 547000 | E24: 0.03346384437 | F24: 521000 | G24: 0.03187324116 | U24: 482000 | V24: 0.03097288266
A25: Other | B25: —c | C25: —c | D25: 2000 | E25: 0.0001223540927 | F25: 1000 | G25: 6.117704637e-05 | U25: 5000 | V25: =U25/15562000 -> 0.0003212954633
A26: Total | B26: 3353000 | C26: 0.268 | D26: 3029000 | E26: 0.1853052735 | F26: =SUM(F17:F25) -> 3129000 | G26: =F26/F29 -> 0.1879053567 | U26: 2965000 | V26: =U26/15562000 -> 0.1905282097
A27: Agriculture | B27: 969000 | C27: 0.077 | D27: 894000 | E27: 0.05469227946 | F27: 896000 | G27: =F27/$F$29 -> 0.05380735047 | U27: 874000 | V27: =U27/15562000 -> 0.05616244699
A28: Private households | B28: 1188000 | C28: 0.095 | D28: 1093000 | E28: 0.06686651168 | F28: 1160000 | G28: =F28/$F$29 -> 0.06966130195 | U28: 1124000 | V28: =U28/15562000 -> 0.07222722015
A29: TOTAL | B29: 12494000 | C29: 1 | D29: 16346000 | E29: 1 | F29: 16652000 | G29: =F29/$F$29 -> 1 | U29: 15562000 | V29: =U29/15562000 -> 1
A30: Source: Stats SA, Labour Force Survey Historical revision March series 2001 to 2021, Statistical release P0210, p16; QLFS Trends 2008-2024Q2, accessed 18 August 2024
A31: a Figures should add up vertically but may not, owing to rounding.
A32: b Including government.
A33: c In revised LFS data for 2001 there was no category 'Other'.
A34: d Sample too small for reliable estimates.

Sheet Change in employment by sector
A2: Change in employment by economic sector and industrya, 2001-24 and 2023-24
A4: Sector and industry | B4: —2001-24— | D4: —2023-24—
A5: Formal (non-agricultural) | B5: Number | C5: Change | D5: Number | E5: Change
A6: Mining | B6: ='Employm. by sec&industry 01-24 '!F6-'Employm. by sec&industry 01-24 '!B6 -> -47000 | C6: =('Employm. by sec&industry 01-24 '!F6-'Employm. by sec&industry 01-24 '!B6)/'Employm. by sec&industry 01-24 '!B6 -> -0.09690721649 | D6: ='Employm. by sec&industry 01-24 '!F6-'Employm. by sec&industry 01-24 '!D6 -> 7000 | E6: =('Employm. by sec&industry 01-24 '!F6-'Employm. by sec&industry 01-24 '!D6)/'Employm. by sec&industry 01-24 '!D6 -> 0.0162412993
A7: Manufacturing | B7: ='Employm. by sec&industry 01-24 '!F7-'Employm. by sec&industry 01-24 '!B7 -> -32000 | C7: =('Employm. by sec&industry 01-24 '!F7-'Employm. by sec&industry 01-24 '!B7)/'Employm. by sec&industry 01-24 '!B7 -> -0.0218878249 | D7: ='Employm. by sec&industry 01-24 '!F7-'Employm. by sec&industry 01-24 '!D7 -> 59000 | E7: =('Employm. by sec&industry 01-24 '!F7-'Employm. by sec&industry 01-24 '!D7)/'Employm. by sec&industry 01-24 '!D7 -> 0.04303428155
A8: Utilities | B8: ='Employm. by sec&industry 01-24 '!F8-'Employm. by sec&industry 01-24 '!B8 -> 32000 | C8: =('Employm. by sec&industry 01-24 '!F8-'Employm. by sec&industry 01-24 '!B8)/'Employm. by sec&industry 01-24 '!B8 -> 0.4155844156 | D8: ='Employm. by sec&industry 01-24 '!F8-'Employm. by sec&industry 01-24 '!D8 -> -11000 | E8: =('Employm. by sec&industry 01-24 '!F8-'Employm. by sec&industry 01-24 '!D8)/'Employm. by sec&industry 01-24 '!D8 -> -0.09166666667
A9: Construction | B9: ='Employm. by sec&industry 01-24 '!F9-'Employm. by sec&industry 01-24 '!B9 -> 402000 | C9: =('Employm. by sec&industry 01-24 '!F9-'Employm. by sec&industry 01-24 '!B9)/'Employm. by sec&industry 01-24 '!B9 -> 1.175438596 | D9: ='Employm. by sec&industry 01-24 '!F9-'Employm. by sec&industry 01-24 '!D9 -> -64000 | E9: =('Employm. by sec&industry 01-24 '!F9-'Employm. by sec&industry 01-24 '!D9)/'Employm. by sec&industry 01-24 '!D9 -> -0.07920792079
A10: Trade | B10: ='Employm. by sec&industry 01-24 '!F10-'Employm. by sec&industry 01-24 '!B10 -> 803000 | C10: =('Employm. by sec&industry 01-24 '!F10-'Employm. by sec&industry 01-24 '!B10)/'Employm. by sec&industry 01-24 '!B10 -> 0.5882783883 | D10: ='Employm. by sec&industry 01-24 '!F10-'Employm. by sec&industry 01-24 '!D10 -> -36000 | E10: =('Employm. by sec&industry 01-24 '!F10-'Employm. by sec&industry 01-24 '!D10)/'Employm. by sec&industry 01-24 '!D10 -> -0.01633393829
A11: Transport | B11: ='Employm. by sec&industry 01-24 '!F11-'Employm. by sec&industry 01-24 '!B11 -> 188000 | C11: =('Employm. by sec&industry 01-24 '!F11-'Employm. by sec&industry 01-24 '!B11)/'Employm. by sec&industry 01-24 '!B11 -> 0.3813387424 | D11: ='Employm. by sec&industry 01-24 '!F11-'Employm. by sec&industry 01-24 '!D11 -> 6000 | E11: =('Employm. by sec&industry 01-24 '!F11-'Employm. by sec&industry 01-24 '!D11)/'Employm. by sec&industry 01-24 '!D11 -> 0.008888888889
A12: Finance | B12: ='Employm. by sec&industry 01-24 '!F12-'Employm. by sec&industry 01-24 '!B12 -> 1595000 | C12: =('Employm. by sec&industry 01-24 '!F12-'Employm. by sec&industry 01-24 '!B12)/'Employm. by sec&industry 01-24 '!B12 -> 1.61437247 | D12: ='Employm. by sec&industry 01-24 '!F12-'Employm. by sec&industry 01-24 '!D12 -> 293000 | E12: =('Employm. by sec&industry 01-24 '!F12-'Employm. by sec&industry 01-24 '!D12)/'Employm. by sec&industry 01-24 '!D12 -> 0.1279475983
A13: Community and social servicesb | B13: ='Employm. by sec&industry 01-24 '!F13-'Employm. by sec&industry 01-24 '!B13 -> 1534000 | C13: =('Employm. by sec&industry 01-24 '!F13-'Employm. by sec&industry 01-24 '!B13)/'Employm. by sec&industry 01-24 '!B13 -> 0.8656884876 | D13: ='Employm. by sec&industry 01-24 '!F13-'Employm. by sec&industry 01-24 '!D13 -> -112000 | E13: =('Employm. by sec&industry 01-24 '!F13-'Employm. by sec&industry 01-24 '!D13)/'Employm. by sec&industry 01-24 '!D13 -> -0.03276770041
A14: Other | B14: —c | C14: —c | D14: ='Employm. by sec&industry 01-24 '!F14-'Employm. by sec&industry 01-24 '!D14 -> -2000 | E14: =('Employm. by sec&industry 01-24 '!F14-'Employm. by sec&industry 01-24 '!D14)/'Employm. by sec&industry 01-24 '!D14 -> -0.1818181818
A15: Total | B15: ='Employm. by sec&industry 01-24 '!F15-'Employm. by sec&industry 01-24 '!B15 -> 4484000 | C15: =('Employm. by sec&industry 01-24 '!F15-'Employm. by sec&industry 01-24 '!B15)/'Employm. by sec&industry 01-24 '!B15 -> 0.6420389462 | D15: ='Employm. by sec&industry 01-24 '!F15-'Employm. by sec&industry 01-24 '!D15 -> 139000 | E15: =('Employm. by sec&industry 01-24 '!F15-'Employm. by sec&industry 01-24 '!D15)/'Employm. by sec&industry 01-24 '!D15 -> 0.01226939712
A16: Informal (non-agricultural)
A17: Mining | B17: —d | C17: —d | D17: ='Employm. by sec&industry 01-24 '!F17-'Employm. by sec&industry 01-24 '!D17 -> 7000 | E17: =('Employm. by sec&industry 01-24 '!F17-'Employm. by sec&industry 01-24 '!D17)/'Employm. by sec&industry 01-24 '!D17 -> 0.5833333333
A18: Manufacturing | B18: ='Employm. by sec&industry 01-24 '!F18-'Employm. by sec&industry 01-24 '!B18 -> -157000 | C18: =('Employm. by sec&industry 01-24 '!F18-'Employm. by sec&industry 01-24 '!B18)/'Employm. by sec&industry 01-24 '!B18 -> -0.4109947644 | D18: ='Employm. by sec&industry 01-24 '!F18-'Employm. by sec&industry 01-24 '!D18 -> 38000 | E18: =('Employm. by sec&industry 01-24 '!F18-'Employm. by sec&industry 01-24 '!D18)/'Employm. by sec&industry 01-24 '!D18 -> 0.2032085561
A19: Utilities | B19: —d | C19: —d | D19: ='Employm. by sec&industry 01-24 '!F19-'Employm. by sec&industry 01-24 '!D19 -> -4000 | E19: =('Employm. by sec&industry 01-24 '!F19-'Employm. by sec&industry 01-24 '!D19)/'Employm. by sec&industry 01-24 '!D19 -> -0.4444444444
A20: Construction | B20: ='Employm. by sec&industry 01-24 '!F20-'Employm. by sec&industry 01-24 '!B20 -> 162000 | C20: =('Employm. by sec&industry 01-24 '!F20-'Employm. by sec&industry 01-24 '!B20)/'Employm. by sec&industry 01-24 '!B20 -> 0.5418060201 | D20: ='Employm. by sec&industry 01-24 '!F20-'Employm. by sec&industry 01-24 '!D20 -> -35000 | E20: =('Employm. by sec&industry 01-24 '!F20-'Employm. by sec&industry 01-24 '!D20)/'Employm. by sec&industry 01-24 '!D20 -> -0.07056451613
A21: Trade | B21: ='Employm. by sec&industry 01-24 '!F21-'Employm. by sec&industry 01-24 '!B21 -> -806000 | C21: =('Employm. by sec&industry 01-24 '!F21-'Employm. by sec&industry 01-24 '!B21)/'Employm. by sec&industry 01-24 '!B21 -> -0.4034034034 | D21: ='Employm. by sec&industry 01-24 '!F21-'Employm. by sec&industry 01-24 '!D21 -> 35000 | E21: =('Employm. by sec&industry 01-24 '!F21-'Employm. by sec&industry 01-24 '!D21)/'Employm. by sec&industry 01-24 '!D21 -> 0.03025064823
A22: Transport | B22: ='Employm. by sec&industry 01-24 '!F22-'Employm. by sec&industry 01-24 '!B22 -> 193000 | C22: =('Employm. by sec&industry 01-24 '!F22-'Employm. by sec&industry 01-24 '!B22)/'Employm. by sec&industry 01-24 '!B22 -> 1.015789474 | D22: ='Employm. by sec&industry 01-24 '!F22-'Employm. by sec&industry 01-24 '!D22 -> 73000 | E22: =('Employm. by sec&industry 01-24 '!F22-'Employm. by sec&industry 01-24 '!D22)/'Employm. by sec&industry 01-24 '!D22 -> 0.235483871
A23: Finance | B23: ='Employm. by sec&industry 01-24 '!F23-'Employm. by sec&industry 01-24 '!B23 -> 176000 | C23: =('Employm. by sec&industry 01-24 '!F23-'Employm. by sec&industry 01-24 '!B23)/'Employm. by sec&industry 01-24 '!B23 -> 1.205479452 | D23: ='Employm. by sec&industry 01-24 '!F23-'Employm. by sec&industry 01-24 '!D23 -> 13000 | E23: =('Employm. by sec&industry 01-24 '!F23-'Employm. by sec&industry 01-24 '!D23)/'Employm. by sec&industry 01-24 '!D23 -> 0.04207119741
A24: Community and social servicesb | B24: ='Employm. by sec&industry 01-24 '!F24-'Employm. by sec&industry 01-24 '!B24 -> 191000 | C24: =('Employm. by sec&industry 01-24 '!F24-'Employm. by sec&industry 01-24 '!B24)/'Employm. by sec&industry 01-24 '!B24 -> 0.5787878788 | D24: ='Employm. by sec&industry 01-24 '!F24-'Employm. by sec&industry 01-24 '!D24 -> -26000 | E24: =('Employm. by sec&industry 01-24 '!F24-'Employm. by sec&industry 01-24 '!D24)/'Employm. by sec&industry 01-24 '!D24 -> -0.04753199269
A25: Other | B25: —d | C25: —d | D25: ='Employm. by sec&industry 01-24 '!F25-'Employm. by sec&industry 01-24 '!D25 -> -1000 | E25: =('Employm. by sec&industry 01-24 '!F25-'Employm. by sec&industry 01-24 '!D25)/'Employm. by sec&industry 01-24 '!D25 -> -0.5
A26: Total | B26: ='Employm. by sec&industry 01-24 '!F26-'Employm. by sec&industry 01-24 '!B26 -> -224000 | C26: =('Employm. by sec&industry 01-24 '!F26-'Employm. by sec&industry 01-24 '!B26)/'Employm. by sec&industry 01-24 '!B26 -> -0.06680584551 | D26: ='Employm. by sec&industry 01-24 '!F26-'Employm. by sec&industry 01-24 '!D26 -> 100000 | E26: =('Employm. by sec&industry 01-24 '!F26-'Employm. by sec&industry 01-24 '!D26)/'Employm. by sec&industry 01-24 '!D26 -> 0.0330141961
A27: Agriculture | B27: ='Employm. by sec&industry 01-24 '!F27-'Employm. by sec&industry 01-24 '!B27 -> -73000 | C27: =('Employm. by sec&industry 01-24 '!F27-'Employm. by sec&industry 01-24 '!B27)/'Employm. by sec&industry 01-24 '!B27 -> -0.07533539732 | D27: ='Employm. by sec&industry 01-24 '!F27-'Employm. by sec&industry 01-24 '!D27 -> 2000 | E27: =('Employm. by sec&industry 01-24 '!F27-'Employm. by sec&industry 01-24 '!D27)/'Employm. by sec&industry 01-24 '!D27 -> 0.002237136465
A28: Private households | B28: ='Employm. by sec&industry 01-24 '!F28-'Employm. by sec&industry 01-24 '!B28 -> -28000 | C28: =('Employm. by sec&industry 01-24 '!F28-'Employm. by sec&industry 01-24 '!B28)/'Employm. by sec&industry 01-24 '!B28 -> -0.02356902357 | D28: ='Employm. by sec&industry 01-24 '!F28-'Employm. by sec&industry 01-24 '!D28 -> 67000 | E28: =('Employm. by sec&industry 01-24 '!F28-'Employm. by sec&industry 01-24 '!D28)/'Employm. by sec&industry 01-24 '!D28 -> 0.06129917658
A29: TOTAL | B29: ='Employm. by sec&industry 01-24 '!F29-'Employm. by sec&industry 01-24 '!B29 -> 4158000 | C29: =('Employm. by sec&industry 01-24 '!F29-'Employm. by sec&industry 01-24 '!B29)/'Employm. by sec&industry 01-24 '!B29 -> 0.3327997439 | D29: ='Employm. by sec&industry 01-24 '!F29-'Employm. by sec&industry 01-24 '!D29 -> 306000 | E29: =('Employm. by sec&industry 01-24 '!F29-'Employm. by sec&industry 01-24 '!D29)/'Employm. by sec&industry 01-24 '!D29 -> 0.01872017619
A30: Source: Stats SA, Labour Force Survey Historical revision March series 2001 to 2021, Statistical release P0210, p16; QLFS Trends 2008-2024Q2, accessed 18 August 2024
A31: a This table shows the actual and percentage change in overall employment.
A32: b Including government.
A33: c In the revised LFS data for 2001, there was no category 'Other'.
A34: d Sample too small for reliable estimates.

Sheet All employment 2008 and 2024
A2: All employment by industry and sex, 2008 and 2024
B4: —2008— | D4: —2024— | F4: Changea
A5: Male | B5: Number | C5: Proportion | D5: Number | E5: Proportion
A6: Agriculture | B6: 563000 | C6: 0.039 | D6: 622000 | E6: =D6/total1 -> 0.03735287053 | F6: =(D6-B6)/B6 -> 0.1047957371
A7: Mining | B7: 337000 | C7: 0.023 | D7: 367000 | E7: =D7/total1 -> 0.02203939467 | F7: =(D7-B7)/B7 -> 0.08902077151
A8: Manufacturing | B8: 1418000 | C8: 0.097 | D8: 1050000 | E8: 0.06305548883 | F8: -0.2595204513
A9: Utilities | B9: 83000 | C9: 0.006 | D9: 90000 | E9: 0.005404756185 | F9: 0.0843373494
A10: Construction | B10: 1101000 | C10: 0.075 | D10: 1072000 | E10: 0.06437665145 | F10: -0.02633969119
A11: Trade | B11: 1663000 | C11: 0.114 | D11: 1750000 | E11: 0.1050924814 | F11: 0.05231509321
A12: Transport | B12: 650000 | C12: 0.045 | D12: 874000 | E12: 0.05248618785 | F12: 0.3446153846
A13: Finance | B13: 1028000 | C13: 0.07 | D13: 1690000 | E13: 0.1014893106 | F13: 0.6439688716
A14: Community and social servicesb | B14: 1194000 | C14: 0.082 | D14: 1391000 | E14: 0.08353350949 | F14: 0.1649916248
A15: Private households | B15: 281000 | C15: 0.019 | D15: 289000 | E15: 0.01735527264 | F15: =(D15-B15)/B15 -> 0.02846975089
A16: Other | B16: 2000 | C16: 0 | D16: 9000 | E16: 0.0005404756185 | F16: 3.5
A17: Total | B17: 8319000 | C17: 0.57 | D17: =SUM(D6:D16) -> 9204000 | E17: =D17/total1 -> 0.5527263992 | F17: 0.1063829787
A18: Female
A19: Agriculture | B19: 257000 | C19: 0.018 | D19: 274000 | E19: 0.01645447994 | F19: =(D19-B19)/B19 -> 0.06614785992
A20: Mining | B20: 36000 | C20: 0.002 | D20: 90000 | E20: 0.005404756185 | F20: 1.5
A21: Manufacturing | B21: 681000 | C21: 0.047 | D21: 605000 | E21: 0.03633197214 | F21: -0.1116005874
A22: Utilities | B22: 26000 | C22: 0.002 | D22: 24000 | E22: 0.001441268316 | F22: -0.07692307692
A23: Construction | B23: 122000 | C23: 0.008 | D23: 132000 | E23: =D23/total1 -> 0.007926975739 | F23: 0.08196721311
A24: Trade | B24: 1608000 | C24: 0.11 | D24: 1610000 | E24: 0.09668508287 | F24: 0.001243781095
A25: Transport | B25: 182000 | C25: 0.012 | D25: 191000 | E25: 0.01147009368 | F25: 0.04945054945
A26: Finance | B26: 785000 | C26: 0.054 | D26: 1214000 | E26: 0.07290415566 | F26: 0.5464968153
A27: Community and social servicesb | B27: 1591000 | C27: 0.109 | D27: 2436000 | E27: 0.1462887341 | F27: 0.5311125079
A28: Private households | B28: 975000 | C28: 0.067 | D28: 871000 | E28: 0.05230602931 | F28: -0.1066666667
A29: Other | B29: 3000 | C29: 0 | D29: 0 | E29: 0 | F29: -1
A30: Total | B30: 6266000 | C30: 0.43 | D30: =SUM(D19:D29) -> 7447000 | E30: 0.4472135479 | F30: =(D30-B30)/B30 -> 0.1884774976
A31: Both sexes
A32: Agriculture | B32: 820000 | C32: 0.056 | D32: 896000 | E32: 0.05380735047 | F32: =(D32-B32)/B32 -> 0.09268292683
A33: Mining | B33: 373000 | C33: 0.026 | D33: 457000 | E33: 0.02744415085 | F33: 0.2252010724
A34: Manufacturing | B34: 2099000 | C34: 0.144 | D34: 1655000 | E34: 0.09938746097 | F34: -0.2115292997
A35: Utilities | B35: 109000 | C35: 0.007 | D35: 114000 | E35: 0.006846024502 | F35: 0.04587155963
A36: Construction | B36: 1223000 | C36: 0.084 | D36: 1204000 | E36: 0.07230362719 | F36: -0.01553556827
A37: Trade | B37: 3271000 | C37: 0.224 | D37: 3360000 | E37: 0.2017775643 | F37: 0.02720880465
A38: Transport | B38: 832000 | C38: 0.057 | D38: 1064000 | E38: 0.06389622868 | F38: 0.2788461538
A39: Finance | B39: 1813000 | C39: 0.124 | D39: 2905000 | E39: 0.1744535191 | F39: 0.6023166023
A40: Community and social servicesb | B40: 2785000 | C40: 0.191 | D40: 3827000 | E40: 0.2298222436 | F40: 0.3741472172
A41: Private households | B41: 1255000 | C41: 0.086 | D41: 1160000 | E41: 0.06966130195 | F41: -0.07569721116
A42: Other | B42: 5000 | C42: 0 | D42: 10000 | E42: 0.000600528465 | F42: 1
A43: TOTAL | B43: 14584000 | C43: 1 | D43: =SUM(D32:D42) -> 16652000 | E43: 1 | F43: 0.141799232
A44: Source: Stats SA, Labour Force Survey Historical revision March series 2001 to 2021, Statistical release P0210, p16; QLFS Trends 2008-2024Q2, accessed 18 August 2024
A45: a Figures from 2008 to 2024 are strictly comparable. Refers to the change in number.
A46: b Including government.

Sheet All empl. by ind.race.sex
A2: All employment by industry, race and sex (actual numbers), 2024
A4: Male | B4: Black | C4: Coloured | D4: Indian/Asian | E4: White | F4: Totala
A5: Agriculture | B5: 482776 | C5: 108287 | D5: 50 | E5: 31691 | F5: 621805
A6: Mining | B6: 290660 | C6: 20479 | D6: 4023 | E6: 51923 | F6: 367085
A7: Manufacturing | B7: 751105 | C7: 117188 | D7: 49768 | E7: 131990 | F7: 1050051
A8: Utilities | B8: 65044 | C8: 11546 | D8: —b | E8: 13493 | F8: 90083
A9: Construction | B9: 859998 | C9: 113215 | D9: 13591 | E9: 85185 | F9: 1071988
A10: Trade | B10: 1290438 | C10: 141857 | D10: 153763 | E10: 164044 | F10: 1750103
A11: Transport | B11: 703456 | C11: 78105 | D11: 23421 | E11: 68615 | F11: 873597
A12: Finance | B12: 1181248 | C12: 157137 | D12: 85361 | E12: 265985 | F12: 1690426
A13: Community and social servicesc | B13: 1078248 | C13: 147471 | D13: 30786 | E13: 134615 | F13: 1391120
A14: Private households | B14: 270520 | C14: 15099 | D14: 16.02 | E14: 17.15 | F14: 288935
A15: Other | B15: 3134 | C15: 2373 | D15: 2766 | E15: 855 | F15: 9129
A16: Totala | B16: 6977323 | C16: 911758 | D16: 365131 | E16: 950111 | F16: 9204322
A17: Female
A18: Agriculture | B18: 233310 | C18: 34572 | D18: —b | E18: 6238 | F18: 274120
A19: Mining | B19: 74440 | C19: 2407 | D19: —b | E19: 12770 | F19: 89617
A20: Manufacturing | B20: 412710 | C20: 103319 | D20: 22554 | E20: 66169 | F20: 604752
A21: Utilities | B21: 20124 | C21: —b | D21: 9.91 | E21: 2906 | F21: 24021
A22: Construction | B22: 102862 | C22: 11381 | D22: 4128 | E22: 14049 | F22: 132421
A23: Trade | B23: 1300937 | C23: 139321 | D23: 42913 | E23: 126834 | F23: 1610005
A24: Transport | B24: 126225 | C24: 18115 | D24: 12167 | E24: 34348 | F24: 190855
A25: Finance | B25: 799267 | C25: 148793 | D25: 41457 | E25: 224848 | F25: 1214365
A26: Community and social servicesc | B26: 1822509 | C26: 248572 | D26: 62793 | E26: 302217 | F26: 2436091
A27: Private households | B27: 798302 | C27: 65799 | D27: —b | E27: 7185 | F27: 871287
A28: Other | B28: —b | C28: 477 | D28: —b | E28: —b | F28: 477
A29: Totala | B29: 5690686 | C29: 772758 | D29: 187003 | E29: 797564 | F29: 7488011
A30: Both sexes
A31: Agriculture | B31: 716086 | C31: 141859 | D31: 50 | E31: 37929 | F31: 895924
A32: Mining | B32: 365100 | C32: 22886 | D32: 4023 | E32: 64693 | F32: 456702
A33: Manufacturing | B33: 1163814 | C33: 220508 | D33: 72321 | E33: 198159 | F33: 1654803
A34: Utilities | B34: 85168 | C34: 11546 | D34: 991 | E34: 16399 | F34: 114104
A35: Construction | B35: 962860 | C35: 124596 | D35: 17719 | E35: 99234 | F35: 1204409
A36: Trade | B36: 2591375 | C36: 281178 | D36: 196676 | E36: 290878 | F36: 3360108
A37: Transport | B37: 829681 | C37: 96221 | D37: 35588 | E37: 102963 | F37: 1064453
A38: Finance | B38: 1981210 | C38: 305931 | D38: 126818 | E38: 490832 | F38: 2904791
A39: Community and social servicesc | B39: 2900757 | C39: 396043 | D39: 93579 | E39: 436832 | F39: 3827211
A40: Private households | B40: 1068822 | C40: 80898 | D40: 1602 | E40: 8900 | F40: 1160223
A41: Other | B41: 3134 | C41: 2851 | D41: 2766 | E41: 855 | F41: 9606
A42: Totala | B42: 12668009 | C42: 1684516 | D42: 552134 | E42: 1747675 | F42: 16652333
A43: Source: Stats SA, email communication, 9 September 2024
A44: a Figures should add up vertically and horizontally but may not, owing to rounding.
A45: b For all values of 10 000 or lower, the sample size is too small for reliable estimates.
A46: c Including government.

Sheet All empl. by ind. race, sex, %
A2: All employment by industry, race and sex (proportions), 2024
A4: Male | B4: Black | C4: Coloured | D4: Indian/Asian | E4: White | F4: Totala
A5: Agriculture | B5: 0.0692 | C5: 0.1177 | D5: 0.0001 | E5: 0.0334 | F5: 0.0676
A6: Mining | B6: 0.0417 | C6: 0.0225 | D6: 0.011 | E6: 0.0546 | F6: 0.0399
A7: Manufacturing | B7: 0.1076 | C7: 0.1285 | D7: 0.1363 | E7: 0.1389 | F7: 0.1141
A8: Utilities | B8: 0.0093 | C8: 0.0127 | D8: 0 | E8: 0.0142 | F8: 0.0098
A9: Construction | B9: 0.1233 | C9: 0.1242 | D9: 0.0372 | E9: 0.0897 | F9: 0.1165
A10: Trade | B10: 0.1849 | C10: 0.1556 | D10: 0.4211 | E10: 0.1727 | F10: 0.1901
A11: Transport | B11: 0.1008 | C11: 0.0857 | D11: 0.0641 | E11: 0.0722 | F11: 0.0949
A12: Finance | B12: 0.1694 | C12: 0.1723 | D12: 0.2338 | E12: 0.28 | F12: 0.1837
A13: Community and social servicesb | B13: 0.1545 | C13: 0.1617 | D13: 0.0843 | E13: 0.1417 | F13: 0.1511
A14: Private households | B14: 0.0388 | C14: 0.0166 | D14: 0.0044 | E14: 0.0018 | F14: 0.0314
A15: Other | B15: 0.0004 | C15: 0.0026 | D15: 0.0076 | E15: 0.0009 | F15: 0.001
A16: Totala | B16: =SUM(B5:B15) -> 0.9999 | C16: =SUM(C5:C15) -> 1.0001 | D16: 0.9999 | E16: 1.0001 | F16: 1.0001
A17: Female
A18: Agriculture | B18: 0.041 | C18: 0.0447 | D18: 0 | E18: 0.0078 | F18: 0.0368
A19: Mining | B19: 0.0131 | C19: 0.0031 | D19: 0 | E19: 0.016 | F19: 0.012
A20: Manufacturing | B20: 0.0725 | C20: 0.1337 | D20: 0.1206 | E20: 0.083 | F20: 0.0812
A21: Utilities | B21: 0.0035 | C21: 0 | D21: 0.0053 | E21: 0.0036 | F21: 0.0032
A22: Construction | B22: 0.0181 | C22: 0.0147 | D22: 0.0221 | E22: 0.0176 | F22: 0.0178
A23: Trade | B23: 0.2286 | C23: 0.1803 | D23: 0.2295 | E23: 0.159 | F23: 0.2162
A24: Transport | B24: 0.0222 | C24: 0.0234 | D24: 0.0651 | E24: 0.0431 | F24: 0.0256
A25: Finance | B25: 0.1405 | C25: 0.1925 | D25: 0.2217 | E25: 0.2819 | F25: 0.163
A26: Community and social servicesb | B26: 0.3203 | C26: 0.3217 | D26: 0.3358 | E26: 0.3789 | F26: 0.3271
A27: Private households | B27: 0.1403 | C27: 0.0851 | D27: 0 | E27: 0.009 | F27: 0.117
A28: Other | B28: 0 | C28: 0.0006 | D28: 0 | E28: 0 | F28: 0.0001
A29: Totala | B29: =SUM(B18:B28) -> 1.0001 | C29: =SUM(C18:C28) -> 0.9998 | D29: 1.0001 | E29: 0.9999 | F29: 1
A30: Both sexes
A31: Agriculture | B31: 0.0565 | C31: 0.0842 | D31: 0.0001 | E31: 0.0217 | F31: 0.0538
A32: Mining | B32: 0.0288 | C32: 0.0136 | D32: 0.0073 | E32: 0.037 | F32: 0.0274
A33: Manufacturing | B33: 0.0919 | C33: 0.1309 | D33: 0.131 | E33: 0.1134 | F33: 0.0994
A34: Utilities | B34: 0.0067 | C34: 0.0069 | D34: 0.0018 | E34: 0.0094 | F34: 0.0069
A35: Construction | B35: 0.076 | C35: 0.074 | D35: 0.0321 | E35: 0.0568 | F35: 0.0723
A36: Trade | B36: 0.2046 | C36: 0.1669 | D36: 0.3562 | E36: 0.1664 | F36: 0.2018
A37: Transport | B37: 0.0655 | C37: 0.0571 | D37: 0.0645 | E37: 0.0589 | F37: 0.0639
A38: Finance | B38: 0.1564 | C38: 0.1816 | D38: 0.2297 | E38: 0.2808 | F38: 0.1744
A39: Community and social servicesb | B39: 0.229 | C39: 0.2351 | D39: 0.1695 | E39: 0.25 | F39: 0.2298
A40: Private households | B40: 0.0844 | C40: 0.048 | D40: 0.0029 | E40: 0.0051 | F40: 0.0697
A41: Other | B41: 0.0002 | C41: 0.0017 | D41: 0.005 | E41: 0.0005 | F41: 0.0006
A42: Totala | B42: =SUM(B31:B41) -> 1 | C42: =SUM(C31:C41) -> 1 | D42: 1.0001 | E42: 1 | F42: 1
A43: Source: Stats SA, email communication, 9 September 2024
A44: a Figures should add up vertically and horizontally but may not, owing to rounding.
A45: b Including government.

Sheet QLFS+QES

Sheet Differences bet QLFS&QES
A2: Comparison between the Quarterly Labour Force Services (QLFS) and the Quarterly Employment Statistics (QES)
A4: Key differences between the QLFS and the QES
B6: QLFS | C6: QES
A7: Coverage | B7: Private households and workers' hostels | C7: Payroll of VAT registered businesses
B8: Non-institutional population (15 years and older) | C8: Employees only
B9: Total employment (including informal sector, private households, agriculture, and small businesses) | C9: Formal sector excluding agriculture
A10: Sample size | B10: Quarterly sample of approximately 30 000 dwellings in which households reside | C10: Quarterly sample of 20 000 non-agricultural formal sector businesses
A11: Reference period | B11: One week prior to the interview | C11: Payroll on the last day of the quarter
A12: Standard industrial classification (SIC) | B12: All industries | C12: Excluding agriculture and private households
A13: Formal sector definition (excluding agriculture and private households) | B13: Employers and own-account workers registered for VAT or income tax Employees paying income tax and those not paying tax but working in firms with 5 or more workers | C13: Employees on payroll of VAT registered businesses
A14: Source: Stats SA, Quarterly Labour Force Survey Quarter 2: 2024, Statistical release P0211, 18 August 2024, p14

Sheet Employm.by industry QLFSvsQES
A2: Employment by industry, 2024
B4: QLFS | C4: QES | D4: Difference: —QLFS vs QES—
A5: Sector | B5: —Q2 2024— | D5: Number | E5: Change
A6: Agriculture | B6: 896000 | C6: — | D6: — | E6: —
A7: Mining | B7: 457000 | C7: 472000 | D7: =C7-B7 -> 15000 | E7: =(C7-B7)/B7 -> 0.03282275711
A8: Manufacturing | B8: 1655000 | C8: 1293000 | D8: =C8-B8 -> -362000 | E8: =(C8-B8)/B8 -> -0.2187311178
A9: Utilities | B9: 114000 | C9: 64000 | D9: -50000 | E9: =(C9-B9)/B9 -> -0.4385964912
A10: Construction | B10: 1204000 | C10: 591000 | D10: -613000 | E10: -0.5091362126
A11: Trade | B11: 3360000 | C11: 2322000 | D11: -1038000 | E11: -0.3089285714
A12: Transport | B12: 1064000 | C12: 480000 | D12: -584000 | E12: -0.5488721805
A13: Finance | B13: 2905000 | C13: 2473000 | D13: -432000 | E13: -0.1487091222
A14: Community and social services | B14: 3827000 | C14: 3021000 | D14: -806000 | E14: -0.210608832
A15: Private households | B15: 1160000 | C15: — | D15: — | E15: —
A16: Other | B16: 10000 | C16: — | D16: — | E16: —
A17: Total | B17: =SUM(B6:B16) -> 16652000 | C17: 10716000 | D17: =C17-B17 -> -5936000 | E17: =(C17-B17)/B17 -> -0.3564736969
A18: Source: Stats SA, Quarterly Employment Statistics: March 2024 (QES) details breakdown 2009-2024, accessed 18 August 2024; Quarterly Labour Force Survey (QLFS) Trends 2008-24Q2, accessed 18 August 2024

Sheet Employment by occupation

Sheet Employment by occupation 01-24
A2: All employment by occupation
B5: —2001— | D5: —2024— | F5: Change 2001-24c
A6: Category | B6: Number | C6: Proportion | D6: Number | E6: Proportion
A7: Skilled | B7: 2436000 | C7: =B7/B20 -> 0.1949735873 | D7: =SUM(D8:D10) -> 4333000 | E7: =D7/total2 -> 0.2603340543 | F7: =(D7-B7)/B7 -> 0.7787356322
A8: Manager | B8: 664000 | C8: 0.053 | D8: 1451000 | E8: 0.08717856285 | F8: =(D8-B8)/B8 -> 1.185240964
A9: Professional | B9: 385000 | C9: 0.031 | D9: 1102000 | E9: 0.06621004566 | F9: =(D9-B9)/B9 -> 1.862337662
A10: Technician | B10: 1387000 | C10: 0.111 | D10: 1780000 | E10: 0.1069454458 | F10: 0.2833453497
A11: Semi-skilled | B11: 6065000 | C11: =B11/B20 -> 0.4854330078 | D11: =SUM(D12:D16) -> 7374000 | E11: 0.4430425379 | F11: 0.2158285243
A12: Clerk | B12: 1202000 | C12: 0.096 | D12: 1705000 | E12: 0.1024393175 | F12: 0.418469218
A13: Sales and services | B13: 1796000 | C13: 0.144 | D13: 2584000 | E13: 0.1552511416 | F13: =(D13-B13)/B13 -> 0.438752784
A14: Skilled agriculture | B14: 215000 | C14: 0.017 | D14: 105000 | E14: =D14/total2 -> 0.006308579668 | F14: -0.511627907
A15: Craft and related trade | B15: 1734000 | C15: 0.139 | D15: 1672000 | E15: 0.100456621 | F15: -0.03575547866
A16: Plant and machine operator | B16: 1118000 | C16: 0.089 | D16: 1308000 | E16: 0.07858687815 | F16: 0.1699463327
A17: Low-skilled | B17: 3990000 | C17: =B17/B20 -> 0.3193532896 | D17: =SUM(D18:D19) -> 4937000 | E17: =D17/total2 -> 0.2966234078 | F17: =(D17-B17)/B17 -> 0.2373433584
A18: Elementary | B18: 3036000 | C18: 0.243 | D18: 4094000 | E18: 0.2459745254 | F18: 0.3484848485
A19: Domestic worker | B19: 954000 | C19: 0.076 | D19: 843000 | E19: 0.05064888248 | F19: -0.1163522013
A20: Totalb | B20: 12494000 | C20: 1 | D20: =SUM(D7,D11,D17) -> 16644000 | E20: 1 | F20: =(D20-B20)/B20 -> 0.3321594365
A21: Source: Stats SA, Labour Force Survey Historical Revision: March Series 2001–2021, Statistical release P0210, 28 August 2008, p15; QLFS Trends 2008-2024Q2, accessed 18 August 2024
A22: a Employers, employees, and self-employed including all sectors.
A23: b Figures should add up vertically but may not, owing to rounding.
A24: c Refers to the change in numbers.

Sheet BG Change in employm.01-24
A7: Manager | B7: 1.185
A8: Professional | B8: 1.862
A9: Technician | B9: 0.283
A10: Clerk | B10: 0.418
A11: Sales and services | B11: 0.439
A12: Skilled agriculture | B12: -0.512
A13: Craft and related trade | B13: -0.036
A14: Plant and machine operator | B14: 0.17
A15: Elementary | B15: 0.348
A16: Domestic worker | B16: -0.116

Sheet Employ. by occup,race, sex.01
A2: All employment by occupation, race and sex (actual numbers), 2001
A4: Male | B4: Black | C4: Coloured | D4: Indian/Asian | E4: White | F4: Totala
A5: Manager | B5: 146000 | C5: 30000 | D5: 38000 | E5: 314000 | F5: 528000 | Y5: 339000 | Z5: 59000 | AA5: 83000 | AB5: 253000 | AC5: 733000
A6: Professional | B6: 68000 | C6: 14000 | D6: 12000 | E6: 109000 | F6: 202000 | Y6: 323000 | Z6: 55000 | AA6: 44000 | AB6: 218000 | AC6: 641000
A7: Technician | B7: 353000 | C7: 61000 | D7: 37000 | E7: 220000 | F7: 671000 | Y7: 429000 | Z7: 72000 | AA7: 33000 | AB7: 114000 | AC7: 648000
A8: Clerk | B8: 211000 | C8: 43000 | D8: 36000 | E8: 76000 | F8: 366000 | Y8: 369000 | Z8: 80000 | AA8: 40000 | AB8: 72000 | AC8: 560000
A9: Sales and services | B9: 673000 | C9: 74000 | D9: 24000 | E9: 118000 | F9: 889000 | Y9: 1237000 | Z9: 110000 | AA9: 86000 | AB9: 77000 | AC9: 1510000
A10: Skilled agriculture | B10: 174000 | C10: 15000 | D10: —b | E10: —b | F10: 189000 | Y10: 48000 | Z10: 3000 | AA10: —b | AB10: 10000 | AC10: 60000 | AE10: =(Y10-B10)/B10 -> -0.724137931 | AF10: =(Z10-C10)/C10 -> -0.8 | AG10: =(AA10-D10)/D10 ->  | AH10: =(AB10-E10)/E10 ->  | AI10: =(AC10-F10)/F10 -> -0.6825396825
A11: Craft and related trade | B11: 962000 | C11: 157000 | D11: 39000 | E11: 234000 | F11: 1391000 | Y11: 1210000 | Z11: 142000 | AA11: 23000 | AB11: 126000 | AC11: 1501000 | AE11: 0.2577962578 | AF11: -0.09554140127 | AG11: -0.4102564103 | AH11: -0.4615384615 | AI11: 0.07907979871
A12: Plant and machine operator | B12: 795000 | C12: 80000 | D12: 30000 | E12: 45000 | F12: 951000 | Y12: 1086000 | Z12: 107000 | AA12: 26000 | AB12: 34000 | AC12: 1253000 | AE12: 0.3660377358 | AF12: 0.3375 | AG12: -0.1333333333 | AH12: -0.2444444444 | AI12: 0.3175604627
A13: Elementary | B13: 1115000 | C13: 250000 | D13: 25000 | E13: 43000 | F13: 1435000 | Y13: 1925000 | Z13: 277000 | AA13: 24000 | AB13: 60000 | AC13: 2287000 | AE13: 0.7264573991 | AF13: 0.108 | AG13: -0.04 | AH13: 0.3953488372 | AI13: 0.593728223
A14: Domestic worker | B14: 43000 | C14: 2000 | D14: —b | E14: —b | F14: 44000 | Y14: 37000 | Z14: 57000 | AA14: —b | AB14: —b | AC14: 40000 | AE14: -0.1395348837 | AF14: 27.5 | AI14: -0.09090909091
A15: Total | B15: 4540000 | C15: 725000 | D15: 241000 | E15: 1159000 | F15: 6666000 | Y15: 7004000 | Z15: 909000 | AA15: 359000 | AB15: 964000 | AC15: 9236000 | AE15: 0.5427312775 | AF15: 0.2537931034 | AG15: 0.489626556 | AH15: -0.1682484901 | AI15: 0.3855385539
A16: Female
A17: Manager | B17: 40000 | C17: 12000 | D17: 5000 | E17: 80000 | F17: 137000 | Y17: 183000 | Z17: 24000 | AA17: 24000 | AB17: 141000 | AC17: 371000 | AE17: 3.575 | AF17: 1 | AG17: 3.8 | AH17: 0.7625 | AI17: 1.708029197
A18: Professional | B18: 80000 | C18: 11000 | D18: 10000 | E18: 83000 | F18: 183000 | Y18: 403000 | Z18: 57000 | AA18: 54000 | AB18: 198000 | AC18: 713000 | AE18: 4.0375 | AF18: 4.181818182 | AG18: 4.4 | AH18: 1.385542169 | AI18: 2.896174863
A19: Technician | B19: 413000 | C19: 78000 | D19: 17000 | E19: 208000 | F19: 716000 | Y19: 532000 | Z19: 91000 | AA19: 37000 | AB19: 135000 | AC19: 796000 | AE19: 0.2881355932 | AF19: 0.1666666667 | AG19: 1.176470588 | AH19: -0.3509615385 | AI19: 0.1117318436
A20: Clerk | B20: 274000 | C20: 127000 | D20: 51000 | E20: 385000 | F20: 836000 | Y20: 868000 | Z20: 187000 | AA20: 49000 | AB20: 225000 | AC20: 1329000 | AE20: 2.167883212 | AF20: 0.4724409449 | AG20: -0.03921568627 | AH20: -0.4155844156 | AI20: 0.5897129187
A21: Sales and services | B21: 697000 | C21: 80000 | D21: 24000 | E21: 107000 | F21: 908000 | Y21: 1205000 | Z21: 159000 | AA21: 19000 | AB21: 60000 | AC21: 1443000 | AE21: 0.7288378766 | AF21: 0.9875 | AG21: -0.2083333333 | AH21: -0.4392523364 | AI21: 0.5892070485
A22: Skilled agriculture | B22: 26000 | C22: 1000 | D22: —b | E22: —b | F22: 27000 | Y22: 15000 | Z22: —b | AA22: —b | AB22: 1000 | AC22: 16000 | AE22: -0.4230769231 | AI22: -0.4074074074
A23: Craft and related trade | B23: 271000 | C23: 30000 | D23: 11000 | E23: 29000 | F23: 342000 | Y23: 173000 | Z23: 26000 | AA23: 2000 | AB23: 16000 | AC23: 216000 | AE23: -0.3616236162 | AF23: -0.1333333333 | AG23: -0.8181818182 | AH23: -0.4482758621 | AI23: -0.3684210526
A24: Plant and machine operator | B24: 115000 | C24: 35000 | D24: 12000 | E24: 5000 | F24: 167000 | Y24: 124000 | Z24: 26000 | AA24: 3000 | AB24: 3000 | AC24: 155000 | AE24: 0.07826086957 | AF24: -0.2571428571 | AG24: -0.75 | AH24: -0.4 | AI24: -0.07185628743
A25: Elementary | B25: 1413000 | C25: 159000 | D25: 13000 | E25: 16000 | F25: 1602000 | Y25: 1429000 | Z25: 198000 | AA25: 5000 | AB25: 17000 | AC25: 1648000 | AE25: 0.01132342534 | AF25: 0.2452830189 | AG25: -0.6153846154 | AH25: 0.0625 | AI25: 0.02871410737
A26: Domestic worker | B26: 811000 | C26: 94000 | D26: 1000 | E26: 4000 | F26: 910000 | Y26: 765000 | Z26: 54000 | AA26: 1000 | AB26: —b | AC26: 820000 | AE26: -0.05672009864 | AF26: -0.4255319149 | AG26: 0 | AI26: -0.0989010989
A27: Total | B27: 4140000 | C27: 627000 | D27: 145000 | E27: 916000 | F27: 5827000 | Y27: 5699000 | Z27: 821000 | AA27: 194000 | AB27: 796000 | AC27: 7509000 | AE27: 0.3765700483 | AF27: 0.3094098884 | AG27: 0.3379310345 | AH27: -0.1310043668 | AI27: 0.2886562554
A28: Both sexes
A29: Manager | B29: 186000 | C29: 42000 | D29: 43000 | E29: 393000 | F29: 664000 | Y29: 521000 | Z29: 83000 | AA29: 106000 | AB29: 394000 | AC29: 1105000 | AE29: 1.801075269 | AF29: 0.9761904762 | AG29: 1.465116279 | AH29: 0.002544529262 | AI29: 0.6641566265
A30: Professional | B30: 148000 | C30: 24000 | D30: 21000 | E30: 191000 | F30: 385000 | Y30: 727000 | Z30: 112000 | AA30: 98000 | AB30: 416000 | AC30: 1354000 | AE30: 3.912162162 | AF30: 3.666666667 | AG30: 3.666666667 | AH30: 1.178010471 | AI30: 2.516883117
A31: Technician | B31: 766000 | C31: 139000 | D31: 54000 | E31: 428000 | F31: 1387000 | Y31: 961000 | Z31: 163000 | AA31: 71000 | AB31: 250000 | AC31: 1444000 | AE31: 0.2545691906 | AF31: 0.1726618705 | AG31: 0.3148148148 | AH31: -0.4158878505 | AI31: 0.04109589041
A32: Clerk | B32: 485000 | C32: 170000 | D32: 87000 | E32: 460000 | F32: 1202000 | Y32: 1238000 | Z32: 267000 | AA32: 88000 | AB32: 296000 | AC32: 1889000 | AE32: 1.55257732 | AF32: 0.5705882353 | AG32: 0.01149425287 | AH32: -0.3565217391 | AI32: 0.571547421
A33: Sales and services | B33: 1370000 | C33: 154000 | D33: 47000 | E33: 225000 | F33: 1796000 | Y33: 2442000 | Z33: 269000 | AA33: 105000 | AB33: 137000 | AC33: 2953000 | AE33: 0.7824817518 | AF33: 0.7467532468 | AG33: 1.234042553 | AH33: -0.3911111111 | AI33: 0.6442093541
A34: Skilled agriculture | B34: 200000 | C34: 15000 | D34: —b | E34: —b | F34: 215000 | Y34: 63000 | Z34: 3000 | AA34: —b | AB34: 11000 | AC34: 76000 | AE34: -0.685 | AF34: -0.8 | AI34: -0.6465116279
A35: Craft and related trade | B35: 1233000 | C35: 187000 | D35: 50000 | E35: 263000 | F35: 1734000 | Y35: 1383000 | Z35: 168000 | AA35: 25000 | AB35: 142000 | AC35: 1717000 | AE35: 0.1216545012 | AF35: -0.1016042781 | AG35: -0.5 | AH35: -0.4600760456 | AI35: -0.009803921569
A36: Plant and machine operator | B36: 910000 | C36: 115000 | D36: 43000 | E36: 50000 | F36: 1118000 | Y36: 1209000 | Z36: 133000 | AA36: 28000 | AB36: 38000 | AC36: 1408000 | AE36: 0.3285714286 | AF36: 0.1565217391 | AG36: -0.3488372093 | AH36: -0.24 | AI36: 0.259391771
A37: Elementary | B37: 2528000 | C37: 410000 | D37: 39000 | E37: 60000 | F37: 3036000 | Y37: 3354000 | Z37: 475000 | AA37: 29000 | AB37: 77000 | AC37: 3935000 | AE37: 0.3267405063 | AF37: 0.1585365854 | AG37: -0.2564102564 | AH37: 0.2833333333 | AI37: 0.296113307
A38: Domestic worker | B38: 854000 | C38: 96000 | D38: 1000 | E38: 4000 | F38: 954000 | Y38: 801000 | Z38: 57000 | AA38: 1000 | AB38: —b | AC38: 860000 | AE38: -0.06206088993 | AF38: -0.40625 | AG38: 0 | AI38: -0.09853249476
A39: Total | B39: 8680000 | C39: 1352000 | D39: 386000 | E39: 2075000 | F39: 12494000 | Y39: 12703000 | Z39: 1729000 | AA39: 553000 | AB39: 1760000 | AC39: 16745000 | AE39: 0.4634792627 | AF39: 0.2788461538 | AG39: 0.432642487 | AH39: -0.1518072289 | AI39: 0.3402433168
A40: Source: Stats SA, email communication, 22 October 2014
A41: a Figures should add up vertically and horizontally but may not, owing to rounding.
A42: b Sample size too small for reliable estimates.

Sheet Employ. by occup,race, sex 2024
A2: All employment by occupation, race and sex (actual numbers), 2024
A4: Male | B4: Black | C4: Coloured | D4: Indian/Asian | E4: White | F4: Totala | J4: Black | K4: Coloured | L4: Indian/Asian | M4: White | N4: Totala
A5: Manager | B5: 419800 | C5: 81722 | D5: 109140 | E5: 308245 | F5: 918908 | J5: =(B5/F29) -> 0.289336456 | K5: =(C5/F29) -> 0.05632480671 | L5: =(D5/F29) -> 0.07522196476 | M5: =(E5/F29) -> 0.212450014 | N5: =(F5/F29) -> 0.6333339307
A6: Professional | B6: 273619 | C6: 46580 | D6: 46885 | E6: 179886 | F6: 546970 | J6: 0.2482721513 | K6: 0.04226503571 | L6: =(D6/F30) -> 0.04254178186 | M6: 0.16322216 | N6: 0.4963011289
A7: Technician | B7: 508979 | C7: 92719 | D7: 30533 | E7: 140186 | F7: 772417 | J7: 0.2859411701 | K7: 0.05208894542 | L7: =(D7/F31) -> 0.01715324551 | M7: 0.07875560459 | N7: 0.4339389656
A8: Clerk | B8: 339986 | C8: 77265 | D8: 26810 | E8: 41663 | F8: 485723 | J8: 0.1994338193 | K8: 0.04532320168 | L8: =(D8/F32) -> 0.01572659078 | M8: 0.02443927459 | N8: 0.2849222997
A9: Sales and services | B9: 1136046 | C9: 105292 | D9: 72517 | E9: 62727 | F9: 1376583 | J9: 0.4395918462 | K9: 0.04074263249 | L9: =(D9/F33) -> 0.02806037952 | M9: 0.02427214896 | N9: 0.5326673941
A10: Skilled agriculture | B10: 70788 | C10: 3897 | D10: —b | E10: 4122 | F10: 78807 | J10: 0.6725445114 | K10: 0.03702472115 | L10: —b | M10: 0.03916240713 | N10: 0.7487316397
A11: Craft and related trade | B11: 1169294 | C11: 131554 | D11: 27495 | E11: 112804 | F11: 1441147 | J11: 0.6993033843 | K11: 0.07867666935 | L11: =(D11/F35) -> 0.01644355188 | M11: 0.06746311788 | N11: 0.8618867234
A12: Plant and machine operator | B12: 994023 | C12: 97680 | D12: 19796 | E12: 40914 | F12: 1152413 | J12: 0.7598443043 | K12: 0.07466788157 | L12: =(D12/F36) -> 0.01513232375 | M12: 0.03127520175 | N12: 0.8809197114
A13: Elementary | B13: 2030694 | C13: 268711 | D13: 29189 | E13: 59563 | F13: 2388157 | J13: 0.4959740912 | K13: 0.06562962909 | L13: =(D13/F37) -> 0.007129083824 | M13: 0.01454759052 | N13: 0.5832803946
A14: Domestic worker | B14: 32384 | C14: 3964 | D14: —b | E14: —b | F14: 36348 | J14: 0.03841372569 | K14: =(C14/F38) -> 0.004702075366 | L14: —b | M14: —b | N14: 0.04311580106
A15: Totala | B15: =SUM(B5:B14) -> 6975613 | C15: 909385 | D15: 362365 | E15: 950111 | F15: 9197473
A16: Female
A17: Manager | B17: 255620 | C17: 51383 | D17: 41625 | E17: 183372 | F17: 531999 | J17: =(B17/F29) -> 0.1761795733 | K17: =(C17/F29) -> 0.03541442382 | L17: =(D17/F29) -> 0.02868897089 | M17: =(E17/F29) -> 0.1263844798 | N17: =(F17/F29) -> 0.3666667586
A18: Professional | B18: 321024 | C18: 45272 | D18: 23435 | E18: 165392 | F18: 555123 | J18: 0.2912857626 | K18: =(C18/F30) -> 0.04107820302 | L18: =(D18/F30) -> 0.0212640857 | M18: =(E18/F30) -> 0.1500708198 | N18: 0.5036988711
A19: Technician | B19: 651755 | C19: 132749 | D19: 42140 | E19: 180952 | F19: 1007596 | J19: 0.3661518202 | K19: =(C19/F31) -> 0.07457754522 | L19: =(D19/F31) -> 0.0236739844 | M19: =(E19/F31) -> 0.1016576845 | N19: 0.5660610344
A20: Clerk | B20: 821240 | C20: 162631 | D20: 56353 | E20: 178808 | F20: 1219032 | J20: 0.4817346295 | K20: =(C20/F32) -> 0.09539840306 | L20: =(D20/F32) -> 0.03305634355 | M20: =(E20/F32) -> 0.1048877376 | N20: 0.7150771137
A21: Sales and services | B21: 1013012 | C21: 124111 | D21: 13547 | E21: 57068 | F21: 1207738 | J21: 0.3919839648 | K21: =(C21/F33) -> 0.04802462543 | L21: =(D21/F33) -> 0.005241997895 | M21: =(E21/F33) -> 0.02208240466 | N21: 0.4673329928
A22: Skilled agriculture | B22: 26447 | C22: —b | D22: —b | E22: —b | F22: 26447 | J22: 0.2512683603 | K22: —b | L22: —b | M22: —b | N22: 0.2512683603
A23: Craft and related trade | B23: 189595 | C23: 26420 | D23: 1096 | E23: 13827 | F23: 230937 | J23: 0.1133884422 | K23: =(C23/F35) -> 0.01580064159 | L23: =(D23/F35) -> 0.0006554694621 | M23: =(E23/F35) -> 0.008269321398 | N23: 0.1381132766
A24: Plant and machine operator | B24: 123799 | C24: 24560 | D24: 5675 | E24: 1746 | F24: 155779 | J24: 0.09463359 | K24: =(C24/F36) -> 0.01877398824 | L24: =(D24/F36) -> 0.004338044922 | M24: =(E24/F36) -> 0.001334665451 | N24: 0.1190795242
A25: Elementary | B25: 1539715 | C25: 148223 | D25: 3133 | E25: 15127 | F25: 1706198 | J25: 0.3760580116 | K25: =(C25/F37) -> 0.03620179491 | L25: =(D25/F37) -> 0.0007651998911 | M25: =(E25/F37) -> 0.003694599027 | N25: 0.4167196054
A26: Domestic worker | B26: 748481 | C26: 56930 | D26: —b | E26: 1273 | F26: 806684 | J26: 0.8878441151 | K26: =(C26/F38) -> 0.06753005817 | L26: —b | M26: =(E26/F38) -> 0.001510025717 | N26: 0.9568841989
A27: Totala | B27: =SUM(B17:B26) -> 5690688 | C27: 772281 | D27: 187003 | E27: 797564 | F27: 7447534
A28: Both sexes
A29: Manager | B29: 675420 | C29: 133105 | D29: 150765 | E29: 491617 | F29: 1450906 | J29: =(B29/F39) -> 0.04056008248 | K29: =(C29/F39) -> 0.00799317429 | L29: =(D29/F39) -> 0.009053686351 | M29: =(E29/F39) -> 0.02952240986 | N29: =(F29/F39) -> 0.08712929293
A30: Professional | B30: 594645 | C30: 91852 | D30: 70320 | E30: 345278 | F30: 1102093 | J30: =(B30/F39) -> 0.03570941081 | K30: =(D30/F39) -> 0.00422283172 | L30: =(D30/F39) -> 0.00422283172 | M30: =(E30/F39) -> 0.0207345121 | N30: =(F30/F39) -> 0.06618249827
A31: Technician | B31: 1160734 | C31: 225468 | D31: 72673 | E31: 321138 | F31: 1780013 | J31: =(B31/F39) -> 0.06970398682 | K31: =(C31/F39) -> 0.01353972443 | L31: =(D31/F39) -> 0.004364133242 | M31: =(E31/F39) -> 0.01928486537 | N31: =(F31/F39) -> 0.1068927099
A32: Clerk | B32: 1161225 | C32: 239896 | D32: 83163 | E32: 220471 | F32: 1704756 | J32: =(B32/F39) -> 0.06973347218 | K32: =(C32/F39) -> 0.01440614958 | L32: =(D32/F39) -> 0.004994075004 | M32: =(E32/F39) -> 0.01323964636 | N32: =(F32/F39) -> 0.1023734032
A33: Sales and services | B33: 2149058 | C33: 229403 | D33: 86064 | E33: 119795 | F33: 2584320 | J33: =(B33/F39) -> 0.1290544694 | K33: =(C33/F39) -> 0.01377602766 | L33: =(D33/F39) -> 0.005168284828 | M33: =(E33/F39) -> 0.007193886887 | N33: =(F33/F39) -> 0.1551926688
A34: Skilled agriculture | B34: 97235 | C34: 3897 | D34: —b | E34: 4122 | F34: 105254 | J34: =(B34/F39) -> 0.005839121761 | K34: =(C34/F39) -> 0.000234021263 | L34: —b | M34: =(E34/F39) -> 0.0002475328832 | N34: =(F34/F39) -> 0.006320675908
A35: Craft and related trade | B35: 1358888 | C35: 157974 | D35: 28591 | E35: 126631 | F35: 1672084 | J35: =(B35/F39) -> 0.08160346061 | K35: =(C35/F39) -> 0.009486598665 | L35: =(D35/F39) -> 0.0017169366 | M35: =(E35/F39) -> 0.007604399936 | N35: =(F35/F39) -> 0.1004113958
A36: Plant and machine operator | B36: 1117822 | C36: 122241 | D36: 25471 | E36: 42660 | F36: 1308193 | J36: =(B36/F39) -> 0.06712705061 | K36: =(C36/F39) -> 0.007340773212 | L36: =(D36/F39) -> 0.001529575465 | M36: =(E36/F39) -> 0.002561803202 | N36: =(F36/F39) -> 0.07855914243
A37: Elementary | B37: 3570409 | C37: 416935 | D37: 32322 | E37: 74690 | F37: 4094355 | J37: =(B37/F39) -> 0.214408936 | K37: =(C37/F39) -> 0.02503763287 | L37: =(D37/F39) -> 0.00194098929 | M37: =(E37/F39) -> 0.004485257411 | N37: =(F37/F39) -> 0.2458727555
A38: Domestic worker | B38: 780865 | C38: 60894 | D38: —b | E38: 1237 | F38: 843032 | J38: =(B38/F39) -> 0.04689222825 | K38: =(C38/F39) -> 0.003656784908 | L38: —b | M38: =(E38/F39) -> 7.428388563e-05 | N38: =(F38/F39) -> 0.05062545891
A39: Totala | B39: 12668009 | C39: 1684516 | D39: 552134 | E39: 1747675 | F39: 16652333
A40: Source: Stats SA, email communication, 9 September 2024
A41: a Figures should add up vertically and horizontally but may not, owing to rounding.
A42: b Sample size too small for reliable estimates.

Sheet Employment by occup,race %
A2: All employment by occupation, race and sex (proportions)a, 2024
A4: Male | B4: Black | C4: Coloured | D4: Indian/Asian | E4: White | F4: Totalb
A5: Manager | B5: 0.289 | C5: 0.056 | D5: 0.075 | E5: 0.212 | F5: 0.633
A6: Professional | B6: 0.248 | C6: 0.042 | D6: 0.043 | E6: 0.163 | F6: 0.496
A7: Technician | B7: 0.286 | C7: 0.052 | D7: 0.017 | E7: 0.079 | F7: 0.434
A8: Clerk | B8: 0.199 | C8: 0.045 | D8: 0.016 | E8: 0.024 | F8: 0.285
A9: Sales and services | B9: 0.44 | C9: 0.041 | D9: 0.028 | E9: 0.024 | F9: 0.533
A10: Skilled agriculture | B10: 0.673 | C10: 0.037 | D10: —c | E10: 0.039 | F10: =SUM(B10:E10) -> 0.749
A11: Craft and related trade | B11: 0.699 | C11: 0.079 | D11: 0.016 | E11: 0.067 | F11: 0.862
A12: Plant and machine operator | B12: 0.76 | C12: 0.075 | D12: 0.015 | E12: 0.031 | F12: 0.881
A13: Elementary | B13: 0.496 | C13: 0.066 | D13: 0.007 | E13: 0.015 | F13: 0.583
A14: Domestic worker | B14: 0.038 | C14: 0.005 | D14: —c | E14: —c | F14: 0.043
A15: Female
A16: Manager | B16: 0.176 | C16: 0.035 | D16: 0.029 | E16: 0.126 | F16: 0.367
A17: Professional | B17: 0.291 | C17: 0.041 | D17: 0.021 | E17: 0.15 | F17: 0.504
A18: Technician | B18: 0.366 | C18: 0.075 | D18: 0.024 | E18: 0.102 | F18: 0.566
A19: Clerk | B19: 0.482 | C19: 0.095 | D19: 0.033 | E19: 0.105 | F19: 0.715
A20: Sales and services | B20: 0.392 | C20: 0.048 | D20: 0.005 | E20: 0.022 | F20: 0.467
A21: Skilled agriculture | B21: 0.251 | C21: —c | D21: —c | E21: —c | F21: 0.251
A22: Craft and related trade | B22: 0.113 | C22: 0.016 | D22: 0.001 | E22: 0.008 | F22: 0.138
A23: Plant and machine operator | B23: 0.095 | C23: 0.019 | D23: 0.004 | E23: 0.001 | F23: 0.119
A24: Elementary | B24: 0.376 | C24: 0.036 | D24: 0.001 | E24: 0.004 | F24: 0.417
A25: Domestic worker | B25: 0.888 | C25: 0.068 | D25: —c | E25: 0.002 | F25: 0.957
A26: Both sexes
A27: Manager | B27: 0.04105207725 | C27: 0.008 | D27: 0.009 | E27: 0.03 | F27: 0.087
A28: Professional | B28: 0.036 | C28: 0.004 | D28: 0.004 | E28: 0.021 | F28: 0.066
A29: Technician | B29: 0.07 | C29: 0.014 | D29: 0.004 | E29: 0.019 | F29: 0.107
A30: Clerk | B30: 0.07 | C30: 0.014 | D30: 0.005 | E30: 0.013 | F30: 0.102
A31: Sales and services | B31: 0.129 | C31: 0.014 | D31: 0.005 | E31: 0.007 | F31: 0.155
A32: Skilled agriculture | B32: 0.006 | C32: 0 | D32: —c | E32: 0 | F32: 0.006
A33: Craft and related trade | B33: 0.082 | C33: 0.009 | D33: 0.002 | E33: 0.008 | F33: 0.1
A34: Plant and machine operator | B34: 0.067 | C34: 0.007 | D34: 0.002 | E34: 0.003 | F34: 0.079
A35: Elementary | B35: 0.214 | C35: 0.025 | D35: 0.002 | E35: 0.004 | F35: 0.246
A36: Domestic worker | B36: 0.047 | C36: 0.004 | D36: —c | E36: 0 | F36: 0.051
A37: Source: CRA calculations based on Stats SA data
A38: a The figures indicate the proportion of each occupational level filled by people of each sex and race. For example 28.9% of all managers are black men.
A39: b Figures should add up horizontally but may not, owing to rounding.
A40: c Sample size too small for reliable estimates.

Sheet Change in employment 2001vs2024
A2: Changea in all employment by occupation, race and sex, 2001-24 | T2: All employment by occupation, race and sex (actual numbers), 2001 | AA2: 2024
A4: Male | B4: Black | C4: Coloured | D4: Indian/Asian | E4: White | F4: Total | T4: Male | U4: Black | V4: Coloured | W4: Indian/Asian | X4: White | Y4: Totala | AA4: Male | AB4: Black | AC4: Coloured | AD4: Indian/Asian | AE4: White | AF4: Totala | AH4: Male | AI4: Black | AJ4: Coloured | AK4: Indian/Asian | AL4: White | AM4: Totala
A5: Manager | B5: 1.875342466 | C5: 1.724066667 | D5: 1.872105263 | E5: -0.01832802548 | F5: 0.7403560606 | T5: Manager | U5: 146000 | V5: 30000 | W5: 38000 | X5: 314000 | Y5: 528000 | AA5: Manager | AB5: 419800 | AC5: 81722 | AD5: 109140 | AE5: 308245 | AF5: 918908 | AH5: Manager | AI5: =(AB5-U5)/U5 -> 1.875342466 | AJ5: =(AC5-V5)/V5 -> 1.724066667 | AK5: 1.872105263 | AL5: -0.01832802548 | AM5: =(AF5-Y5)/Y5 -> 0.7403560606
A6: Professional | B6: 3.023808824 | C6: 2.327142857 | D6: 2.907083333 | E6: 0.6503302752 | F6: 1.707772277 | T6: Professional | U6: 68000 | V6: 14000 | W6: 12000 | X6: 109000 | Y6: 202000 | AA6: Professional | AB6: 273619 | AC6: 46580 | AD6: 46885 | AE6: 179886 | AF6: 546970 | AH6: Professional | AI6: =(AB6-U6)/U6 -> 3.023808824 | AJ6: 2.327142857 | AK6: 2.907083333 | AL6: 0.6503302752 | AM6: =(AF6-Y6)/Y6 -> 1.707772277
A7: Technician | B7: 0.4418668555 | C7: 0.5199836066 | D7: -0.1747837838 | E7: -0.3627909091 | F7: 0.15114307 | T7: Technician | U7: 353000 | V7: 61000 | W7: 37000 | X7: 220000 | Y7: 671000 | AA7: Technician | AB7: 508979 | AC7: 92719 | AD7: 30533 | AE7: 140186 | AF7: 772417 | AH7: Technician | AI7: 0.4418668555 | AJ7: 0.5199836066 | AK7: -0.1747837838 | AL7: -0.3627909091 | AM7: 0.15114307
A8: Clerk | B8: 0.6113080569 | C8: 0.7968604651 | D8: -0.2552777778 | E8: -0.4518026316 | F8: 0.3271120219 | T8: Clerk | U8: 211000 | V8: 43000 | W8: 36000 | X8: 76000 | Y8: 366000 | AA8: Clerk | AB8: 339986 | AC8: 77265 | AD8: 26810 | AE8: 41663 | AF8: 485723 | AH8: Clerk | AI8: 0.6113080569 | AJ8: 0.7968604651 | AK8: -0.2552777778 | AL8: -0.4518026316 | AM8: 0.3271120219
A9: Sales and services | B9: 0.6880326895 | C9: 0.4228648649 | D9: 2.021541667 | E9: -0.4684152542 | F9: 0.5484623172 | T9: Sales and services | U9: 673000 | V9: 74000 | W9: 24000 | X9: 118000 | Y9: 889000 | AA9: Sales and services | AB9: 1136046 | AC9: 105292 | AD9: 72517 | AE9: 62727 | AF9: 1376583 | AH9: Sales and services | AI9: 0.6880326895 | AJ9: 0.4228648649 | AK9: 2.021541667 | AL9: -0.4684152542 | AM9: 0.5484623172
A10: Skilled agriculture | B10: -0.5931724138 | C10: -0.7402 | D10: —b | E10: —b | F10: -0.583031746 | T10: Skilled agriculture | U10: 174000 | V10: 15000 | W10: —b | X10: —b | Y10: 189000 | AA10: Skilled agriculture | AB10: 70788 | AC10: 3897 | AD10: —b | AE10: 4122 | AF10: 78807 | AH10: Skilled agriculture | AI10: -0.5931724138 | AJ10: -0.7402 | AK10: —b | AL10: —b | AM10: -0.583031746
A11: Craft and related trade | B11: 0.2154823285 | C11: -0.1620764331 | D11: -0.295 | E11: -0.5179316239 | F11: 0.03605104242 | T11: Craft and related trade | U11: 962000 | V11: 157000 | W11: 39000 | X11: 234000 | Y11: 1391000 | AA11: Craft and related trade | AB11: 1169294 | AC11: 131554 | AD11: 27495 | AE11: 112804 | AF11: 1441147 | AH11: Craft and related trade | AI11: 0.2154823285 | AJ11: -0.1620764331 | AK11: -0.295 | AL11: -0.5179316239 | AM11: 0.03605104242
A12: Plant and machine operator | B12: 0.2503433962 | C12: 0.221 | D12: -0.3401333333 | E12: -0.0908 | F12: 0.2117907466 | T12: Plant and machine operator | U12: 795000 | V12: 80000 | W12: 30000 | X12: 45000 | Y12: 951000 | AA12: Plant and machine operator | AB12: 994023 | AC12: 97680 | AD12: 19796 | AE12: 40914 | AF12: 1152413 | AH12: Plant and machine operator | AI12: 0.2503433962 | AJ12: 0.221 | AK12: -0.3401333333 | AL12: -0.0908 | AM12: 0.2117907466
A13: Elementary | B13: 0.8212502242 | C13: 0.074844 | D13: 0.16756 | E13: 0.3851860465 | F13: 0.6642209059 | T13: Elementary | U13: 1115000 | V13: 250000 | W13: 25000 | X13: 43000 | Y13: 1435000 | AA13: Elementary | AB13: 2030694 | AC13: 268711 | AD13: 29189 | AE13: 59563 | AF13: 2388157 | AH13: Elementary | AI13: =(AB13-U13)/U13 -> 0.8212502242 | AJ13: 0.074844 | AK13: 0.16756 | AL13: 0.3851860465 | AM13: =(AF13-Y13)/Y13 -> 0.6642209059
A14: Domestic worker | B14: -0.2468837209 | C14: 0.982 | D14: —b | E14: —b | F14: -0.1739090909 | T14: Domestic worker | U14: 43000 | V14: 2000 | W14: —b | X14: —b | Y14: 44000 | AA14: Domestic worker | AB14: 32384 | AC14: 3964 | AD14: —b | AE14: —b | AF14: 36348 | AH14: Domestic worker | AI14: -0.2468837209 | AJ14: 0.982 | AK14: —b | AL14: —b | AM14: =(AF14-Y14)/Y14 -> -0.1739090909
A15: Total | B15: 0.5364786344 | C15: 0.2543241379 | D15: 0.5035892116 | E15: -0.1802320966 | F15: 0.3797589259 | T15: Total | U15: 4540000 | V15: 725000 | W15: 241000 | X15: 1159000 | Y15: 6666000 | AA15: Totala | AB15: =SUM(AB5:AB14) -> 6975613 | AC15: 909385 | AD15: 362365 | AE15: 950111 | AF15: 9197473 | AH15: Total | AI15: =(AB15-U15)/U15 -> 0.5364786344 | AJ15: 0.2543241379 | AK15: =(AD15-W15)/W15 -> 0.5035892116 | AL15: -0.1802320966 | AM15: 0.3797589259
A16: Female | T16: Female | AA16: Female | AH16: Female
A17: Manager | B17: 5.3905 | C17: 3.281916667 | D17: 7.325 | E17: 1.29215 | F17: 2.88320438 | T17: Manager | U17: 40000 | V17: 12000 | W17: 5000 | X17: 80000 | Y17: 137000 | AA17: Manager | AB17: 255620 | AC17: 51383 | AD17: 41625 | AE17: 183372 | AF17: 531999 | AH17: Manager | AI17: =(AB17-U17)/U17 -> 5.3905 | AJ17: =(AC17-V17)/V17 -> 3.281916667 | AK17: 7.325 | AL17: =(AE17-X17)/X17 -> 1.29215 | AM17: 2.88320438
A18: Professional | B18: 3.0128 | C18: 3.115636364 | D18: 1.3435 | E18: 0.9926746988 | F18: 2.033459016 | T18: Professional | U18: 80000 | V18: 11000 | W18: 10000 | X18: 83000 | Y18: 183000 | AA18: Professional | AB18: 321024 | AC18: 45272 | AD18: 23435 | AE18: 165392 | AF18: 555123 | AH18: Professional | AI18: =(AB18-U18)/U18 -> 3.0128 | AJ18: 3.115636364 | AK18: 1.3435 | AL18: =(AE18-X18)/X18 -> 0.9926746988 | AM18: 2.033459016
A19: Technician | B19: 0.5780992736 | C19: 0.7019102564 | D19: 1.478823529 | E19: -0.1300384615 | F19: 0.4072569832 | T19: Technician | U19: 413000 | V19: 78000 | W19: 17000 | X19: 208000 | Y19: 716000 | AA19: Technician | AB19: 651755 | AC19: 132749 | AD19: 42140 | AE19: 180952 | AF19: 1007596 | AH19: Technician | AI19: 0.5780992736 | AJ19: 0.7019102564 | AK19: 1.478823529 | AL19: -0.1300384615 | AM19: 0.4072569832
A20: Clerk | B20: 1.997226277 | C20: 0.2805590551 | D20: 0.1049607843 | E20: -0.5355636364 | F20: 0.4581722488 | T20: Clerk | U20: 274000 | V20: 127000 | W20: 51000 | X20: 385000 | Y20: 836000 | AA20: Clerk | AB20: 821240 | AC20: 162631 | AD20: 56353 | AE20: 178808 | AF20: 1219032 | AH20: Clerk | AI20: 1.997226277 | AJ20: 0.2805590551 | AK20: 0.1049607843 | AL20: -0.5355636364 | AM20: 0.4581722488
A21: Sales and services | B21: 0.4533888092 | C21: 0.5513875 | D21: -0.4355416667 | E21: -0.4666542056 | F21: 0.3301079295 | T21: Sales and services | U21: 697000 | V21: 80000 | W21: 24000 | X21: 107000 | Y21: 908000 | AA21: Sales and services | AB21: 1013012 | AC21: 124111 | AD21: 13547 | AE21: 57068 | AF21: 1207738 | AH21: Sales and services | AI21: 0.4533888092 | AJ21: 0.5513875 | AK21: -0.4355416667 | AL21: -0.4666542056 | AM21: 0.3301079295
A22: Skilled agriculture | B22: 0.01719230769 | C22: —b | D22: —b | E22: —b | F22: -0.02048148148 | T22: Skilled agriculture | U22: 26000 | V22: 1000 | W22: —b | X22: —b | Y22: 27000 | AA22: Skilled agriculture | AB22: 26447 | AC22: —b | AD22: —b | AE22: —b | AF22: 26447 | AH22: Skilled agriculture | AI22: 0.01719230769 | AJ22: —b | AK22: —b | AL22: —b | AM22: -0.02048148148
A23: Craft and related trade | B23: -0.3003874539 | C23: -0.1193333333 | D23: -0.9003636364 | E23: -0.5232068966 | F23: -0.324745614 | T23: Craft and related trade | U23: 271000 | V23: 30000 | W23: 11000 | X23: 29000 | Y23: 342000 | AA23: Craft and related trade | AB23: 189595 | AC23: 26420 | AD23: 1096 | AE23: 13827 | AF23: 230937 | AH23: Craft and related trade | AI23: -0.3003874539 | AJ23: -0.1193333333 | AK23: -0.9003636364 | AL23: -0.5232068966 | AM23: -0.324745614
A24: Plant and machine operator | B24: 0.07651304348 | C24: -0.2982857143 | D24: -0.5270833333 | E24: -0.6508 | F24: -0.06719161677 | T24: Plant and machine operator | U24: 115000 | V24: 35000 | W24: 12000 | X24: 5000 | Y24: 167000 | AA24: Plant and machine operator | AB24: 123799 | AC24: 24560 | AD24: 5675 | AE24: 1746 | AF24: 155779 | AH24: Plant and machine operator | AI24: 0.07651304348 | AJ24: -0.2982857143 | AK24: -0.5270833333 | AL24: -0.6508 | AM24: -0.06719161677
A25: Elementary | B25: 0.08967799009 | C25: -0.06777987421 | D25: -0.759 | E25: -0.0545625 | F25: 0.06504244694 | T25: Elementary | U25: 1413000 | V25: 159000 | W25: 13000 | X25: 16000 | Y25: 1602000 | AA25: Elementary | AB25: 1539715 | AC25: 148223 | AD25: 3133 | AE25: 15127 | AF25: 1706198 | AH25: Elementary | AI25: =(AB25-U25)/U25 -> 0.08967799009 | AJ25: -0.06777987421 | AK25: -0.759 | AL25: -0.0545625 | AM25: 0.06504244694
A26: Domestic worker | B26: -0.07708877928 | C26: -0.3943617021 | D26: —b | E26: -0.68175 | F26: -0.1135340659 | T26: Domestic worker | U26: 811000 | V26: 94000 | W26: 1000 | X26: 4000 | Y26: 910000 | AA26: Domestic worker | AB26: 748481 | AC26: 56930 | AD26: —b | AE26: 1273 | AF26: 806684 | AH26: Domestic worker | AI26: -0.07708877928 | AJ26: -0.3943617021 | AK26: —b | AL26: -0.68175 | AM26: -0.1135340659
A27: Total | B27: 0.3745623188 | C27: 0.231708134 | D27: 0.2896758621 | E27: -0.1292969432 | F27: 0.2781077742 | T27: Total | U27: 4140000 | V27: 627000 | W27: 145000 | X27: 916000 | Y27: 5827000 | AA27: Totala | AB27: =SUM(AB17:AB26) -> 5690688 | AC27: 772281 | AD27: 187003 | AE27: 797564 | AF27: 7447534 | AH27: Total | AI27: =(AB27-U27)/U27 -> 0.3745623188 | AJ27: =(AC27-V27)/V27 -> 0.231708134 | AK27: =(AD27-W27)/W27 -> 0.2896758621 | AL27: =(AE27-X27)/X27 -> -0.1292969432 | AM27: =(AF27-Y27)/Y27 -> 0.2781077742
A28: Both sexes | T28: Both sexes | AA28: Both sexes | AH28: Both sexes
A29: Manager | B29: 2.631290323 | C29: 2.169166667 | D29: 2.506162791 | E29: 0.2509338422 | F29: 1.185099398 | T29: Manager | U29: 186000 | V29: 42000 | W29: 43000 | X29: 393000 | Y29: 664000 | AA29: Manager | AB29: 675420 | AC29: 133105 | AD29: 150765 | AE29: 491617 | AF29: 1450906 | AH29: Manager | AI29: =(AB29-U29)/U29 -> 2.631290323 | AJ29: =(AC29-V29)/V29 -> 2.169166667 | AK29: 2.506162791 | AL29: 0.2509338422 | AM29: 1.185099398
A30: Professional | B30: 3.017871622 | C30: 2.827166667 | D30: 2.348571429 | E30: 0.8077382199 | F30: 1.862579221 | T30: Professional | U30: 148000 | V30: 24000 | W30: 21000 | X30: 191000 | Y30: 385000 | AA30: Professional | AB30: 594645 | AC30: 91852 | AD30: 70320 | AE30: 345278 | AF30: 1102093 | AH30: Professional | AI30: =(AB30-U30)/U30 -> 3.017871622 | AJ30: =(AC30-V30)/V30 -> 2.827166667 | AK30: =(AD30-W30)/W30 -> 2.348571429 | AL30: =(AE30-X30)/X30 -> 0.8077382199 | AM30: =(AF30-Y30)/Y30 -> 1.862579221
A31: Technician | B31: 0.5153185379 | C31: 0.6220719424 | D31: 0.3457962963 | E31: -0.2496775701 | F31: 0.2833547224 | T31: Technician | U31: 766000 | V31: 139000 | W31: 54000 | X31: 428000 | Y31: 1387000 | AA31: Technician | AB31: 1160734 | AC31: 225468 | AD31: 72673 | AE31: 321138 | AF31: 1780013 | AH31: Technician | AI31: 0.5153185379 | AJ31: 0.6220719424 | AK31: 0.3457962963 | AL31: -0.2496775701 | AM31: 0.2833547224
A32: Clerk | B32: 1.394278351 | C32: 0.4111529412 | D32: -0.04410344828 | E32: -0.5207152174 | F32: 0.418266223 | T32: Clerk | U32: 485000 | V32: 170000 | W32: 87000 | X32: 460000 | Y32: 1202000 | AA32: Clerk | AB32: 1161225 | AC32: 239896 | AD32: 83163 | AE32: 220471 | AF32: 1704756 | AH32: Clerk | AI32: 1.394278351 | AJ32: 0.4111529412 | AK32: -0.04410344828 | AL32: -0.5207152174 | AM32: 0.418266223
A33: Sales and services | B33: 0.5686554745 | C33: 0.4896298701 | D33: 0.8311489362 | E33: -0.4675777778 | F33: 0.4389309577 | T33: Sales and services | U33: 1370000 | V33: 154000 | W33: 47000 | X33: 225000 | Y33: 1796000 | AA33: Sales and services | AB33: 2149058 | AC33: 229403 | AD33: 86064 | AE33: 119795 | AF33: 2584320 | AH33: Sales and services | AI33: 0.5686554745 | AJ33: 0.4896298701 | AK33: 0.8311489362 | AL33: -0.4675777778 | AM33: 0.4389309577
A34: Skilled agriculture | B34: -0.513825 | C34: -0.7402 | D34: —b | E34: —b | F34: -0.5104465116 | T34: Skilled agriculture | U34: 200000 | V34: 15000 | W34: —b | X34: —b | Y34: 215000 | AA34: Skilled agriculture | AB34: 97235 | AC34: 3897 | AD34: —b | AE34: 4122 | AF34: 105254 | AH34: Skilled agriculture | AI34: -0.513825 | AJ34: -0.7402 | AK34: —b | AL34: —b | AM34: -0.5104465116
A35: Craft and related trade | B35: 0.1020989457 | C35: -0.1552192513 | D35: -0.42818 | E35: -0.518513308 | F35: -0.03570703576 | T35: Craft and related trade | U35: 1233000 | V35: 187000 | W35: 50000 | X35: 263000 | Y35: 1734000 | AA35: Craft and related trade | AB35: 1358888 | AC35: 157974 | AD35: 28591 | AE35: 126631 | AF35: 1672084 | AH35: Craft and related trade | AI35: 0.1020989457 | AJ35: -0.1552192513 | AK35: -0.42818 | AL35: -0.518513308 | AM35: -0.03570703576
A36: Plant and machine operator | B36: 0.2283758242 | C36: 0.06296521739 | D36: -0.4076511628 | E36: -0.1468 | F36: 0.1701189624 | T36: Plant and machine operator | U36: 910000 | V36: 115000 | W36: 43000 | X36: 50000 | Y36: 1118000 | AA36: Plant and machine operator | AB36: 1117822 | AC36: 122241 | AD36: 25471 | AE36: 42660 | AF36: 1308193 | AH36: Plant and machine operator | AI36: 0.2283758242 | AJ36: 0.06296521739 | AK36: -0.4076511628 | AL36: -0.1468 | AM36: 0.1701189624
A37: Elementary | B37: 0.4123453323 | C37: 0.01691463415 | D37: -0.1712307692 | E37: 0.2448333333 | F37: 0.3486017787 | T37: Elementary | U37: 2528000 | V37: 410000 | W37: 39000 | X37: 60000 | Y37: 3036000 | AA37: Elementary | AB37: 3570409 | AC37: 416935 | AD37: 32322 | AE37: 74690 | AF37: 4094355 | AH37: Elementary | AI37: 0.4123453323 | AJ37: 0.01691463415 | AK37: -0.1712307692 | AL37: 0.2448333333 | AM37: 0.3486017787
A38: Domestic worker | B38: -0.0856381733 | C38: -0.3656875 | D38: —b | E38: -0.69075 | F38: -0.1163186583 | T38: Domestic worker | U38: 854000 | V38: 96000 | W38: 1000 | X38: 4000 | Y38: 954000 | AA38: Domestic worker | AB38: 780865 | AC38: 60894 | AD38: —b | AE38: 1237 | AF38: 843032 | AH38: Domestic worker | AI38: -0.0856381733 | AJ38: -0.3656875 | AK38: —b | AL38: -0.69075 | AM38: -0.1163186583
A39: Total | B39: 0.4594480415 | C39: 0.245943787 | D39: 0.4303989637 | E39: -0.157746988 | F39: 0.3328263967 | T39: Total | U39: 8680000 | V39: 1352000 | W39: 386000 | X39: 2075000 | Y39: 12494000 | AA39: Totala | AB39: 12668009 | AC39: 1684516 | AD39: 552134 | AE39: 1747675 | AF39: 16652333 | AH39: Total | AI39: =(AB39-U39)/U39 -> 0.4594480415 | AJ39: 0.245943787 | AK39: 0.4303989637 | AL39: -0.157746988 | AM39: 0.3328263967
A40: Source: CRA calculations based on Stats SA data
A41: a The figures in this table are based on the preceding pair of tables.
A42: b Sample size too small for reliable estimates.

Sheet Segments of working population

Sheet Informal sector employm. 08-24
A2: Informal sector (excluding agriculture and private households)
A4: Informal sector employment (non-agricultural)a by industry, 2009-24
A6: Industry | B6: 2009 | C6: 2011 | D6: 2013 | E6: 2015 | F6: 2019 | G6: 2022 | H6: 2023 | I6: 2024 | J6: Change 2009-24
A7: Mining | B7: 2000 | C7: 1000 | D7: 2000 | E7: 5000 | F7: 5000 | G7: 15000 | H7: 12000 | I7: 19000 | J7: =(I7-B7)/B7 -> 8.5
A8: Manufacturing | B8: 207000 | C8: 222000 | D8: 220000 | E8: 237000 | F8: 226000 | G8: 202000 | H8: 187000 | I8: 225000 | J8: =(I8-B8)/B8 -> 0.08695652174
A9: Utilities | B9: 4000 | C9: 4000 | D9: 1000 | E9: 8000 | F9: 4000 | G9: 9000 | H9: 9000 | I9: 5000 | J9: 0.25
A10: Construction | B10: 284000 | C10: 314000 | D10: 354000 | E10: 454000 | F10: 497000 | G10: 452000 | H10: 496000 | I10: 461000 | J10: 0.6232394366
A11: Trade | B11: 989000 | C11: 1006000 | D11: 1058000 | E11: 1067000 | F11: 1272000 | G11: 1175000 | H11: 1157000 | I11: 1192000 | J11: 0.2052578362
A12: Transport | B12: 196000 | C12: 210000 | D12: 219000 | E12: 259000 | F12: 303000 | G12: 298000 | H12: 310000 | I12: 383000 | J12: 0.9540816327
A13: Finance | B13: 117000 | C13: 155000 | D13: 151000 | E13: 212000 | F13: 247000 | G13: 327000 | H13: 309000 | I13: 322000 | J13: 1.752136752
A14: Community and social services | B14: 310000 | C14: 301000 | D14: 354000 | E14: 419000 | F14: 492000 | G14: 482000 | H14: 547000 | I14: 521000 | J14: 0.6806451613
A15: Other | B15: —b | C15: 1000 | D15: 1000 | E15: —b | F15: 1000 | G15: 5000 | H15: 2000 | I15: 1000 | J15: —
A16: Totalc | B16: =SUM(B7:B15) -> 2109000 | C16: 2213000 | D16: 2360000 | E16: 2661000 | F16: 3048000 | G16: 2965000 | H16: 3029000 | I16: =SUM(I7:I15) -> 3129000 | J16: =(H16-B16)/B16 -> 0.4362256994
A17: Source: Stats SA, Quarterly Labour Force Survey Historical revisions of the QLFS 2009 to 2023, Statistical release P0211.5, 11 February 2014, p49; QLFS Trends 2008-2024Q2, accessed 18 August 2024
A18: a According to Stats SA, the informal sector has the following two components:
A19: 1 Employees working in establishments that employ fewer than five employees and who do not deduct income tax from their salaries/wages; and
A20: 2 Employers, own account workers, and persons helping unpaid in their household business who are not registered for either income tax or value-added tax.
A21: b The sample size is too small for reliable estimates.
A22: c Apart from the last column, figures should add up vertically but may not, owing to rounding.

Sheet BC Change informal sector empl
A2: Change in Informal sector employment (non-agricultural) by industry, 2009-24
A4: Mining | B4: ='Informal sector employm. 08-24'!J7 -> 8.5
A5: Manufacturing | B5: ='Informal sector employm. 08-24'!J8 -> 0.08695652174
A6: Utilities | B6: ='Informal sector employm. 08-24'!J9 -> 0.25
A7: Construction | B7: ='Informal sector employm. 08-24'!J10 -> 0.6232394366
A8: Trade | B8: ='Informal sector employm. 08-24'!J11 -> 0.2052578362
A9: Transport | B9: ='Informal sector employm. 08-24'!J12 -> 0.9540816327
A10: Finance | B10: ='Informal sector employm. 08-24'!J13 -> 1.752136752
A11: Community and social services | B11: ='Informal sector employm. 08-24'!J14 -> 0.6806451613
A12: Total | B12: ='Informal sector employm. 08-24'!J16 -> 0.4362256994

Sheet Agriculture, private h.h 01-24
A2: Agriculture and private households
A4: Employment in agriculture and private households, 2001-24
B6: —Agriculture— | D6: —Private households— | F6: Households per domestic workera
A7: Year | B7: Number | C7: Year-on-year change | D7: Number | E7: Year-on-year change
A8: 2001 | B8: 969000 | C8: – | D8: 1188000 | E8: – | F8: 9.730951178
A9: 2002 | B9: 1153000 | C9: 0.19 | D9: 1266000 | E9: 0.066 | F9: 9.131413902
A10: 2003 | B10: 808000 | C10: -0.299 | D10: 1215000 | E10: -0.04 | F10: 9.760985185
A11: 2004 | B11: 828000 | C11: 0.025 | D11: 1125000 | E11: -0.074 | F11: 10.79358756
A12: 2005 | B12: 778000 | C12: -0.06 | D12: 1226000 | E12: 0.09 | F12: 10.12677162
A13: 2006 | B13: 886000 | C13: 0.139 | D13: 1288000 | E13: 0.051 | F13: 9.842369565
A14: 2007 | B14: 703000 | C14: -0.207 | D14: 1251000 | E14: -0.029 | F14: 10.33524301
A15: 2008 | B15: 820000 | C15: 0.166 | D15: 1255000 | E15: 0.003 | F15: 10.49522151
A16: 2009 | B16: 752000 | C16: -0.083 | D16: 1286000 | E16: 0.025 | F16: 10.45645412
A17: 2010 | B17: 655000 | C17: -0.129 | D17: 1251000 | E17: -0.027 | F17: 11.04076739
A18: 2011 | B18: 626000 | C18: -0.044 | D18: 1216000 | E18: -0.028 | F18: 11.76315789
A19: 2012 | B19: 674000 | C19: 0.077 | D19: 1255000 | E19: 0.032 | F19: 11.5140502
A20: 2013 | B20: 742000 | C20: 0.101 | D20: 1215000 | E20: -0.032 | F20: 12.04197531
A21: 2014 | B21: 670000 | C21: -0.097 | D21: 1290000 | E21: 0.062 | F21: 12.09457364
A22: 2015 | B22: 869000 | C22: =(B22-B21)/B21 -> 0.2970149254 | D22: 1292000 | E22: =(D22-D21)/D21 -> 0.001550387597 | F22: 12.47832817
A23: 2016 | B23: 825000 | C23: -0.05063291139 | D23: 1296000 | E23: 0.003095975232 | F23: 12.85648148
A24: 2017 | B24: 835000 | C24: 0.01212121212 | D24: 1311000 | E24: 0.01157407407 | F24: 12.4
A25: 2018 | B25: 843000 | C25: 0.009580838323 | D25: 1296000 | E25: -0.0114416476 | F25: 12.9
A26: 2019 | B26: 842000 | C26: -0.00118623962 | D26: 1251000 | E26: -0.03472222222 | F26: 13.7
A27: 2020 | B27: 799000 | C27: -0.05106888361 | D27: 1005000 | E27: -0.1966426859 | F27: 17.3
A28: 2021 | B28: 862000 | C28: 0.0788485607 | D28: 1005000 | E28: 0 | F28: 17.9
A29: 2022 | B29: 874000 | C29: 0.01392111369 | D29: 1124000 | E29: 0.1184079602 | F29: 16.4
A30: 2023 | B30: 894000 | C30: 0.02288329519 | D30: 1093000 | E30: -0.02758007117 | F30: 17.38
A31: 2024 | B31: 896000 | C31: 0.002237136465 | D31: 1160000 | E31: 0.06129917658 | F31: —
A32: 2001-24 | B32: =(B30-B8)/B8 -> -0.0773993808 | C32: — | D32: =(D30-D8)/D8 -> -0.07996632997 | E32: — | F32: —
A33: Source: Stats SA, Quarterly Labour Force Survey Historical revisions of the QLFS 2008 to 2023, Statistical release P0211.5, 11 February 2014; p49; QLFS Trends 2008-2023Q2, accessed 4 October 2023; General Household Survey 2019, Statistical release P0318, 15 December 2020, p3; QLFS Trends 2008-2024Q2, accessed 18 August 2024
A34: a CRA calculations.

Sheet Public sector employment

Sheet Government sector employ. 91-24
A2: Public sector employment
A4: Government sector employment, 1991-2024
A6: Yeara | B6: National departmentsb | C6: Provincial administrationsc | D6: Local governmentsd | E6: Other government institutionse | F6: Total | G6: As a proportion of total formal employment
A7: 1991 | B7: 554463 | C7: 427259 | D7: 232319 | E7: 107457 | F7: 1321498 | G7: 0.2522596987
A8: 1992 | B8: 542423 | C8: 448118 | D8: 230616 | E8: 109176 | F8: 1330333 | G8: 0.2595456707
A9: 1993 | B9: 530298 | C9: 464006 | D9: 224907 | E9: 105726 | F9: 1324937 | G9: 0.2648562961
A10: 1994 | B10: 535460 | C10: 697364 | D10: 240175 | E10: 99707 | F10: 1572706 | G10: 0.3005155962
A11: 1995 | B11: 337223 | C11: 761117 | D11: 246801 | E11: 105697 | F11: 1450838 | G11: 0.2823183591
A12: 1996 | B12: 359680 | C12: 860837 | D12: 247515 | E12: 114689 | F12: 1582721 | G12: 0.3021283281
A13: 1997 | B13: 351398 | C13: 868528 | D13: 254132 | E13: 109797 | F13: 1583855 | G13: 0.3068722227
A14: 1998 | B14: 345689 | C14: 877680 | D14: 243790 | E14: 99737 | F14: 1566896 | G14: 0.3147513269
A15: 1999 | B15: 339802 | C15: 864790 | D15: 223516 | E15: 95824 | F15: 1523932 | G15: 0.3118956241
A16: 2000 | B16: 326858 | C16: 822195 | D16: 221152 | E16: 92400 | F16: 1462605 | G16: 0.3085732912
A17: 2001 | B17: 324867 | C17: 800098 | D17: 220899 | E17: 90408 | F17: 1436272 | G17: 0.3082295437
A18: 2002 | B18: 325151 | C18: 802237 | D18: 222866 | E18: 91142 | F18: 1441396 | G18: 0.3102435098
A19: 2003 | B19: 338867 | C19: 795246 | D19: 207949 | E19: 85994 | F19: 1428056 | G19: 0.2254096478
A20: 2004 | B20: 350617 | C20: 807508 | D20: 203052 | E20: 92370 | F20: 1453547 | G20: 0.2239114957
A21: 2005 | B21: 380011 | C21: 839295 | D21: 202553 | E21: 78912 | F21: 1500771 | G21: 0.2120358077
A22: 2006 | B22: 383903 | C22: 866559 | D22: 199503 | E22: 124056 | F22: 1574021 | G22: 0.1953033278
A23: 2007 | B23: 396292 | C23: 892192 | D23: 208625 | E23: 125513 | F23: 1622622 | G23: 0.1957697607
A24: 2008 | B24: 407585 | C24: 943634 | D24: 216946 | E24: 132294 | F24: 1700459 | G24: 0.2010910621
A25: 2009 | B25: 412995 | C25: 993491 | D25: 235484 | E25: 139122 | F25: 1781092 | G25: 0.2177673314
A26: 2010 | B26: 418337 | C26: 1018072 | D26: 243576 | E26: 136525 | F26: 1816509 | G26: 0.2192682019
A27: 2011 | B27: 431907 | C27: 1066670 | D27: 255377 | E27: 149588 | F27: 1903542 | G27: 0.221188033
A28: 2012 | B28: 451279 | C28: 1086937 | D28: 257500 | E28: 147645 | F28: 1943360 | G28: 0.2186175692
A29: 2013 | B29: 452164 | C29: 1093170 | D29: 273040 | E29: 155461 | F29: 1973835 | G29: 0.2190750398
A30: 2014 | B30: 455891 | C30: 1118748 | D30: 310366 | E30: 345391 | F30: 2230396 | G30: 0.2381333489
A31: 2015 | B31: 473701 | C31: 1085872 | D31: 313059 | E31: 188210 | F31: 2060843 | G31: 0.221761866
A32: 2016 | B32: 482091 | C32: 1071815 | D32: 323734 | E32: 201581 | F32: 2079220 | G32: 0.2158268079
A33: 2017 | B33: 475142 | C33: 1035957 | D33: 319923 | E33: 206864 | F33: 2037886 | G33: 0.208
A34: 2018 | B34: 466801 | C34: 1037790 | D34: 325614 | E34: 218300 | F34: 2048505 | G34: 0.204
A35: 2019 | B35: 463774 | C35: 1060147 | D35: 341671 | E35: 243646 | F35: 2109238 | G35: 0.207
A36: 2020 | B36: 457420 | C36: 1072827 | D36: 338386 | E36: 208531 | F36: 2077164 | G36: 0.215
A37: 2021 | B37: 449891 | C37: 1126201 | D37: 337477 | E37: 221063 | F37: 2134632 | G37: 0.216
A38: 2022 | B38: 453633 | C38: 1202096 | D38: 341132 | E38: 219982 | F38: 2216843 | G38: 0.223
A39: 2023 | B39: 449324 | C39: 1285242 | D39: 344809 | E39: 222960 | F39: 2302335 | G39: 0.228
A40: 2024 | B40: 458721 | C40: 1173292 | D40: 344880 | E40: 316535 | F40: 2293428 | G40: =F40/10715584 -> 0.2140273456
A41: 1991-2024 | B41: =(B40-B7)/B7 -> -0.172675183 | C41: 1.746090779 | D41: 0.4845105222 | E41: =(E40-E7)/E7 -> 1.945689904 | F41: 0.7354759523 | G41: =(G40-G7)/G7 -> -0.1515594971
A42: 2023-24 | B42: =(B40-B39)/B39 -> 0.02091363916 | C42: =(C40-C39)/C39 -> -0.08710421851 | D42: 0.0002059110986 | E42: 0.4196941155 | F42: =(F40-F39)/F39 -> -0.003868681143 | G42: -0.06128357196
A43: Source: Stats SA, South African Statistics 2010-12; Quarterly employment statistics (QES) Details Breakdown, Statistical release P0277, June 2024, accessed 27 September 2024
A44: a The information on the governments and local governments of the former TBVC states was included in the public sector from the first quarter of1995. The total employment in these states for June 1994 was approximately 12% of the total employment of the public sector. The information on all the universities of the former TBVC states is included in the public sector from the first quarter of 1996. The total employment for universities in these states for March 1996 was approximately 11% of the total employment of the universities.
A45: b National departments do not include Transnet Ltd, SA Post Office Ltd or Telkom SA Ltd. Particulars relating to elected office-bearers and part-time members of commissions are excluded.
A46: c Particulars of elected office bearers are not included.
A47: d Local governments include city councils, municipalities, town councils and health committees. Local governments of the former TBVC states are included as from the second quarter of 1994.
A48: e Contains data regarding parastatals, universities, and technikons.

Sheet Characteristics of employed

Sheet Employment by age group 2009-24
A2: Characteristics of the employed
A4: Employment by age group, 2009 and 2024
A6: Age group | B6: —Number employed— | D6: —Numbera in age group— | F6: —Absorption rateb —
B7: 2009 | C7: 2024 | D7: 2009 | E7: 2024 | F7: 2009 | G7: 2024 | R7: 19 | S7: 4975309
A8: 15-24 | B8: 1463000 | C8: 1089000 | D8: 9825000 | E8: 10262000 | F8: 0.149 | G8: 0.106 | R8: 24 | S8: 5309738 | T8: =SUM(S7:S8) -> 10285047
A9: 25-34 | B9: 4691000 | C9: 4630000 | D9: 8629000 | E9: 10600000 | F9: 0.544 | G9: 0.437 | R9: 29 | S9: 5733239
A10: 35- 44 | B10: 4199000 | C10: 5169000 | D10: 6420000 | E10: 9138000 | F10: 0.654 | G10: 0.566 | R10: 34 | S10: 5592823 | T10: =SUM(S9:S10) -> 11326062
A11: 45-54 | B11: 2838000 | C11: 4065000 | D11: 4555000 | E11: 6884000 | F11: 0.623 | G11: 0.59 | R11: 39 | S11: 5222603
A12: 55- 64 | B12: 1166000 | C12: 1701000 | D12: 2855000 | E12: 4411000 | F12: 0.409 | G12: 0.386 | R12: 44 | S12: 4185220 | T12: =SUM(S11:S12) -> 9407823
A13: Total | B13: 14357000 | C13: 16652000 | D13: 32285000 | E13: 41296000 | F13: 0.445 | G13: 0.403 | R13: 49 | S13: 3293511
A14: Source: Stats SA, QLFS Trends 2008-2024Q2, accessed 18 August 2024 | R14: 54 | S14: 2769139 | T14: =SUM(S13:S14) -> 6062650
A15: a Total population between the ages of 15 and 64, broken down by age. | R15: 59 | S15: 2496452
A16: b The absorption rate shows the proportion in the age group that is employed. | R16: 64 | S16: 2095667 | T16: =SUM(S15:S16) -> 4592119

Sheet Employed by level of ed.9.24
A2: Employment by highest level of education, 2009 and 2024
A4: Level of education | B4: — Number employed — | D4: — Proportiona of total — | F4: — Absorption ratea by highest level of education —
B5: 2009 | C5: 2024 | D5: 2009 | E5: 2024 | F5: 2009 | G5: 2024 | V5: How to calculate Absorption rate by highest level of education
A6: No schooling | B6: 515000 | C6: 180000 | D6: 0.03587100369 | E6: =C6/C13 -> 0.01080951237 | F6: 0.3368214519 | G6: 0.2496532594 | V6: Empl | W6: Unempl | X6: NEA | Y6: Total | Z6: LAR
A7: Less than primary completed | B7: 1357000 | C7: 643000 | D7: 0.09451835342 | E7: =C7/C13 -> 0.0386139803 | F7: 0.3698555465 | G7: 0.2913457182 | V7: 180000 | W7: 56000 | X7: 485000 | Y7: =SUM(V7:X7) -> 721000 | Z7: =(V7/Y7) -> 0.2496532594
A8: Primary completed | B8: 756000 | C8: 470000 | D8: 0.05265724037 | E8: =C8/C13 -> 0.02822483786 | F8: 0.3707699853 | G8: 0.3077930583 | V8: 643000 | W8: 382000 | X8: 1182000 | Y8: =SUM(V8:X8) -> 2207000 | Z8: =(V8/Y8) -> 0.2913457182
A9: Secondary not completed | B9: 4773000 | C9: 5100000 | D9: 0.3324510692 | E9: =C9/C13 -> 0.3062695172 | F9: 0.3454690214 | G9: 0.3009027081 | V9: 470000 | W9: 253000 | X9: 804000 | Y9: 1527000 | Z9: 0.3077930583
A10: Secondary completed | B10: 4148000 | C10: 6066000 | D10: 0.2889182977 | E10: =C10/C13 -> 0.3642805669 | F10: 0.5377236194 | G10: 0.4384848923 | V10: 5100000 | W10: 3441000 | X10: 8408000 | Y10: 16949000 | Z10: 0.3009027081
A11: Tertiary | B11: 2673000 | C11: 3954000 | D11: 0.186180957 | E11: =C11/C13 -> 0.2374489551 | F11: 0.8222085512 | G11: 0.7146213627 | V11: 6066000 | W11: 3387000 | X11: 4381000 | Y11: 13834000 | Z11: 0.4384848923
A12: Other | B12: 136000 | C12: 239000 | D12: 0.009472731072 | E12: =C12/C13 -> 0.01435263031 | F12: 0.5112781955 | G12: 0.4552380952 | V12: 3954000 | W12: 817000 | X12: 762000 | Y12: 5533000 | Z12: 0.7146213627
A13: Total | B13: 14357000 | C13: =SUM(C6:C12) -> 16652000 | D13: 1 | E13: =C13/C13 -> 1 | F13: 0.4446956791 | G13: 0.4032351802 | V13: 239000 | W13: 49000 | X13: 237000 | Y13: 525000 | Z13: 0.4552380952
A14: Source: Stats SA, QLFS Trends 2008-2024Q2, accessed 18 August 2024 | V14: 16652000 | W14: 8384000 | X14: 16260000 | Y14: 41296000 | Z14: 0.4032351802
A15: a CRA calculations. The proportion column refers to the proportion of the total number of people employed who are in each level of education category. The absorption rate refers to the proportion of people in each category who are employed. For example, 1.1% of all employed people have no schooling and 25% of all people with no schooling are employed.

Sheet Employm. by contract9.24
A2: Employment by nature of contract/agreement, 2009-24
B4: — 2009 — | D4: — 2023 — | F4: — 2024 —
B5: Number | C5: Proportion | D5: Number | E5: Proportion | F5: Number | G5: Proportion
A6: Male | B6: 6611000 | C6: 0.5586917941 | D6: 7456000 | E6: =D6/D14 -> 0.5459871119 | F6: 7509000 | G6: =F6/F14 -> 0.5394784108
A7: Limited duration | B7: 731000 | C7: 0.06177638807 | D7: 1059000 | E7: =D7/D14 -> 0.0775483304 | F7: 1005000 | G7: =F7/F14 -> 0.07220346289
A8: Permanent nature | B8: 4378000 | C8: 0.369982253 | D8: 4545000 | E8: =D8/D14 -> 0.3328207381 | F8: 4526000 | G8: =F8/F14 -> 0.3251670379
A9: Unspecified duration | B9: 1502000 | C9: 0.126933153 | D9: 1852000 | E9: =D9/D14 -> 0.1356180434 | F9: 1979000 | G9: =F9/F14 -> 0.1421797543
A10: Female | B10: 5222000 | C10: 0.4413082059 | D10: 6199000 | E10: =D10/D14 -> 0.4539396602 | F10: 6410000 | G10: =F10/F14 -> 0.4605215892
A11: Limited duration | B11: 610000 | C11: 0.05155074791 | D11: 1104000 | E11: =D11/D14 -> 0.08084358524 | F11: 1043000 | G11: =F11/F14 -> 0.07493354408
A12: Permanent nature | B12: 3253000 | C12: 0.2749091524 | D12: 3591000 | E12: =D12/D14 -> 0.2629613357 | F12: 3832000 | G12: =F12/F14 -> 0.2753071341
A13: Unspecified duration | B13: 1359000 | C13: 0.1148483056 | D13: 1504000 | E13: =D13/D14 -> 0.1101347393 | F13: 1534000 | G13: =F13/F14 -> 0.1102090667
A14: Both sexes | B14: 11833000 | C14: 1 | D14: 13656000 | E14: =D14/D14 -> 1 | F14: 13919000 | G14: =F14/F14 -> 1
A15: Limited duration | B15: 1341000 | C15: 0.113327136 | D15: 2163000 | E15: =D15/D14 -> 0.1583919156 | F15: 2048000 | G15: =F15/F14 -> 0.147137007
A16: Permanent nature | B16: 7631000 | C16: 0.6448914054 | D16: 8136000 | E16: =D16/D14 -> 0.5957820738 | F16: 8358000 | G16: =F16/F14 -> 0.600474172
A17: Unspecified duration | B17: 2861000 | C17: 0.2417814586 | D17: 3357000 | E17: =D17/D14 -> 0.2458260105 | F17: 3513000 | G17: =F17/F14 -> 0.252388821
A18: Source: Stats SA, QLFS Trends 2008-2023Q2, accessed 18 August 2024

Sheet Employment equity (EE)

Sheet EE by occupational level 01-23
A2: Employment equity
A4: Employment equity: occupational level by race and sexa, 2001 and 2023
B6: —Top management— | D6: —Senior management— | F6: —Professionally qualified— | H6: —Technically skilled—
A7: Race | B7: 2001 | C7: 2023 | D7: 2001 | E7: 2023 | F7: 2001 | G7: 2023 | H7: 2001 | I7: 2023
A8: Black | B8: 0.06 | C8: 0.172 | D8: 0.09 | E8: 0.276 | F8: 0.33 | G8: 0.494 | H8: 0.58 | I8: 0.668
A9: Coloured | B9: 0.03 | C9: 0.061 | D9: 0.05 | E9: 0.085 | F9: 0.06 | G9: 0.1 | H9: 0.18 | I9: 0.114
A10: Indian/Asian | B10: 0.04 | C10: 0.116 | D10: 0.05 | E10: 0.124 | F10: 0.05 | G10: 0.092 | H10: 0.066 | I10: 0.051
A11: White | B11: 0.87 | C11: 0.621 | D11: 0.81 | E11: 0.485 | F11: 0.56 | G11: 0.292 | H11: 0.18 | I11: 0.152
A12: Sex
A13: Male | B13: 0.87 | C13: 0.731 | D13: 0.8 | E13: 0.623 | F13: 0.62 | G13: 0.519 | H13: 0.6 | I13: 0.501
A14: Female | B14: 0.13 | C14: 0.269 | D14: 0.2 | E14: 0.377 | F14: 0.38 | G14: 0.481 | H14: 0.4 | I14: 0.499
A15: Source: Commission for Employment Equity, Annual Report 2023-2024, 31 March 2023 pp17-33
A17: a Data on foreign nationals is not included.

Sheet EE top management by industry
A2: Employment equity: top management employment by race, sex and industry, 2024
A5: Male | B5: Black | C5: Coloured | D5: Indian/ Asian | E5: White | F5: Foreign nationals | G5: Totala
A6: Agriculture | B6: 0.054 | C6: 0.028 | D6: 0.009 | E6: 0.702 | F6: 0.006 | G6: =SUM(B6:F6) -> 0.799
A7: Mining and quarrying | B7: 0.226 | C7: 0.027 | D7: 0.03 | E7: 0.471 | F7: 0.038 | G7: =SUM(B7:F7) -> 0.792
A8: Manufacturing | B8: 0.06 | C8: 0.036 | D8: 0.102 | E8: 0.552 | F8: 0.037 | G8: =SUM(B8:F8) -> 0.787
A9: Electricity, gas and water | B9: 0.083 | C9: 0.042 | D9: 0.208 | E9: 0.333 | F9: 0 | G9: 0.666
A10: Construction | B10: 0.155 | C10: 0.059 | D10: 0.061 | E10: 0.51 | F10: 0.019 | G10: 0.804
A11: Retail and motor trade/repair services | B11: 0.052 | C11: 0.03 | D11: 0.127 | E11: 0.529 | F11: 0.014 | G11: 0.752
A12: Wholesale and retail trade/repair of motor vehicles and motorcycles | B12: 0.052 | C12: 0.03 | D12: 0.127 | E12: 0.529 | F12: 0.014 | G12: 0.752
A13: Transport/storage/communications | B13: 0.107 | C13: 0.036 | D13: 0.12 | E13: 0.442 | F13: 0.025 | G13: 0.73
A14: Finance/business services | B14: 0.106 | C14: 0.029 | D14: 0.082 | E14: 0.447 | F14: 0.034 | G14: 0.698
A15: Community/social/personal servicesb | B15: 0.138 | C15: 0 | D15: 0.069 | E15: 0.276 | F15: 0.034 | G15: 0.517
A16: Female
A17: Agriculture | B17: 0.028 | C17: 0.02 | D17: 0.004 | E17: 0.146 | F17: 0.002 | G17: 0.2
A18: Mining and quarrying | B18: 0.097 | C18: 0.013 | D18: 0.021 | E18: 0.073 | F18: 0.004 | G18: 0.208
A19: Manufacturing | B19: 0.042 | C19: 0.021 | D19: 0.041 | E19: 0.104 | F19: 0.006 | G19: 0.214
A20: Electricity, gas and water | B20: 0.083 | C20: 0.042 | D20: 0.083 | E20: 0.125 | F20: 0 | G20: 0.333
A21: Construction | B21: 0.07 | C21: 0.032 | D21: 0.029 | E21: 0.063 | F21: 0.003 | G21: 0.197
A22: Wholesale and retail trade/repair of motor vehicles and motorcycles | B22: 0.029 | C22: 0.018 | D22: 0.044 | E22: 0.152 | F22: 0.005 | G22: 0.248
A23: Catering/accommodation/other trade | B23: 0.065 | C23: 0.032 | D23: 0.025 | E23: 0.225 | F23: 0.005 | G23: 0.352
A24: Transport/storage/communications | B24: 0.067 | C24: 0.023 | D24: 0.06 | E24: 0.115 | F24: 0.004 | G24: 0.269
A25: Finance/business services | B25: 0.082 | C25: 0.028 | D25: 0.043 | E25: 0.141 | F25: 0.009 | G25: 0.303
A26: Community/social/personal servicesb | B26: 0.103 | C26: 0.034 | D26: 0.034 | E26: 0.31 | F26: 0 | G26: 0.481
A27: Source: Commission for Employment Equity, Annual Report 2023-24, June 2024, pp20-21
A28: a The male and female proportion in each category add up to 100%. Black males thus account for 5.4% of all top managers in agriculture, Black females for 2.8% and so on.
A29: b Including government.

Sheet Employment in management
A2: Employment in management by race and sex, 2000-23
C4: —Top managers— | E4: —Senior managers—
B5: Yeara | C5: Blackb | D5: Female | E5: Blackb | F5: Female
B6: 2000 | C6: 0.127 | D6: 0.124 | E6: 0.185 | F6: 0.21 | M6: Black | N6: White | O6: Foreign national | P6: Female | Q6: Male
B7: 2001 | C7: 0.251 | D7: 0.119 | E7: 0.191 | F7: 0.177 | M7: 0.347 | N7: 0.621 | O7: 0.03 | P7: 0.269 | Q7: 0.731
B8: 2002 | C8: 0.184 | D8: 0.138 | E8: 0.222 | F8: 0.216
B9: 2003 | C9: 0.238 | D9: 0.141 | E9: 0.273 | F9: 0.223
B10: 2004 | C10: 0.211 | D10: 0.151 | E10: 0.257 | F10: 0.237
B11: 2005 | C11: 0.272 | D11: 0.165 | E11: 0.275 | F11: 0.236
B12: 2006 | C12: 0.222 | D12: 0.216 | E12: 0.269 | F12: 0.274
B13: 2007 | C13: 0.288 | D13: 0.178 | E13: 0.324 | F13: 0.249
B14: 2008 | C14: 0.242 | D14: 0.178 | E14: 0.325 | F14: 0.278
B15: 2009 | C15: 0.322 | D15: 0.18 | E15: 0.355 | F15: 0.267
B16: 2010 | C16: 0.335 | D16: 0.18 | E16: 0.364 | F16: 0.274
B17: 2011 | C17: 0.247 | D17: 0.191 | E17: 0.344 | F17: 0.295
B18: 2012 | C18: 0.32 | D18: 0.195 | E18: 0.394 | F18: 0.27
B19: 2013 | C19: 0.333 | D19: 0.202 | E19: 0.401 | F19: 0.294
B20: 2014 | C20: 0.266 | D20: 0.204 | E20: 0.376 | F20: 0.314
B21: 2015 | C21: 0.276 | D21: 0.214 | E21: 0.388 | F21: 0.324
B22: 2016 | C22: 0.282 | D22: 0.22 | E22: 0.404 | F22: 0.333
B23: 2017 | C23: 0.288 | D23: 0.229 | E23: 0.407 | F23: 0.388
B24: 2018 | C24: 0.301 | D24: 0.235 | E24: 0.421 | F24: 0.345
B25: 2019 | C25: 0.311 | D25: 0.244 | E25: 0.429 | F25: 0.353
B26: 2020 | C26: 0.321 | D26: 0.249 | E26: 0.443 | F26: 0.357
B27: 2021 | C27: 0.338 | D27: 0.258 | E27: 0.456 | F27: 0.364
B28: 2022 | C28: 0.342 | D28: 0.265 | E28: 0.469 | F28: 0.372
B29: 2023 | C29: 0.347 | D29: 0.269 | E29: 0.485 | F29: 0.377
B30: Source: Commission for Employment Equity, Annual Report 2021–2022, 31 March 2022, pp23-24, pp27-28, Annual Report 2022-2023, 31 March 2023, pp37-38, p43, Annual Report 2023-2024, 26 June 2024, pp17-18, pp23
A31: a Employers with more than 150 employees previously had to submit reports to the Commission for Employment Equity every year, whereas those with between 50 and 149 employees had to submit reports only every other year. It is for this reason that the figures in the above table fluctuate slightly. Even years (2000, 2002, etc.) were those in which all employers with 50 or more employees had to submit reports, and odd years (2001, 2003, etc.) were those in which only employers with 150 or more employees had to submit reports. In general, the figures are higher in odd years, suggesting that larger companies tend to employ slightly higher proportions of black and female managers. Since the commencement of the amended Act in August 2014, all employers, both large and small, are required to report annually. Employees with disabilities are included.
A32: b Black people in the context of this table include African (black), Coloured, and Indian, but data does not include foreign nationals.

Sheet All government.
A2: National government, 2024
A4: Race | B4: Proportion of top managersa | C4: Proportion of economically active population (EAP)b | D4: EAP 35-64 as a proportion of national EAPb | E4: Over 20s with post-school qualificationc as a proportion of national EAPb
A5: Black | B5: 0.767 | C5: 0.811 | D5: 0.456 | E5: 0.136 | P5: African | Q5: 0.434 | R5: 0.366 | S5: =SUM(Q5:R5) -> 0.8
A6: Coloured | B6: 0.069 | C6: 0.088 | D6: 0.049 | E6: 0.016 | P6: Coloured | Q6: 0.049 | R6: 0.044 | S6: =SUM(Q6:R6) -> 0.093
A7: Indian/Asian | B7: 0.071 | C7: 0.026 | D7: 0.046 | E7: 0.011 | P7: Indian | Q7: 0.017 | R7: 0.01 | S7: 0.027
A8: White | B8: 0.09 | C8: 0.076 | D8: 0.051 | E8: 0.057 | P8: White | Q8: 0.045 | R8: 0.035 | S8: 0.08
A9: Total | B9: 1 | C9: 1 | D9: 0.5685354776 | E9: 0.221 | S9: =SUM(S5:S8) -> 1
A10: Race | B10: Proportion of senior managersa | C10: Proportion of economically active population (EAP)b | D10: EAP 35-64 as a proportion of national EAPb | E10: Over 20s with post-school qualificationc as a proportion of national EAPb | Q10: EAP 35-64 | S10: EAP 25-64
A11: Black | B11: 0.732 | C11: 0.811 | D11: 0.456 | E11: 0.136 | P11: Black | Q11: 11414495 | R11: =Q11/Q16 -> 0.4559203932 | S11: 18051918 | T11: =(S11/S16) -> 0.7210338743 | V11: 3409000 | W11: =(V11/V16) -> 0.1361630646
A12: Coloured | B12: 0.066 | C12: 0.088 | D12: 0.049 | E12: 0.016 | P12: Coloured | Q12: 1225440 | R12: =Q12/Q16 -> 0.04894680725 | S12: 1860019 | T12: =(S12/S16) -> 0.0742933081 | V12: 395000 | W12: =(V12/V16) -> 0.01577718115
A13: Indian/Asian | B13: 0.078 | C13: 0.026 | D13: 0.046 | E13: 0.011 | P13: Indian/Asian | Q13: 410950 | R13: =Q13/Q16 -> 0.01641425973 | S13: 604383 | T13: =(S13/S16) -> 0.02414040525 | V13: 283000 | W13: =(V13/V16) -> 0.0113036513
A14: White | B14: 0.123 | C14: 0.076 | D14: 0.051 | E14: 0.057 | P14: White | Q14: 1271396 | R14: =Q14/Q16 -> 0.05078239241 | S14: 1742066 | T14: =(S14/S16) -> 0.06958200216 | V14: 1439000 | W14: =(V14/V16) -> 0.05747687005
A15: Total | B15: 1 | C15: 1 | D15: 0.5685354776 | E15: 0.221 | P15: Total | Q15: 14321280 | R15: =Q15/Q16 -> 0.5720238704 | S15: 22256385 | T15: =(S15/S16) -> 0.8889696654 | V15: 5525000 | W15: =(V15/V16) -> 0.2206808249
A16: Race | B16: Proportion of professionalsa | C16: Proportion of economically active population (EAP)b | D16: EAP 25-64 as a proportion of national EAPb | E16: Over 20s with post-school qualificationc as a proportion of national EAPb | P16: Total EAP | Q16: 25036158 | S16: 25036158 | V16: 25036158
A17: Black | B17: 0.706 | C17: 0.811 | D17: 0.721 | E17: 0.136
A18: Coloured | B18: 0.085 | C18: 0.088 | D18: 0.074 | E18: 0.016
A19: Indian/Asian | B19: 0.044 | C19: 0.026 | D19: 0.024 | E19: 0.011
A20: White | B20: 0.164 | C20: 0.076 | D20: 0.07 | E20: 0.057
A21: Total | B21: 1 | C21: 1 | D21: 0.8852116816 | E21: 0.221 | M21: 2024
A22: Race | B22: Proportion of skilled technicala | C22: Proportion of economically active population (EAP)b | D22: EAP 25-64 as a proportion of national EAPb | E22: Over 20s with post-school qualificationc as a proportion of national EAPb | M22: 15-24 years | N22: 2257920 | O22: 328322 | P22: 36542 | Q22: 156988 | R22: 2779772 | W22: B | X22: C | Y22: I | Z22: W | AA22: T
A23: Black | B23: 0.778 | C23: 0.811 | D23: 0.721 | E23: 0.136 | M23: 25-34 years | N23: 6637423 | O23: 634579 | P23: 193433 | Q23: 470670 | R23: 7935105 | V23: 2023
A24: Coloured | B24: 0.102 | C24: 0.088 | D24: 0.074 | E24: 0.016 | M24: 35- 44 years | N24: 6045847 | O24: 542093 | P24: 201075 | Q24: 461752 | R24: 7250767 | V24: 15-24 years | W24: 2238001.698 | X24: 333444.606 | Y24: 63896.56209 | Z24: 150290.3126 | AA24: 2785633.178
A25: Indian/Asian | B25: 0.025 | C25: 0.026 | D25: 0.024 | E25: 0.011 | M25: 45-54 years | N25: 4032309 | O25: 489870 | P25: 145335 | Q25: 459726 | R25: 5127240 | V25: 25-34 years | W25: 6451086.87 | X25: 624384.5756 | Y25: 175869.7601 | Z25: 433619.7098 | AA25: 7684960.916
A26: White | B26: 0.095 | C26: 0.076 | D26: 0.07 | E26: 0.057 | M26: 55- 64 years | N26: 1336339 | O26: 193477 | P26: 64540 | Q26: 349918 | R26: 1943273 | V26: 35- 44 years | W26: 5847384.406 | X26: 562951.1817 | Y26: 191294.3779 | Z26: 464146.0261 | AA26: 7065775.991
A27: Total | B27: 1 | C27: 1 | D27: 0.8852116816 | E27: 0.221 | M27: Totala | N27: 20299837 | O27: 2197341 | P27: 640924 | Q27: 1898055 | R27: 25036158 | V27: 45-54 years | W27: 3824802.802 | X27: 511500.7081 | Y27: 141706.0645 | Z27: 463417.3762 | AA27: 4941426.95
A28: Source: Commission for Employment Equity, Annual Report 2023-2024, 26 June 2024, pp22-37; Stats SA, General Household Survey 2023, Statistical release P0318, 23 May 2024, Appendix D, p87 | M28: 35-64 | N28: =SUM(N24:N26) -> 11414495 | O28: =SUM(O24:O26) -> 1225440 | P28: =SUM(P24:P26) -> 410950 | Q28: =SUM(Q24:Q26) -> 1271396 | R28: =SUM(R24:R26) -> 14321280 | V28: 55- 64 years | W28: 1192340.088 | X28: 177935.26 | Y28: 53143.92857 | Z28: 366350.4287 | AA28: 1789769.705
A29: a Foreign nationals are excluded, so the total in this column does not add up to 100%. | M29: 25-64 | N29: =SUM(N23:N26) -> 18051918 | O29: =SUM(O23:O26) -> 1860019 | P29: 604383 | Q29: =SUM(Q23:Q26) -> 1742066 | R29: =SUM(R23:R26) -> 22256385 | V29: Totala | W29: 19553615.86 | X29: 2210216.331 | Y29: 625910.6931 | Z29: 1877823.853 | AA29: 24267566.74
A30: b CRA calculations. | V30: 35-64 | W30: =SUM(W26:W28) -> 10864527.3 | X30: =SUM(X26:X28) -> 1252387.15 | Y30: 386144.371 | Z30: 1293913.831 | AA30: 13796972.65
A31: c Refers to a degree/diploma/certificate with grade 12. 2023 figures. | N31: =SUM(N27/R27) -> 0.8108207737 | O31: =SUM(O27/R27) -> 0.08776670126 | P31: =SUM(P27/R27) -> 0.0255999343 | Q31: =SUM(Q27/R27) -> 0.07581255079 | V31: 25-64 | W31: =SUM(W25:W28) -> 17315614.17 | X31: =SUM(X25:X28) -> 1876771.725 | Y31: 562014.1311 | Z31: 1727533.541 | AA31: 21481933.56
W33: =(W29/AA29) -> 0.8057509874 | X33: =(X29/AA29) -> 0.09107696519 | Y33: =(Y29/AA29) -> 0.02579206642 | Z33: =(Z29/AA29) -> 0.077379981

Sheet Provincial government
A2: Provincial government, 2024
A4: Race | B4: Proportion of top managersa | C4: Proportion of economically active population (EAP)b | D4: EAP 35-64 as a proportion of national EAPb | E4: Over 20s with post-school qualificationc as a proportion of national EAPb
A5: Black | B5: 0.787 | C5: 0.811 | D5: 0.456 | E5: 0.136
A6: Coloured | B6: 0.099 | C6: 0.088 | D6: 0.049 | E6: 0.016
A7: Indian/Asian | B7: 0.057 | C7: 0.026 | D7: 0.046 | E7: 0.011
A8: White | B8: 0.051 | C8: 0.076 | D8: 0.051 | E8: 0.057
A9: Total | B9: 1 | C9: 1 | D9: 0.5685354776 | E9: 0.221
A10: Race | B10: Proportion of senior managersa | C10: Proportion of economically active population (EAP)b | D10: EAP 35-64 as a proportion of national EAPb | E10: Over 20s with post-school qualificationc as a proportion of national EAPb
A11: Black | B11: 0.796 | C11: 0.811 | D11: 0.456 | E11: 0.136
A12: Coloured | B12: 0.084 | C12: 0.088 | D12: 0.049 | E12: 0.016
A13: Indian/Asian | B13: 0.041 | C13: 0.026 | D13: 0.046 | E13: 0.011
A14: White | B14: 0.075 | C14: 0.076 | D14: 0.051 | E14: 0.057
A15: Total | B15: 1 | C15: 1 | D15: 0.5685354776 | E15: 0.221
A16: Race | B16: Proportion of professionalsa | C16: Proportion of economically active population (EAP)b | D16: EAP 25-64 as a proportion of national EAPb | E16: Over 20s with post-school qualificationc as a proportion of national EAPb
A17: Black | B17: 0.769 | C17: 0.811 | D17: 0.721 | E17: 0.136
A18: Coloured | B18: 0.09 | C18: 0.088 | D18: 0.074 | E18: 0.016
A19: Indian/Asian | B19: 0.045 | C19: 0.026 | D19: 0.024 | E19: 0.011
A20: White | B20: 0.092 | C20: 0.076 | D20: 0.07 | E20: 0.057
A21: Total | B21: 1 | C21: 1 | D21: 0.8852116816 | E21: 0.221
A22: Race | B22: Proportion of skilled technicala | C22: Proportion of economically active population (EAP)b | D22: EAP 25-64 as a proportion of national EAPb | E22: Over 20s with post-school qualificationc as a proportion of national EAPb
A23: Black | B23: 0.854 | C23: 0.811 | D23: 0.721 | E23: 0.136
A24: Coloured | B24: 0.061 | C24: 0.088 | D24: 0.074 | E24: 0.016
A25: Indian/Asian | B25: 0.014 | C25: 0.026 | D25: 0.024 | E25: 0.011
A26: White | B26: 0.067 | C26: 0.076 | D26: 0.07 | E26: 0.057
A27: Total | B27: 1 | C27: 1 | D27: 0.8852116816 | E27: 0.221
A28: Source: Commission for Employment Equity, Annual Report 2023-2024, 26 June 2024, pp22-37; Stats SA, General Household Survey 2023, Statistical release P0318, 23 May 2024, Appendix D, p88
A29: a Foreign nationals are excluded, so the total in this column does not add up to 100%.
A30: b CRA calculations.
A31: c Refers to a degree/diploma/certificate with grade 12. 2023 figures.

Sheet Local government
A2: Local government, 2024
A4: Race | B4: Proportion of top managersa | C4: Proportion of economically active population (EAP)b | D4: EAP 35-64 as a proportion of national EAPb | E4: Over 20s with post-school qualificationc as a proportion of national EAPb
A5: Black | B5: 0.724 | C5: 0.811 | D5: 0.456 | E5: 0.136
A6: Coloured | B6: 0.138 | C6: 0.088 | D6: 0.049 | E6: 0.016
A7: Indian/Asian | B7: 0.038 | C7: 0.026 | D7: 0.046 | E7: 0.011
A8: White | B8: 0.101 | C8: 0.076 | D8: 0.051 | E8: 0.057
A9: Total | B9: 1 | C9: 1 | D9: 0.5685354776 | E9: 0.221
A10: Race | B10: Proportion of senior managersa | C10: Proportion of economically active population (EAP)b | D10: EAP 35-64 as a proportion of national EAPb | E10: Over 20s with post-school qualificationc as a proportion of national EAPb
A11: Black | B11: 0.764 | C11: 0.811 | D11: 0.456 | E11: 0.136
A12: Coloured | B12: 0.068 | C12: 0.088 | D12: 0.049 | E12: 0.016
A13: Indian/Asian | B13: 0.056 | C13: 0.026 | D13: 0.046 | E13: 0.011
A14: White | B14: 0.11 | C14: 0.076 | D14: 0.051 | E14: 0.057
A15: Total | B15: 1 | C15: 1 | D15: 0.5685354776 | E15: 0.221
A16: Race | B16: Proportion of professionalsa | C16: Proportion of economically active population (EAP)b | D16: EAP 25-64 as a proportion of national EAPb | E16: Over 20s with post-school qualificationc as a proportion of national EAPb
A17: Black | B17: 0.668 | C17: 0.811 | D17: 0.721 | E17: 0.136
A18: Coloured | B18: 0.148 | C18: 0.088 | D18: 0.074 | E18: 0.016
A19: Indian/Asian | B19: 0.035 | C19: 0.026 | D19: 0.024 | E19: 0.011
A20: White | B20: 0.142 | C20: 0.076 | D20: 0.07 | E20: 0.057
A21: Total | B21: 1 | C21: 1 | D21: 0.8852116816 | E21: 0.221
A22: Race | B22: Proportion of skilled technicala | C22: Proportion of economically active population (EAP)b | D22: EAP 25-64 as a proportion of national EAPb | E22: Over 20s with post-school qualificationc as a proportion of national EAPb
A23: Black | B23: 0.7 | C23: 0.811 | D23: 0.721 | E23: 0.136
A24: Coloured | B24: 0.169 | C24: 0.088 | D24: 0.074 | E24: 0.016
A25: Indian/Asian | B25: 0.043 | C25: 0.026 | D25: 0.024 | E25: 0.011
A26: White | B26: 0.087 | C26: 0.076 | D26: 0.07 | E26: 0.057
A27: Total | B27: 1 | C27: 1 | D27: 0.8852116816 | E27: 0.221
A28: Source: Commission for Employment Equity, Annual Report 2023-2024, 26 June 2024, pp22-37; Stats SA, General Household Survey 2023, Statistical release P0318, 23 May 2024, Appendix D, p89
A29: a Foreign nationals are excluded, so the total in this column does not add up to 100%.
A30: b CRA calculations.
A31: c Refers to a degree/diploma/certificate with grade 12. 2023 figures.

Sheet State owned enterprises
A2: State-owned enterprises, 2024
A4: Race | B4: Proportion of top managersa | C4: Proportion of economically active population (EAP)b | D4: EAP 35-64 as a proportion of national EAPb | E4: Over 20s with post-school qualificationc as a proportion of national EAPb
A5: Black | B5: 0.661 | C5: 0.811 | D5: 0.456 | E5: 0.136
A6: Coloured | B6: 0.079 | C6: 0.088 | D6: 0.049 | E6: 0.016
A7: Indian/Asian | B7: 0.092 | C7: 0.026 | D7: 0.046 | E7: 0.011
A8: White | B8: 0.156 | C8: 0.076 | D8: 0.051 | E8: 0.057
A9: Total | B9: 1 | C9: 1 | D9: 0.5685354776 | E9: 0.221
A10: Race | B10: Proportion of senior managersa | C10: Proportion of economically active population (EAP)b | D10: EAP 35-64 as a proportion of national EAPb | E10: Over 20s with post-school qualificationc as a proportion of national EAPb
A11: Black | B11: 0.663 | C11: 0.811 | D11: 0.456 | E11: 0.136
A12: Coloured | B12: 0.066 | C12: 0.088 | D12: 0.049 | E12: 0.016
A13: Indian/Asian | B13: 0.09 | C13: 0.026 | D13: 0.046 | E13: 0.011
A14: White | B14: 0.16 | C14: 0.076 | D14: 0.051 | E14: 0.057
A15: Total | B15: 1 | C15: 1 | D15: 0.5685354776 | E15: 0.221
A16: Race | B16: Proportion of professionalsa | C16: Proportion of economically active population (EAP)b | D16: EAP 25-64 as a proportion of national EAPb | E16: Over 20s with post-school qualificationc as a proportion of national EAPb
A17: Black | B17: 0.687 | C17: 0.811 | D17: 0.721 | E17: 0.136
A18: Coloured | B18: 0.07 | C18: 0.088 | D18: 0.074 | E18: 0.016
A19: Indian/Asian | B19: 0.07 | C19: 0.026 | D19: 0.024 | E19: 0.011
A20: White | B20: 0.156 | C20: 0.076 | D20: 0.07 | E20: 0.057
A21: Total | B21: 1 | C21: 1 | D21: 0.8852116816 | E21: 0.221
A22: Race | B22: Proportion of skilled technicala | C22: Proportion of economically active population (EAP)b | D22: EAP 25-64 as a proportion of national EAPb | E22: Over 20s with post-school qualificationc as a proportion of national EAPb
A23: Black | B23: 0.808 | C23: 0.811 | D23: 0.721 | E23: 0.136
A24: Coloured | B24: 0.071 | C24: 0.088 | D24: 0.074 | E24: 0.016
A25: Indian/Asian | B25: 0.03 | C25: 0.026 | D25: 0.024 | E25: 0.011
A26: White | B26: 0.088 | C26: 0.076 | D26: 0.07 | E26: 0.057
A27: Total | B27: 1 | C27: 1 | D27: 0.8852116816 | E27: 0.221
A28: Source: Commission for Employment Equity, Annual Report 2023-2024, 26 June 2024, pp22-37; Stats SA, General Household Survey 2023, Statistical release P0318, 23 May 2024, Appendix D, p91
A29: a Foreign nationals are excluded, so the total in this column does not add up to 100%.
A30: b CRA calculations.
A31: c Refers to a degree/diploma/certificate with grade 12. 2023 figures.

Sheet Private sector
A2: Private sector, 2024
A4: Race | B4: Proportion of top managersa | C4: Proportion of economically active population (EAP)b | D4: EAP 35-64 as a proportion of national EAPb | E4: Over 20s with post-school qualificationc as a proportion of national EAPb
A5: Black | B5: 0.14 | C5: 0.811 | D5: 0.456 | E5: 0.136
A6: Coloured | B6: 0.059 | C6: 0.088 | D6: 0.049 | E6: 0.016
A7: Indian/Asian | B7: 0.12 | C7: 0.026 | D7: 0.046 | E7: 0.011
A8: White | B8: 0.651 | C8: 0.076 | D8: 0.051 | E8: 0.057
A9: Total | B9: 1 | C9: 1 | D9: 0.5685354776 | E9: 0.221
A10: Race | B10: Proportion of senior managersa | C10: Proportion of economically active population (EAP)b | D10: EAP 35-64 as a proportion of national EAPb | E10: Over 20s with post-school qualificationc as a proportion of national EAPb
A11: Black | B11: 0.21 | C11: 0.811 | D11: 0.456 | E11: 0.136
A12: Coloured | B12: 0.087 | C12: 0.088 | D12: 0.049 | E12: 0.016
A13: Indian/Asian | B13: 0.134 | C13: 0.026 | D13: 0.046 | E13: 0.011
A14: White | B14: 0.537 | C14: 0.076 | D14: 0.051 | E14: 0.057
A15: Total | B15: 1 | C15: 1 | D15: 0.5685354776 | E15: 0.221
A16: Race | B16: Proportion of professionalsa | C16: Proportion of economically active population (EAP)b | D16: EAP 25-64 as a proportion of national EAPb | E16: Over 20s with post-school qualificationc as a proportion of national EAPb
A17: Black | B17: 0.354 | C17: 0.811 | D17: 0.721 | E17: 0.136
A18: Coloured | B18: 0.113 | C18: 0.088 | D18: 0.074 | E18: 0.016
A19: Indian/Asian | B19: 0.116 | C19: 0.026 | D19: 0.024 | E19: 0.011
A20: White | B20: 0.389 | C20: 0.076 | D20: 0.07 | E20: 0.057
A21: Total | B21: 1 | C21: 1 | D21: 0.8852116816 | E21: 0.221
A22: Race | B22: Proportion of skilled technicala | C22: Proportion of economically active population (EAP)b | D22: EAP 25-64 as a proportion of national EAPb | E22: Over 20s with post-school qualificationc as a proportion of national EAPb
A23: Black | B23: 0.581 | C23: 0.811 | D23: 0.721 | E23: 0.136
A24: Coloured | B24: 0.134 | C24: 0.088 | D24: 0.074 | E24: 0.016
A25: Indian/Asian | B25: 0.067 | C25: 0.026 | D25: 0.024 | E25: 0.011
A26: White | B26: 0.197 | C26: 0.076 | D26: 0.07 | E26: 0.057
A27: Total | B27: 1 | C27: 1 | D27: 0.8852116816 | E27: 0.221
A28: Source: Commission for Employment Equity, Annual Report 2023-2024, 26 June 2024, pp22-37; Stats SA, General Household Survey 2023, Statistical release P0318, 23 May 2024, Appendix D, p90
A29: a Foreign nationals are excluded, so the total in this column does not add up to 100%.
A30: b CRA calculations.
A31: c Refers to a degree/diploma/certificate with grade 12. 2023 figures.

Sheet Non profit organisations
A2: Non-profit organisations, 2024
A4: Race | B4: Proportion of top managersa | C4: Proportion of economically active population (EAP)b | D4: EAP 35-64 as a proportion of national EAPb | E4: Over 20s with post-school qualificationc as a proportion of national EAPb
A5: Black | B5: 0.403 | C5: 0.811 | D5: 0.456 | E5: 0.136
A6: Coloured | B6: 0.09 | C6: 0.088 | D6: 0.049 | E6: 0.016
A7: Indian/Asian | B7: 0.076 | C7: 0.026 | D7: 0.046 | E7: 0.011
A8: White | B8: 0.375 | C8: 0.076 | D8: 0.051 | E8: 0.057
A9: Total | B9: 1 | C9: 1 | D9: 0.5685354776 | E9: 0.221
A10: Race | B10: Proportion of senior managersa | C10: Proportion of economically active population (EAP)b | D10: EAP 35-64 as a proportion of national EAPb | E10: Over 20s with post-school qualificationc as a proportion of national EAPb
A11: Black | B11: 0.505 | C11: 0.811 | D11: 0.456 | E11: 0.136
A12: Coloured | B12: 0.093 | C12: 0.088 | D12: 0.049 | E12: 0.016
A13: Indian/Asian | B13: 0.061 | C13: 0.026 | D13: 0.046 | E13: 0.011
A14: White | B14: 0.309 | C14: 0.076 | D14: 0.051 | E14: 0.057
A15: Total | B15: 1 | C15: 1 | D15: 0.5685354776 | E15: 0.221
A16: Race | B16: Proportion of professionalsa | C16: Proportion of economically active population (EAP)b | D16: EAP 25-64 as a proportion of national EAPb | E16: Over 20s with post-school qualificationc as a proportion of national EAPb
A17: Black | B17: 0.591 | C17: 0.811 | D17: 0.721 | E17: 0.136
A18: Coloured | B18: 0.12 | C18: 0.088 | D18: 0.074 | E18: 0.016
A19: Indian/Asian | B19: 0.046 | C19: 0.026 | D19: 0.024 | E19: 0.011
A20: White | B20: 0.215 | C20: 0.076 | D20: 0.07 | E20: 0.057
A21: Total | B21: 1 | C21: 1 | D21: 0.8852116816 | E21: 0.221
A22: Race | B22: Proportion of skilled technicala | C22: Proportion of economically active population (EAP)b | D22: EAP 25-64 as a proportion of national EAPb | E22: Over 20s with post-school qualificationc as a proportion of national EAPb
A23: Black | B23: 0.668 | C23: 0.811 | D23: 0.721 | E23: 0.136
A24: Coloured | B24: 0.19 | C24: 0.088 | D24: 0.074 | E24: 0.016
A25: Indian/Asian | B25: 0.021 | C25: 0.026 | D25: 0.024 | E25: 0.011
A26: White | B26: 0.116 | C26: 0.076 | D26: 0.07 | E26: 0.057
A27: Total | B27: 1 | C27: 1 | D27: 0.8852116816 | E27: 0.221
A28: Source: Commission for Employment Equity, Annual Report 2023-2024, 26 June 2024, pp22-37; Stats SA, General Household Survey 2023, Statistical release P0318, 23 May 2024, Appendix D, p92
A29: a Foreign nationals are excluded, so the total in this column does not add up to 100%.
A30: b CRA calculations.
A31: c Refers to a degree/diploma/certificate with grade 12. 2023 figures.

Sheet All employers
A2: All employers, 2024
A4: Race | B4: Proportion of top managersa | C4: Proportion of economically active population (EAP)b | D4: EAP 35-64 as a proportion of national EAPb | E4: Over 20s with post-school qualificationc as a proportion of national EAPb
A5: Black | B5: 0.172 | C5: 0.811 | D5: 0.456 | E5: 0.136 | O5: 0.105 | P5: 0.067 | Q5: =SUM(O5:P5) -> 0.172
A6: Coloured | B6: 0.061 | C6: 0.088 | D6: 0.049 | E6: 0.016 | O6: 0.036 | P6: 0.025 | Q6: =SUM(O6:P6) -> 0.061
A7: Indian/Asian | B7: 0.116 | C7: 0.026 | D7: 0.046 | E7: 0.011 | O7: 0.077 | P7: 0.039 | Q7: 0.116
A8: White | B8: 0.621 | C8: 0.076 | D8: 0.051 | E8: 0.057 | O8: 0.489 | P8: 0.132 | Q8: 0.621
A9: Total | B9: 1 | C9: 1 | D9: 0.5685354776 | E9: 0.221 | Q9: =SUM(Q5:Q8) -> 0.97
A10: Race | B10: Proportion of senior managersa | C10: Proportion of economically active population (EAP)b | D10: EAP 35-64 as a proportion of national EAPb | E10: Over 20s with post-school qualificationc as a proportion of national EAPb | Q10: 0
A11: Black | B11: 0.276 | C11: 0.811 | D11: 0.456 | E11: 0.136 | O11: 0.163 | P11: 0.114 | Q11: 0.277
A12: Coloured | B12: 0.085 | C12: 0.088 | D12: 0.049 | E12: 0.016 | O12: 0.049 | P12: 0.036 | Q12: 0.085
A13: Indian/Asian | B13: 0.124 | C13: 0.026 | D13: 0.046 | E13: 0.011 | O13: 0.076 | P13: 0.048 | Q13: 0.124
A14: White | B14: 0.485 | C14: 0.076 | D14: 0.051 | E14: 0.057 | O14: 0.314 | P14: 0.172 | Q14: 0.486
A15: Total | B15: 1 | C15: 1 | D15: 0.5685354776 | E15: 0.221 | Q15: 0
A16: Race | B16: Proportion of professionalsa | C16: Proportion of economically active population (EAP)b | D16: EAP 25-64 as a proportion of national EAPb | E16: Over 20s with post-school qualificationc as a proportion of national EAPb | Q16: 0
A17: Black | B17: 0.494 | C17: 0.811 | D17: 0.721 | E17: 0.136 | O17: 0.241 | P17: 0.253 | Q17: 0.494
A18: Coloured | B18: 0.1 | C18: 0.088 | D18: 0.074 | E18: 0.016 | O18: 0.05 | P18: 0.05 | Q18: 0.1
A19: Indian/Asian | B19: 0.092 | C19: 0.026 | D19: 0.024 | E19: 0.011 | O19: 0.048 | P19: 0.044 | Q19: 0.092
A20: White | B20: 0.292 | C20: 0.076 | D20: 0.07 | E20: 0.057 | O20: 0.164 | P20: 0.128 | Q20: 0.292
A21: Total | B21: 1 | C21: 1 | D21: 0.8852116816 | E21: 0.221 | Q21: 0
A22: Race | B22: Proportion of skilled technicala | C22: Proportion of economically active population (EAP)b | D22: EAP 25-64 as a proportion of national EAPb | E22: Over 20s with post-school qualificationc as a proportion of national EAPb | Q22: 0
A23: Black | B23: 0.668 | C23: 0.811 | D23: 0.721 | E23: 0.136 | O23: 0.332 | P23: 0.336 | Q23: 0.668
A24: Coloured | B24: 0.114 | C24: 0.088 | D24: 0.074 | E24: 0.016 | O24: 0.056 | P24: 0.058 | Q24: 0.114
A25: Indian/Asian | B25: 0.051 | C25: 0.026 | D25: 0.024 | E25: 0.011 | O25: 0.025 | P25: 0.026 | Q25: 0.051
A26: White | B26: 0.152 | C26: 0.076 | D26: 0.07 | E26: 0.057 | O26: 0.077 | P26: 0.075 | Q26: 0.152
A27: Total | B27: 1 | C27: 1 | D27: 0.8852116816 | E27: 0.221 | Q27: 0
A28: Source: Commission for Employment Equity, Annual Report 2023-2024, 26 June 2024, pp22-37; Stats SA, General Household Survey 2023, Statistical release P0318, 23 May 2024, Appendix D, p90
A29: a Foreign nationals are excluded, so the total in this column does not add up to 100%.
A30: b CRA calculations.
A31: c Refers to a degree/diploma/certificate with grade 12. 2023 figures.

Sheet EE employed with disabilities
B2: Employment equity: proportion of permanently employed, with disabilitiesa, 2003-23
C4: Year | D4: Proportion
C5: 2003 | D5: 0.013
C6: 2005 | D6: 0.018
C7: 2007 | D7: 0.005
C8: 2009 | D8: 0.009
C9: 2011 | D9: 0.008
C10: 2013 | D10: 0.009
C11: 2014 | D11: 0.012
C12: 2015 | D12: 0.012
C13: 2016 | D13: 0.008
C14: 2017 | D14: 0.01
C15: 2018 | D15: 0.01
C16: 2019 | D16: 0.011
C17: 2020 | D17: 0.011
C18: 2021 | D18: 0.013
C19: 2022 | D19: 0.012
C20: 2023 | D20: 0.012
B21: Source: Commission for Employment Equity, Annual Report 2023-2024, 26 June 2024, p47
B22: a The Employment Equity Act of 1998 defines a person with a disability as someone who has ‘a long-term or recurring physical or mental impairment which substantially limits their prospects of entry into, or advancement in, employmentʼ. The Government set a target for people with disabilities to account for 2% of the employed workforce.

Sheet UNEMPLOYMENT.

Sheet Unemployment
A2: UNEMPLOYMENT
A4: Stats SA defines the unemployed as follows:
A5: ● They had not worked during the survey reference week of the Quarterly Labour Force Survey.
A6: ● They had actively looked for work or tried to start a business in the four weeks prior to the reference week of the survey.
A7: ● They were available for work during the reference week of the survey.
A8: ● They had not actively looked for work in the four weeks prior to the survey, but were starting a job or business at a definite date in the future.
A9: Stats SA includes an expanded definition of unemployment in the Quarterly Labour Force Survey. It measures anybody without a job who wanted to work and was available to take up employment during the reference period, regardless of whether they actively looked for a job in the four weeks prior to the reference week.

Sheet Unemployment trends 94-24
B2: Statistics
B4: Unemployment trends, 1994-2024
C6: —Official definition— | E6: —Expanded definition—
B7: Year | C7: Number | D7: Rate | E7: Number | F7: Rate
B8: 1994 | C8: 1988000 | D8: 0.2 | E8: 3672000 | F8: 0.315
B9: 1995 | C9: 1644000 | D9: 0.169 | E9: 3321000 | F9: 0.292
B10: 1996 | C10: 2019000 | D10: 0.21 | E10: 4197000 | F10: 0.356
B11: 1997 | C11: 2238000 | D11: 0.229 | E11: 4551000 | F11: 0.376
B12: 1998 | C12: 3163000 | D12: 0.252 | E12: 5634000 | F12: 0.375
B13: 1999 | C13: 3158000 | D13: 0.233 | E13: 5882000 | F13: 0.362
B14: 2000 | C14: 4333000 | D14: 0.267 | E14: 6553000 | F14: 0.355
B15: 2001 | C15: 4081000 | D15: 0.246 | E15: 6609000 | F15: 0.346
B16: 2002 | C16: 4603000 | D16: 0.277 | E16: 7490000 | F16: 0.384
B17: 2003 | C17: 4843000 | D17: 0.293 | E17: 7968000 | F17: 0.406
B18: 2004 | C18: 4231000 | D18: 0.264 | E18: 7871000 | F18: 0.4
B19: 2005 | C19: 3993000 | D19: 0.242 | E19: 7673000 | F19: 0.38
B20: 2006 | C20: 3984000 | D20: 0.231 | E20: 7474000 | F20: 0.361
B21: 2007 | C21: 4119000 | D21: 0.236 | E21: 7504000 | F21: 0.36
B22: 2008 | C22: 4267000 | D22: 0.226 | E22: 6109000 | F22: 0.295
B23: 2009 | C23: 4341000 | D23: 0.232 | E23: 6678000 | F23: 0.317
B24: 2010 | C24: 4622000 | D24: 0.251 | E24: 7509000 | F24: 0.352
B25: 2011 | C25: 4782000 | D25: 0.256 | E25: 7921000 | F25: 0.363
B26: 2012 | C26: 4721000 | D26: 0.248 | E26: 7922000 | F26: 0.356
B27: 2013 | C27: 4972000 | D27: 0.253 | E27: 8289000 | F27: 0.361
B28: 2014 | C28: 5154000 | D28: 0.255 | E28: 8332000 | F28: 0.356
B29: 2015 | C29: 5230000 | D29: 0.25 | E29: 8378000 | F29: 0.349
B30: 2016 | C30: 5634000 | D30: 0.266 | E30: 8880000 | F30: 0.364
B31: 2017 | C31: 6177000 | D31: 0.277 | E31: 9304000 | F31: 0.366
B32: 2018 | C32: 6083000 | D32: 0.272 | E32: 9634000 | F32: 0.372
B33: 2019 | C33: 6655000 | D33: 0.29 | E33: 10226000 | F33: 0.385
B34: 2020 | C34: 4295000 | D34: 0.233 | E34: 10259000 | F34: 0.42
B35: 2021 | C35: 7826000 | D35: 0.344 | E35: 11923000 | F35: 0.444
B36: 2022 | C36: 7994000 | D36: 0.339 | E36: 12282000 | F36: 0.441
B37: 2023 | C37: 7921000 | D37: 0.326 | E37: 11872000 | F37: 0.421
B38: 2024 | C38: 8384000 | D38: 0.335 | E38: 12383000 | F38: 0.426
B39: 1994-2024 | C39: =(C38-C8)/C8 -> 3.217303823 | D39: — | E39: =(E38-E8)/E8 -> 2.372276688 | F39: —
B40: Source: Stats SA, QLFS Trends 2008-2024Q2, accessed 27 September 2024; Socio-Economic Survey of South Africa 2023, p264

Sheet Unempl.official definition94-24
A2: Unemployment numbers by race (official definition), 1994-2024
A4: Yeara | B4: Black | C4: Coloured | D4: Indian/Asian | E4: White | F4: Totalb
A5: 1994 | B5: 1637000 | C5: 260000 | D5: 48000 | E5: 42000 | F5: 1988000 | M5: Total
A6: 1995 | B6: 1336000 | C6: 229000 | D6: 41000 | E6: 38000 | F6: 1644000 | L6: 1994 | M6: 1.988
A7: 1996 | B7: 1714000 | C7: 191000 | D7: 58000 | E7: 57000 | F7: 2019000 | L7: 1995 | M7: 1.644
A8: 1997 | B8: 1895000 | C8: 229000 | D8: 52000 | E8: 62000 | F8: 2238000 | L8: 1996 | M8: 2.019
A9: 1998 | B9: 2793000 | C9: 220000 | D9: 59000 | E9: 89000 | F9: 3163000 | L9: 1997 | M9: 2.238
A10: 1999 | B10: 2751000 | C10: 232000 | D10: 72000 | E10: 99000 | F10: 3158000 | L10: 1998 | M10: 3.163
A11: 2000 | B11: 3748000 | C11: 339000 | D11: 98000 | E11: 148000 | F11: 4333000 | L11: 1999 | M11: 3.158
A12: 2001 | B12: 3447000 | C12: 395000 | D12: 70000 | E12: 170000 | F12: 4081000 | L12: 2000 | M12: 4.333
A13: 2002 | B13: 3886000 | C13: 468000 | D13: 85000 | E13: 165000 | F13: 4603000 | L13: 2001 | M13: 4.081
A14: 2003 | B14: 4136000 | C14: 439000 | D14: 95000 | E14: 173000 | F14: 4843000 | L14: 2002 | M14: 4.603
A15: 2004 | B15: 3681000 | C15: 357000 | D15: 77000 | E15: 116000 | F15: 4231000 | L15: 2003 | M15: 4.843
A16: 2005 | B16: 3437000 | C16: 364000 | D16: 37000 | E16: 125000 | F16: 3993000 | L16: 2004 | M16: 4.231
A17: 2006 | B17: 3439000 | C17: 372000 | D17: 46000 | E17: 127000 | F17: 3984000 | L17: 2005 | M17: 3.993
A18: 2007 | B18: 3565000 | C18: 407000 | D18: 52000 | E18: 95000 | F18: 4119000 | L18: 2006 | M18: 3.984
A19: 2008 | B19: 3719000 | C19: 378000 | D19: 66000 | E19: 104000 | F19: 4267000 | L19: 2007 | M19: 4.119
A20: 2009 | B20: 3796000 | C20: 383000 | D20: 58000 | E20: 104000 | F20: 4341000 | L20: 2008 | M20: 4.267
A21: 2010 | B21: 3977000 | C21: 447000 | D21: 54000 | E21: 144000 | F21: 4622000 | L21: 2009 | M21: 4.341
A22: 2011 | B22: 4169000 | C22: 442000 | D22: 61000 | E22: 109000 | F22: 4782000 | L22: 2010 | M22: 4.622
A23: 2012 | B23: 4067000 | C23: 482000 | D23: 50000 | E23: 123000 | F23: 4721000 | L23: 2011 | M23: 4.782
A24: 2013 | B24: 4246000 | C24: 521000 | D24: 76000 | E24: 128000 | F24: 4972000 | L24: 2012 | M24: 4.721
A25: 2014 | B25: 4375000 | C25: 543000 | D25: 67000 | E25: 170000 | F25: 5154000 | L25: 2013 | M25: 4.972
A26: 2015 | B26: 4488000 | C26: 522000 | D26: 75000 | E26: 145000 | F26: 5230000 | L26: 2014 | M26: 5.154
A27: 2016 | B27: 4946000 | C27: 485000 | D27: 67000 | E27: 136000 | F27: 5634000 | L27: 2015 | M27: 5.223
A28: 2017 | B28: 5479000 | C28: 503000 | D28: 80000 | E28: 115000 | F28: 6177000 | L28: 2016 | M28: 5.634
A29: 2018 | B29: 5337000 | C29: 520000 | D29: 63000 | E29: 162000 | F29: 6083000 | L29: 2017 | M29: 6.177
A30: 2019 | B30: 5951000 | C30: 489000 | D30: 67000 | E30: 148000 | F30: 6655000 | L30: 2018 | M30: 6.083
A31: 2020 | B31: 3770000 | C31: 332000 | D31: 82000 | E31: 111000 | F31: 4295000 | L31: 2019 | M31: 6.655
A32: 2021 | B32: 6976000 | C32: 565000 | D32: 118000 | E32: 167000 | F32: 7826000 | L32: 2020 | M32: 4.3
A33: 2022 | B33: 7159000 | C33: 577000 | D33: 99000 | E33: 159000 | F33: 7994000 | L33: 2021 | M33: 7.8
A34: 2023 | B34: 7195000 | C34: 483000 | D34: 104000 | E34: 139000 | F34: 7921000 | L34: 2022 | M34: 8
A35: 2024 | B35: 7632000 | C35: 513000 | D35: 89000 | E35: 150000 | F35: 8384000 | L35: 2023 | M35: 7.9
A36: 1994-2024 | B36: =(B35-B5)/B5 -> 3.662186927 | C36: =(C35-C5)/C5 -> 0.9730769231 | D36: =(D35-D5)/D5 -> 0.8541666667 | E36: 2.571428571 | F36: =(F35-F5)/F5 -> 3.217303823 | L36: 2024 | M36: 8.38
A37: Source: Stats SA, QLFS Trends 2008-2024Q2, accessed 27 September 2024; Socio-Economic Survey of South Africa 2023, p265
A38: a From 1994 to1999, figures are based on October Household Surveys. For 2000, figures are from February 2000 LFS. From 2001 to 2007, data is based on revised LFS March series. For 2008 to 2013, figures are based on revised QLFS series. The figures for 2001 to 2024 are strictly comparable.
A39: b Figures should add up horizontally, but may not owing to rounding, and owing to the fact that Stats SA disregarded sample sizes smaller than 10 000 as unreliable.

Sheet Unemploy.expand definit.94-24
A2: Unemployment numbers by race (expanded definition)a, 1994-2024
A4: Year | B4: Black | C4: Coloured | D4: Indian/Asian | E4: White | F4: Total
A5: 1994 | B5: 3216000 | C5: 339000 | D5: 62000 | E5: 55000 | F5: 3672000 | K5: 1994 | L5: 3.672
A6: 1995 | B6: 2879000 | C6: 344000 | D6: 51000 | E6: 48000 | F6: 3321000 | K6: 1995 | L6: 3.321
A7: 1996 | B7: 3703000 | C7: 328000 | D7: 83000 | E7: 83000 | F7: 4197000 | K7: 1996 | L7: 4.197
A8: 1997 | B8: 4028000 | C8: 358000 | D8: 71000 | E8: 94000 | F8: 4551000 | K8: 1997 | L8: 4.551
A9: 1998 | B9: 5048000 | C9: 367000 | D9: 83000 | E9: 133000 | F9: 5634000 | K9: 1998 | L9: 5.634
A10: 1999 | B10: 5235000 | C10: 397000 | D10: 99000 | E10: 146000 | F10: 5882000 | K10: 1999 | L10: 5.882
A11: 2000 | B11: 5686000 | C11: 489000 | D11: 148000 | E11: 229000 | F11: 6553000 | K11: 2000 | L11: 6.553
A12: 2001 | B12: 5683000 | C12: 584000 | D12: 99000 | E12: 243000 | F12: 6609000 | K12: 2001 | L12: 6.609
A13: 2002 | B13: 6514000 | C13: 627000 | D13: 116000 | E13: 233000 | F13: 7490000 | K13: 2002 | L13: 7.49
A14: 2003 | B14: 7029000 | C14: 588000 | D14: 113000 | E14: 238000 | F14: 7968000 | K14: 2003 | L14: 7.968
A15: 2004 | B15: 7041000 | C15: 543000 | D15: 102000 | E15: 186000 | F15: 7871000 | K15: 2004 | L15: 7.871
A16: 2005 | B16: 6791000 | C16: 565000 | D16: 113000 | E16: 204000 | F16: 7673000 | K16: 2005 | L16: 7.673
A17: 2006 | B17: 6537000 | C17: 617000 | D17: 108000 | E17: 213000 | F17: 7474000 | K17: 2006 | L17: 7.474
A18: 2007 | B18: 6600000 | C18: 647000 | D18: 88000 | E18: 170000 | F18: 7504000 | K18: 2007 | L18: 7.504
A19: 2008 | B19: 5448000 | C19: 450000 | D19: 77000 | E19: 134000 | F19: 6109000 | K19: 2008 | L19: 6.109
A20: 2009 | B20: 6001000 | C20: 459000 | D20: 85000 | E20: 133000 | F20: 6678000 | K20: 2009 | L20: 6.678
A21: 2010 | B21: 6673000 | C21: 567000 | D21: 72000 | E21: 197000 | F21: 7509000 | K21: 2010 | L21: 7.509
A22: 2011 | B22: 7076000 | C22: 600000 | D22: 87000 | E22: 158000 | F22: 7921000 | K22: 2011 | L22: 7.921
A23: 2012 | B23: 7082000 | C23: 602000 | D23: 71000 | E23: 166000 | F23: 7922000 | K23: 2012 | L23: 7.922
A24: 2013 | B24: 7369000 | C24: 646000 | D24: 102000 | E24: 172000 | F24: 8289000 | K24: 2013 | L24: 8.289
A25: 2014 | B25: 7349000 | C25: 668000 | D25: 104000 | E25: 211000 | F25: 8332000 | K25: 2014 | L25: 8.332
A26: 2015 | B26: 7440000 | C26: 648000 | D26: 117000 | E26: 174000 | F26: 8378000 | K26: 2015 | L26: 8.378
A27: 2016 | B27: 7971000 | C27: 626000 | D27: 100000 | E27: 182000 | F27: 8880000 | K27: 2016 | L27: 8.88
A28: 2017 | B28: 8311000 | C28: 699000 | D28: 130000 | E28: 164000 | F28: 9304000 | K28: 2017 | L28: 9.304
A29: 2018 | B29: 8624000 | C29: 658000 | D29: 107000 | E29: 245000 | F29: 9634000 | K29: 2018 | L29: 9.634
A30: 2019 | B30: 9233000 | C30: 695000 | D30: 97000 | E30: 201000 | F30: 10226000 | K30: 2019 | L30: 10.226
A31: 2020 | B31: 9104000 | C31: 700000 | D31: 173000 | E31: 282000 | F31: 10259000 | K31: 2020 | L31: 10.3
A32: 2021 | B32: 10714000 | C32: 820000 | D32: 165000 | E32: 224000 | F32: 11923000 | K32: 2021 | L32: 11.9
A33: 2022 | B33: 11018000 | C33: 875000 | D33: 186000 | E33: 203000 | F33: 12282000 | K33: 2022 | L33: 12.3
A34: 2023 | B34: 10799000 | C34: 735000 | D34: 162000 | E34: 177000 | F34: 11872000 | K34: 2023 | L34: 11.87
A35: 2024 | B35: 11247000 | C35: 793000 | D35: 155000 | E35: 188000 | F35: 12383000 | K35: 2024 | L35: 12.4
A36: 1994-2024 | B36: =(B35-B5)/B5 -> 2.497201493 | C36: =(C35-C5)/C5 -> 1.339233038 | D36: 1.5 | E36: =(E35-E5)/E5 -> 2.418181818 | F36: =(F35-F5)/F5 -> 2.372276688
A37: Source: Stats SA, QLFS Trends 2008-2024Q2, accessed 27 September 2024; Socio-Economic Survey of South Africa 2023, p266
A38: a Stats SA’s expanded definition of unemployment measures anybody without a job who wanted to work and was available to take up employment during the reference period, but who was not actively seeking work — that is, a ‘discouraged’ workseeker for reasons cited at the beginning of this chapter.

Sheet Unem rate.official defin.94-24
B2: Unemployment ratea by race (official definition), 1994-2024
M3: Totalb
B4: Year | C4: Black | D4: Coloured | E4: Indian/Asian | F4: White | G4: Total | L4: 1994 | M4: 0.2
B5: 1994 | C5: 0.247 | D5: 0.176 | E5: 0.102 | F5: 0.03 | G5: 0.2 | L5: 1995 | M5: 0.169
B6: 1995 | C6: 0.207 | D6: 0.165 | E6: 0.083 | F6: 0.028 | G6: 0.169 | L6: 1996 | M6: 0.21
B7: 1996 | C7: 0.274 | D7: 0.131 | E7: 0.121 | F7: 0.04 | G7: 0.21 | L7: 1997 | M7: 0.229
B8: 1997 | C8: 0.293 | D8: 0.16 | E8: 0.102 | F8: 0.046 | G8: 0.229 | L8: 1998 | M8: 0.252
B9: 1998 | C9: 0.32 | D9: 0.158 | E9: 0.147 | F9: 0.044 | G9: 0.252 | L9: 1999 | M9: 0.233
B10: 1999 | C10: 0.292 | D10: 0.152 | E10: 0.156 | F10: 0.047 | G10: 0.233 | L10: 2000 | M10: 0.267
B11: 2000 | C11: 0.316 | D11: 0.204 | E11: 0.199 | F11: 0.068 | G11: 0.267 | L11: 2001 | M11: 0.246
B12: 2001 | C12: 0.284 | D12: 0.226 | E12: 0.153 | F12: 0.076 | G12: 0.246 | L12: 2002 | M12: 0.277
B13: 2002 | C13: 0.323 | D13: 0.256 | E13: 0.189 | F13: 0.073 | G13: 0.277 | L13: 2003 | M13: 0.293
B14: 2003 | C14: 0.346 | D14: 0.238 | E14: 0.193 | F14: 0.078 | G14: 0.293 | L14: 2004 | M14: 0.264
B15: 2004 | C15: 0.317 | D15: 0.198 | E15: 0.165 | F15: 0.054 | G15: 0.264 | L15: 2005 | M15: 0.242
B16: 2005 | C16: 0.286 | D16: 0.2 | E16: 0.14 | F16: 0.057 | G16: 0.242 | L16: 2006 | M16: 0.231
B17: 2006 | C17: 0.271 | D17: 0.202 | E17: 0.094 | F17: 0.058 | G17: 0.231 | L17: 2007 | M17: 0.236
B18: 2007 | C18: 0.276 | D18: 0.214 | E18: 0.109 | F18: 0.044 | G18: 0.236 | L18: 2008 | M18: 0.226
B19: 2008 | C19: 0.264 | D19: 0.195 | E19: 0.121 | F19: 0.045 | G19: 0.226 | L19: 2009 | M19: 0.232
B20: 2009 | C20: 0.273 | D20: 0.194 | E20: 0.109 | F20: 0.046 | G20: 0.232 | L20: 2010 | M20: 0.251
B21: 2010 | C21: 0.291 | D21: 0.226 | E21: 0.097 | F21: 0.065 | G21: 0.251 | L21: 2011 | M21: 0.256
B22: 2011 | C22: 0.297 | D22: 0.231 | E22: 0.109 | F22: 0.05 | G22: 0.256 | L22: 2012 | M22: 0.248
B23: 2012 | C23: 0.283 | D23: 0.24 | E23: 0.093 | F23: 0.057 | G23: 0.248 | L23: 2013 | M23: 0.253
B24: 2013 | C24: 0.286 | D24: 0.253 | E24: 0.129 | F24: 0.06 | G24: 0.253 | L24: 2014 | M24: 0.255
B25: 2014 | C25: 0.283 | D25: 0.253 | E25: 0.121 | F25: 0.081 | G25: 0.255 | L25: 2015 | M25: 0.25
B26: 2015 | C26: 0.279 | D26: 0.244 | E26: 0.134 | F26: 0.07 | G26: 0.25 | L26: 2016 | M26: 0.266
B27: 2016 | C27: 0.301 | D27: 0.232 | E27: 0.117 | F27: 0.066 | G27: 0.266 | L27: 2017 | M27: 0.277
B28: 2017 | C28: 0.313 | D28: 0.236 | E28: 0.133 | F28: 0.057 | G28: 0.277 | L28: 2018 | M28: 0.272
B29: 2018 | C29: 0.305 | D29: 0.233 | E29: 0.104 | F29: 0.08 | G29: 0.272 | L29: 2019 | M29: 0.29
B30: 2019 | C30: 0.327 | D30: 0.225 | E30: 0.112 | F30: 0.074 | G30: 0.29 | L30: 2020 | M30: 0.233
B31: 2020 | C31: 0.263 | D31: 0.19 | E31: 0.144 | F31: 0.061 | G31: 0.233 | L31: 2021 | M31: 0.344
B32: 2021 | C32: 0.382 | D32: 0.285 | E32: 0.195 | F32: 0.086 | G32: 0.344 | L32: 2022 | M32: 0.339
B33: 2022 | C33: 0.378 | D33: 0.274 | E33: 0.155 | F33: 0.086 | G33: 0.339 | L33: 2023 | M33: 0.326
B34: 2023 | C34: 0.368 | D34: 0.219 | E34: 0.166 | F34: 0.074 | G34: 0.326 | L34: 2024 | M34: 0.335
B35: 2024 | C35: 0.376 | D35: 0.233 | E35: 0.139 | F35: 0.079 | G35: 0.335
B36: Source: Stats SA, QLFS Trends 2008-2024Q2, accessed 27 September 2024; Socio-Economic Survey of South Africa 2023, p267
B37: a From 1994 to 1999, the figures are based on October Household Surveys. For 2000, the figures are from the February 2000 LFS. From 2001 to 2007, the figures are based on the revised LFS March series. For 2008 to 2013, the figures are based on revised QLFS series. The figures for 2001 to 2024 is strictly comparable.
B39: TABLE AND GRAPH BOTH HAVE TO BE INCLUDED.

Sheet Unem rate.expand defin.94-24
B3: Unemployment ratea by race (expanded definition)b, 1994-2024
B5: Year | C5: Black | D5: Coloured | E5: Indian/Asian | F5: White | G5: Total | K5: Total
B6: 1994 | C6: 0.392 | D6: 0.217 | E6: 0.129 | F6: 0.039 | G6: 0.315 | J6: 1994 | K6: 0.315
B7: 1995 | C7: 0.36 | D7: 0.229 | E7: 0.101 | F7: 0.034 | G7: 0.292 | J7: 1995 | K7: 0.292
B8: 1996 | C8: 0.45 | D8: 0.206 | E8: 0.166 | F8: 0.057 | G8: 0.356 | J8: 1996 | K8: 0.356
B9: 1997 | C9: 0.468 | D9: 0.23 | E9: 0.135 | F9: 0.067 | G9: 0.376 | J9: 1997 | K9: 0.376
B10: 1998 | C10: 0.46 | D10: 0.238 | E10: 0.194 | F10: 0.064 | G10: 0.375 | J10: 1998 | K10: 0.375
B11: 1999 | C11: 0.44 | D11: 0.236 | E11: 0.202 | F11: 0.068 | G11: 0.362 | J11: 1999 | K11: 0.362
B12: 2000 | C12: 0.412 | D12: 0.271 | E12: 0.273 | F12: 0.101 | G12: 0.355 | J12: 2000 | K12: 0.355
B13: 2001 | C13: 0.396 | D13: 0.302 | E13: 0.204 | F13: 0.105 | G13: 0.346 | J13: 2001 | K13: 0.346
B14: 2002 | C14: 0.444 | D14: 0.315 | E14: 0.24 | F14: 0.1 | G14: 0.384 | J14: 2002 | K14: 0.384
B15: 2003 | C15: 0.474 | D15: 0.294 | E15: 0.221 | F15: 0.104 | G15: 0.406 | J15: 2003 | K15: 0.406
B16: 2004 | C16: 0.47 | D16: 0.273 | E16: 0.207 | F16: 0.083 | G16: 0.4 | J16: 2004 | K16: 0.4
B17: 2005 | C17: 0.442 | D17: 0.28 | E17: 0.214 | F17: 0.09 | G17: 0.38 | J17: 2005 | K17: 0.38
B18: 2006 | C18: 0.414 | D18: 0.296 | E18: 0.196 | F18: 0.094 | G18: 0.361 | J18: 2006 | K18: 0.361
B19: 2007 | C19: 0.413 | D19: 0.302 | E19: 0.17 | F19: 0.077 | G19: 0.36 | J19: 2007 | K19: 0.36
B20: 2008 | C20: 0.345 | D20: 0.224 | E20: 0.139 | F20: 0.058 | G20: 0.295 | J20: 2008 | K20: 0.295
B21: 2009 | C21: 0.372 | D21: 0.224 | E21: 0.153 | F21: 0.058 | G21: 0.317 | J21: 2009 | K21: 0.317
B22: 2010 | C22: 0.408 | D22: 0.27 | E22: 0.126 | F22: 0.086 | G22: 0.352 | J22: 2010 | K22: 0.352
B23: 2011 | C23: 0.418 | D23: 0.29 | E23: 0.148 | F23: 0.071 | G23: 0.363 | J23: 2011 | K23: 0.363
B24: 2012 | C24: 0.408 | D24: 0.283 | E24: 0.129 | F24: 0.075 | G24: 0.356 | J24: 2012 | K24: 0.356
B25: 2013 | C25: 0.41 | D25: 0.295 | E25: 0.165 | F25: 0.079 | G25: 0.361 | J25: 2013 | K25: 0.361
B26: 2014 | C26: 0.399 | D26: 0.294 | E26: 0.177 | F26: 0.098 | G26: 0.356 | J26: 2014 | K26: 0.356
B27: 2015 | C27: 0.39 | D27: 0.286 | E27: 0.193 | F27: 0.083 | G27: 0.349 | J27: 2015 | K27: 0.349
B28: 2016 | C28: 0.409 | D28: 0.28 | E28: 0.166 | F28: 0.086 | G28: 0.364 | J28: 2016 | K28: 0.364
B29: 2017 | C29: 0.409 | D29: 0.3 | E29: 0.198 | F29: 0.079 | G29: 0.366 | J29: 2017 | K29: 0.366
B30: 2018 | C30: 0.415 | D30: 0.277 | E30: 0.164 | F30: 0.117 | G30: 0.372 | J30: 2018 | K30: 0.372
B31: 2019 | C31: 0.43 | D31: 0.292 | E31: 0.155 | F31: 0.098 | G31: 0.385 | J31: 2019 | K31: 0.385
B32: 2020 | C32: 0.463 | D32: 0.331 | E32: 0.262 | F32: 0.143 | G32: 0.42 | J32: 2020 | K32: 0.42
B33: 2021 | C33: 0.487 | D33: 0.367 | E33: 0.252 | F33: 0.112 | G33: 0.444 | J33: 2021 | K33: 0.444
B34: 2022 | C34: 0.483 | D34: 0.364 | E34: 0.255 | F34: 0.107 | G34: 0.441 | J34: 2022 | K34: 0.441
B35: 2023 | C35: 0.466 | D35: 0.299 | E35: 0.236 | F35: 0.092 | G35: 0.421 | J35: 2023 | K35: 0.421
B36: 2024 | C36: 0.47 | D36: 0.32 | E36: 0.219 | F36: 0.097 | G36: 0.426 | J36: 2024 | K36: 0.426
B37: Source: Stats SA, QLFS Trends 2008-2024Q2, accessed 27 September 2024; Socio-Economic Survey of South Africa 2023, p268
B38: a See previous page.
B39: b Stats SA’s expanded definition of unemployment measures anybody without a job who wanted to work and was available to take up employment during the reference period, but who was not actively seeking work — that is, a ‘discouraged’ workseeker for reasons cited at the beginning of this chapter.
B41: TABLE AND GRAPH BOTH HAVE TO BE INCLUDED.

Sheet International comparisons
B2: International comparisons
B4: Unemployment rates, international comparisons, 2024
B6: —Selected countries— | D6: —Emerging markets— | F6: —Selected African countries—
B7: Country | C7: Unemployment ratea | D7: Country | E7: Unemployment ratea | F7: Country | G7: Unemployment ratea
B8: Australia | C8: 0.042 | D8: Brazil | E8: 0.066 | F8: Algeria | G8: 0.118
B9: Botswana | C9: 0.259 | D9: Bulgaria | E9: 0.053 | F9: Angola | G9: 0.324
B10: Brazil | C10: 0.066 | D10: Chile | E10: 0.087 | F10: Botswana | G10: 0.259
B11: Chile | C11: 0.087 | D11: China | E11: 0.053 | F11: Burundi | G11: 0.009
B12: China | C12: 0.053 | D12: Colombia | E12: 0.099 | F12: Cameroon | G12: 0.037
B13: Denmark | C13: 0.026 | D13: Czech Republic | E13: 0.038 | F13: Central African Republic | G13: 0.063
B14: Egypt | C14: 0.065 | D14: Egypt | E14: 0.065 | F14: Congo (DRC) | G14: N/A
B15: France | C15: 0.073 | D15: Estonia | E15: 0.076 | F15: Congo (Republic) | G15: 0.218
B16: Germany | C16: 0.06 | D16: Greece | E16: 0.099 | F16: Egypt | G16: 0.065
B17: Ghana | C17: 0.036 | D17: Hungary | E17: 0.043 | F17: Eritrea | G17: 0.059
B18: Greece | C18: 0.099 | D18: India | E18: 0.085 | F18: Eswatini | G18: 0.222
B19: Hong Kong | C19: 0.03 | D19: Indonesia | E19: 0.048 | F19: Ethiopia | G19: 0.189
B20: India | C20: 0.085 | D20: Jordan | E20: 0.214 | F20: Ghana | G20: 0.036
B21: Indonesia | C21: 0.048 | D21: Kuwait | E21: 0.021 | F21: Ivory Coast | G21: 0.026
B22: Ireland | C22: 0.043 | D22: Latvia | E22: 0.069 | F22: Kenya | G22: 0.049
B23: Israel | C23: 0.026 | D23: Lithuania | E23: 0.085 | F23: Lesotho | G23: 0.163
B24: Italy | C24: 0.065 | D24: Malaysia | E24: 0.033 | F24: Liberia | G24: 0.029
B25: Japan | C25: 0.027 | D25: Mauritius | E25: 0.063 | F25: Libya | G25: 0.185
B26: Kazakhstan | C26: 0.047 | D26: Mexico | E26: 0.029 | F26: Madagascar | G26: 0.018
B27: Lithuania | C27: 0.085 | D27: Morocco | E27: 0.131 | F27: Malawi | G27: 0.05
B28: Mexico | C28: 0.029 | D28: Oman | E28: 0.015 | F28: Mauritius | G28: 0.063
B29: Mozambique | C29: N/A | D29: Pakistan | E29: 0.057 | F29: Morocco | G29: 0.131
B30: Nigeria | C30: 0.053 | D30: Peru | E30: 0.061 | F30: Mozambique | G30: N/A
B31: Pakistan | C31: 0.057 | D31: Philippines | E31: 0.047 | F31: Namibia | G31: 0.196
B32: Philippines | C32: 0.047 | D32: Poland | E32: 0.05 | F32: Nigeria | G32: 0.053
B33: Poland | C33: 0.05 | D33: Qatar | E33: 0.001 | F33: Rwanda | G33: 0.168
B34: Russia | C34: 0.024 | D34: Romania | E34: 0.054 | F34: Senegal | G34: 0.232
B35: Saudi Arabia | C35: 0.035 | D35: Russia | E35: 0.024 | F35: Somalia | G35: N/A
B36: South Africa | C36: 0.335 | D36: Slovakia | E36: 0.05 | F36: South Africa | G36: 0.335
B37: Spain | C37: 0.113 | D37: South Africa | E37: 0.335 | F37: Sudan | G37: 0.208
B38: Switzerland | C38: 0.024 | D38: Sri Lanka | E38: 0.045 | F38: Tanzania | G38: 0.089
B39: Thailand | C39: 0.011 | D39: Thailand | E39: 0.0106 | F39: Tunisia | G39: 0.16
B40: Turkey | C40: 0.088 | D40: Turkey | E40: 0.088 | F40: Uganda | G40: 0.029
B41: Uganda | C41: 0.029 | D41: United Arab Emirates | E41: 0.03 | F41: Zambia | G41: 0.061
B42: United Kingdom | C42: 0.041 | D42: Vietnam | E42: 0.023 | F42: Zimbabwe | G42: 0.091
B43: United States | C43: 0.042
B44: Venezuela | C44: 0.059
B45: Source: Trading economics, www.tradingeconomics.com, accessed 27 September 2024
B46: a Figures refer to the latest available data in November 2024.
B47: N/A — Not available.

Sheet Characteristics of unemployed

Sheet Unemployment by industry
A2: Characteristics of the unemployed
A4: Unemployment by industrya, 2009-24
F6: —Change 2023-24—
A7: Industry | B7: 2009 | C7: 2022 | D7: 2023 | E7: 2024 | F7: Number | G7: Proportion
A8: Agriculture | B8: 123000 | C8: 151000 | D8: 162000 | E8: 189000 | F8: =(E8-D8) -> 27000 | G8: =(E8-D8)/D8 -> 0.1666666667
A9: Mining | B9: 30000 | C9: 52000 | D9: 37000 | E9: 65000 | F9: =(E9-D9) -> 28000 | G9: =(E9-D9)/D9 -> 0.7567567568
A10: Manufacturing | B10: 333000 | C10: 219000 | D10: 255000 | E10: 255000 | F10: 0 | G10: 0
A11: Utilities | B11: 13000 | C11: 23000 | D11: 13000 | E11: 23000 | F11: 10000 | G11: 0.7692307692
A12: Construction | B12: 355000 | C12: 357000 | D12: 390000 | E12: 467000 | F12: 77000 | G12: 0.1974358974
A13: Trade | B13: 473000 | C13: 502000 | D13: 542000 | E13: 549000 | F13: 7000 | G13: 0.01291512915
A14: Transport | B14: 101000 | C14: 144000 | D14: 165000 | E14: 152000 | F14: -13000 | G14: -0.07878787879
A15: Finance | B15: 221000 | C15: 391000 | D15: 322000 | E15: 371000 | F15: 49000 | G15: 0.152173913
A16: Community and social services | B16: 154000 | C16: 461000 | D16: 534000 | E16: 613000 | F16: 79000 | G16: 0.1479400749
A17: Private households | B17: 242000 | C17: 228000 | D17: 221000 | E17: 271000 | F17: 50000 | G17: 0.2262443439
A18: Totalb | B18: 2046000 | C18: 2528000 | D18: 2640000 | E18: 2954000 | F18: 314000 | G18: 0.1189393939
A19: Source: Stats SA, QLFS Trends 2008-2024Q2, accessed 27 September 2024
A20: a Those who have worked in the past five years only.
A21: b Figures should add up vertically but may not, owing to rounding.

Sheet Unemployment by occupation
A2: Unemployment by occupationa, 2009-24
F4: —Change 2023-24—
A5: Occupation | B5: 2009 | C5: 2022 | D5: 2023 | E5: 2024 | F5: Number | G5: Proportion
A6: Manager | B6: 33000 | C6: 58000 | D6: 59000 | E6: 58000 | F6: =(E6-D6) -> -1000 | G6: =(D6-C6)/C6 -> 0.01724137931
A7: Professional | B7: 27000 | C7: 51000 | D7: 57000 | E7: 73000 | F7: =(E7-D7) -> 16000 | G7: =(D7-C7)/C7 -> 0.1176470588
A8: Technician | B8: 86000 | C8: 138000 | D8: 136000 | E8: 316000 | F8: 180000 | G8: -0.01449275362
A9: Clerk | B9: 200000 | C9: 361000 | D9: 279000 | E9: 314000 | F9: 35000 | G9: -0.2271468144
A10: Sales and services | B10: 317000 | C10: 437000 | D10: 568000 | E10: 403000 | F10: -165000 | G10: 0.299771167
A11: Skilled agriculture | B11: 7000 | C11: 10000 | D11: 7000 | E11: 12000 | F11: 5000 | G11: -0.3
A12: Craft and related trade | B12: 381000 | C12: 372000 | D12: 372000 | E12: 464000 | F12: 92000 | G12: 0
A13: Plant and machine operator | B13: 186000 | C13: 145000 | D13: 172000 | E13: 221000 | F13: 49000 | G13: 0.1862068966
A14: Elementary | B14: 623000 | C14: 807000 | D14: 836000 | E14: 893000 | F14: 57000 | G14: 0.03593556382
A15: Domestic worker | B15: 185000 | C15: 147000 | D15: 155000 | E15: 199000 | F15: 44000 | G15: =F15/C15 -> 0.2993197279
A16: Totalb | B16: 2046000 | C16: 2528000 | D16: 2640000 | E16: 2954000 | F16: =(E16-D16) -> 314000 | G16: 0.1242088608
A17: Source: Stats SA, QLFS Trends 2008-2024Q2, accessed 27 September 2024
A18: a Those who have worked in the past five years only.
A19: b Figures should add up vertically but may not, owing to rounding.

Sheet Categories of unemployed
A2: Categories of unemployed people, 2009-24
B4: —Numbera— | F4: Proportiona of total | G4: —Change—
A5: Category | B5: 2009 | C5: 2022 | D5: 2023 | E5: 2024 | F5: 2024 | G5: Numbera | H5: Proportion
A6: Job losers | B6: 1505000 | C6: 2086000 | D6: 2114000 | E6: 2402000 | F6: =E6/E11 -> 0.2864980916 | G6: =E6-D6 -> 288000 | H6: =(D6-C6)/C6 -> 0.01342281879
A7: Job leavers | B7: 361000 | C7: 186000 | D7: 238000 | E7: 237000 | F7: =E7/E11 -> 0.02826812977 | G7: =E7-D7 -> -1000 | H7: =(D7-C7)/C7 -> 0.2795698925
A8: New entrants | B8: 1726000 | C8: 3703000 | D8: 3522000 | E8: 3523000 | F8: =E8/E11 -> 0.4202051527 | G8: 1000 | H8: -0.04887928706
A9: Re-entrants | B9: 180000 | C9: 256000 | D9: 288000 | E9: 315000 | F9: =E9/E11 -> 0.03757156489 | G9: 27000 | H9: 0.125
A10: Other | B10: 569000 | C10: 1763000 | D10: 1759000 | E10: 1907000 | F10: =E10/E11 -> 0.2274570611 | G10: 148000 | H10: =G10/C10 -> 0.08394781622
A11: Total | B11: 4341000 | C11: 7994000 | D11: 7921000 | E11: 8384000 | F11: =E11/E11 -> 1 | G11: 463000 | H11: 0.05791843883
A12: Source: Stats SA, QLFS Trends 2008-2024Q2, accessed 27 September 2024
A13: a Numbers do not necessarily add up to total, owing to rounding.
A14: These are the reasons given by unemployed people for not working during the reference week about their circumstances prior to becoming unemployed.
A15: ● Job losers are unemployed persons who had been working during the five years prior to becoming unemployed and: they had lost their job, or they had been laid off, or the business in which they had previously worked had been sold, or closed down.
A16: ● Job leavers are those among the unemployed who had been working during five years prior to becoming unemployed, and had stopped working at their last job for any of the following reasons:
A17: * | B17: Caring for own children/relatives
A18: * | B18: Pregnancy
A19: * | B19: Other family/community responsibilities
A20: * | B20: Going to school
A21: * | B21: Changed residence
A22: * | B22: Retired
A23: * | B23: Other reasons
A24: ● New entrants are people who were unemployed during the reference period that never worked before.
A25: ● Re-entrants to the labour force are unemployed people who worked before whose main activity before looking for work was either managing a home or going to school [Stats SA, Guide to the Quarterly Labour Force Survey, Report number 02-11-01, August 2008].

Sheet Unemployment by age group
A2: Unemployment by age group, 2024
B4: —Number unemployed— | D4: Number EAPa | E4: Number not economically active | F4: —Unemployment rate—
A5: Age group | B5: official definition | C5: expanded definition | F5: official definition | G5: expanded definition
A6: 15-24 years | B6: 1691000 | C6: 2615000 | D6: 2780000 | E6: 7483000 | F6: 0.608 | G6: 0.706
A7: 25-34 years | B7: 3306000 | C7: 4654000 | D7: 7935000 | E7: 2665000 | F7: 0.417 | G7: 0.501
A8: 35-44 years | B8: 2082000 | C8: 2993000 | D8: 7251000 | E8: 1888000 | F8: 0.287 | G8: 0.367
A9: 45-54 years | B9: 1063000 | C9: 1681000 | D9: 5127000 | E9: 1757000 | F9: 0.207 | G9: 0.293
A10: 55- 64 years | B10: 242000 | C10: 440000 | D10: 1943000 | E10: 2468000 | F10: 0.125 | G10: 0.206
A11: Total | B11: 8384000 | C11: 12383000 | D11: 25036000 | E11: 16260000 | F11: 0.335 | G11: 0.426
A12: Source: Stats SA, QLFS Trends 2008-2024Q2, accessed 27 September 2024
A13: a The economically active population is defined by Stats SA as people between the ages of 15 and 64 who are either employed or unemployed. EAP data in the table is based on the official definition.

Sheet Unempl. age, race, sex offi
A2: Unemployment — numbers and rates — by age, race and sex (official definition), 2024
B4: 15-24 years | C4: 25-34 years | D4: 35-44 years | E4: 45-54 years | F4: 55- 64 years | G4: Total
A5: Black | B5: —Number—
A6: Male | B6: 754095 | C6: 1517993 | D6: 950942 | E6: 529169 | F6: 107757 | G6: 3859955
A7: Female | B7: 731663 | C7: 1538013 | D7: 977160 | E7: 425148 | F7: 99890 | G7: 3771874
A8: Total | B8: 1485758 | C8: 3056006 | D8: 1928102 | E8: 954317 | F8: 207646 | G8: 7631829
A9: Coloured
A10: Male | B10: 89379 | C10: 73452 | D10: 46775 | E10: 40597 | F10: 10980 | G10: 261182
A11: Female | B11: 73239 | C11: 83420 | D11: 51372 | E11: 36611 | F11: 7003 | G11: 251643
A12: Total | B12: 162617 | C12: 156872 | D12: 98146 | E12: 77208 | F12: 17983 | G12: 512825
A13: Indian/Asian
A14: Male | B14: 4468 | C14: 16032 | D14: 4604 | E14: 10530 | F14: 3027 | G14: 38661
A15: Female | B15: 7706 | C15: 25811 | D15: 10460 | E15: 3515 | F15: 2638 | G15: 50129
A16: Total | B16: 12174 | C16: 41843 | D16: 15064 | E16: 14044 | F16: 5665 | G16: 88791
A17: White
A18: Male | B18: 15780 | C18: 26162 | D18: 23056 | E18: 6051 | F18: 5868 | G18: 76917
A19: Female | B19: 14677 | C19: 24711 | D19: 17846 | E19: 11000 | F19: 5230 | G19: 73463
A20: Total | B20: 30457 | C20: 50873 | D20: 40901 | E20: 17051 | F20: 11098 | G20: 150380
A21: South Africa
A22: Male | B22: 863722 | C22: 1633639 | D22: 1025376 | E22: 586347 | F22: 127632 | G22: 4236715
A23: Female | B23: 827284 | C23: 1671955 | D23: 1056837 | E23: 476273 | F23: 114760 | G23: 4147109
A24: TOTAL | B24: 1691006 | C24: 3305594 | D24: 2082213 | E24: 1062619 | F24: 242392 | G24: 8383824
A25: Black | B25: —Rate—
A26: Male | B26: 0.621 | C26: 0.428 | D26: 0.294 | E26: 0.246 | F26: 0.157 | G26: 0.356
A27: Female | B27: 0.702 | C27: 0.5 | D27: 0.348 | E27: 0.226 | F27: 0.153 | G27: 0.399
A28: Total | B28: 0.658 | C28: 0.461 | D28: 0.319 | E28: 0.237 | F28: 0.155 | G28: 0.376
A29: Coloured
A30: Male | B30: 0.491 | C30: 0.217 | D30: 0.16 | E30: 0.157 | F30: 0.107 | G30: 0.223
A31: Female | B31: 0.501 | C31: 0.273 | D31: 0.205 | E31: 0.158 | F31: 0.077 | G31: 0.246
A32: Total | B32: 0.495 | C32: 0.244 | D32: 0.181 | E32: 0.158 | F32: 0.093 | G32: 0.233
A33: Indian/Asian
A34: Male | B34: 0.187 | C34: 0.143 | D34: 0.036 | E34: 0.112 | F34: 0.065 | G34: 0.096
A35: Female | B35: 0.61 | C35: 0.317 | D35: 0.142 | E35: 0.068 | F35: 0.148 | G35: 0.211
A36: Total | B36: 0.333 | C36: 0.216 | D36: 0.075 | E36: 0.097 | F36: 0.088 | G36: 0.139
A37: White
A38: Male | B38: 0.181 | C38: 0.108 | D38: 0.09 | E38: 0.024 | F38: 0.03 | G38: 0.075
A39: Female | B39: 0.211 | C39: 0.108 | D39: 0.086 | E39: 0.053 | F39: 0.033 | G39: 0.084
A40: Total | B40: 0.194 | C40: 0.108 | D40: 0.089 | E40: 0.037 | F40: 0.032 | G40: 0.079
A41: South Africa
A42: Male | B42: 0.573 | C42: 0.385 | D42: 0.262 | E42: 0.213 | F42: 0.124 | G42: 0.315
A43: Female | B43: 0.651 | C43: 0.453 | D43: 0.316 | E43: 0.201 | F43: 0.125 | G43: 0.358
A44: TOTAL | B44: 0.608 | C44: 0.417 | D44: 0.287 | E44: 0.207 | F44: 0.125 | G44: 0.335
A45: Source: Stats SA, email communication, 9 September 2024

Sheet Unempl. age,race,sex expand
A2: Unemployment — numbers and rates — by age, race and sex (expanded definition), 2024
B4: 15-24 years | C4: 25-34 years | D4: 35-44 years | E4: 45-54 years | F4: 55- 64 years | G4: Total
A5: Black | B5: —Number—
A6: Male | B6: 1154841 | C6: 2075336 | D6: 1305181 | E6: 744087 | F6: 181869 | G6: 5461314
A7: Female | B7: 1152998 | C7: 2227284 | D7: 1453374 | E7: 758807 | F7: 193327 | G7: 5785790
A8: Total | B8: 2307839 | C8: 4302620 | D8: 2758555 | E8: 1502894 | F8: 375196 | G8: 11247103
A9: Coloured
A10: Male | B10: 126539 | C10: 110665 | D10: 70736 | E10: 63750 | F10: 20970 | G10: 392659
A11: Female | B11: 115682 | C11: 130323 | D11: 82116 | E11: 55449 | F11: 16453 | G11: 400022
A12: Total | B12: 242221 | C12: 240987 | D12: 152851 | E12: 119198 | F12: 37423 | G12: 792681
A13: Indian/Asian
A14: Male | B14: 10350 | C14: 23445 | D14: 9441 | E14: 20738 | F14: 6618 | G14: 70592
A15: Female | B15: 19093 | C15: 27704 | D15: 20920 | E15: 12889 | F15: 3408 | G15: 84014
A16: Total | B16: 29443 | C16: 51148 | D16: 30361 | E16: 33628 | F16: 10025 | G16: 154605
A17: White
A18: Male | B18: 15780 | C18: 29959 | D18: 25312 | E18: 10273 | F18: 10148 | G18: 91472
A19: Female | B19: 19874 | C19: 28893 | D19: 25969 | E19: 14686 | F19: 7444 | G19: 96866
A20: Total | B20: 35654 | C20: 58852 | D20: 51281 | E20: 24960 | F20: 17592 | G20: 188338
A21: South Africa
A22: Male | B22: 1307510 | C22: 2239404 | D22: 1410670 | E22: 838849 | F22: 219604 | G22: 6016036
A23: Female | B23: 1307646 | C23: 2414204 | D23: 1582379 | E23: 841831 | F23: 220632 | G23: 6366692
A24: TOTAL | B24: 2615156 | C24: 4653607 | D24: 2993049 | E24: 1680679 | F24: 440236 | G24: 12382728
A25: Black | B25: —Rate—
A26: Male | B26: 0.715 | C26: 0.505 | D26: 0.363 | E26: 0.315 | F26: 0.24 | G26: 0.439
A27: Female | B27: 0.787 | C27: 0.591 | D27: 0.442 | E27: 0.343 | F27: 0.259 | G27: 0.504
A28: Total | B28: 0.749 | C28: 0.546 | D28: 0.401 | E28: 0.328 | F28: 0.249 | G28: 0.47
A29: Coloured
A30: Male | B30: 0.577 | C30: 0.295 | D30: 0.224 | E30: 0.226 | F30: 0.186 | G30: 0.301
A31: Female | B31: 0.613 | C31: 0.369 | D31: 0.292 | E31: 0.222 | F31: 0.164 | G31: 0.341
A32: Total | B32: 0.594 | C32: 0.331 | D32: 0.256 | E32: 0.224 | F32: 0.176 | G32: 0.32
A33: Indian/Asian
A34: Male | B34: 0.347 | C34: 0.196 | D34: 0.071 | E34: 0.199 | F34: 0.132 | G34: 0.162
A35: Female | B35: 0.795 | C35: 0.332 | D35: 0.248 | E35: 0.212 | F35: 0.183 | G35: 0.31
A36: Total | B36: 0.547 | C36: 0.252 | D36: 0.14 | E36: 0.204 | F36: 0.146 | G36: 0.219
A37: White
A38: Male | B38: 0.181 | C38: 0.122 | D38: 0.098 | E38: 0.04 | F38: 0.051 | G38: 0.088
A39: Female | B39: 0.265 | C39: 0.124 | D39: 0.121 | E39: 0.069 | F39: 0.047 | G39: 0.108
A40: Total | B40: 0.22 | C40: 0.123 | D40: 0.1098 | E40: 0.053 | F40: 0.049 | G40: 0.097
A41: South Africa
A42: Male | B42: 0.67 | C42: 0.462 | D42: 0.328 | E42: 0.279 | F42: 0.196 | G42: 0.395
A43: Female | B43: 0.747 | C43: 0.544 | D43: 0.409 | E43: 0.307 | F43: 0.216 | G43: 0.461
A44: TOTAL | B44: 0.706 | C44: 0.501 | D44: 0.367 | E44: 0.293 | F44: 0.206 | G44: 0.426
A45: Source: Stats SA, email communication, 9 September 2024

Sheet Unemployment by education
A2: Unemployment by highest level of education, 2009-24
A4: Highest level of education | B4: —Number unemployed— | F4: Proportion of totala | G4: Unemployment rateb | AA4: Employed | AB4: Unemployed | AC4: Labour force | AD4: Labour force
B5: 2009 | C5: 2022 | D5: 2023 | E5: 2024 | F5: —2024— | P5: Category Labour force | AA5: 183 000 | AB5: 64000 | AC5: 247000 | AD5: =AB5/AC5 -> 0.2591093117
A6: No schooling | B6: 105000 | C6: 79000 | D6: 64000 | E6: 56000 | F6: =E6/E13 -> 0.006679389313 | G6: 0.237 | O6: =SUM(P6:Q6) -> 236000 | P6: 180000 | Q6: 56000 | R6: =E6/O6 -> 0.2372881356 | AA6: 692000 | AB6: 290000 | AC6: =AA6+AB6 -> 982000 | AD6: 0.2953156823
A7: Less than primary completed | B7: 409000 | C7: 336000 | D7: 290000 | E7: 382000 | F7: =E7/E13 -> 0.0455629771 | G7: 0.373 | O7: =SUM(P7:Q7) -> 1025000 | P7: 643000 | Q7: 382000 | R7: 0.3726829268 | AA7: 494000 | AB7: 284000 | AC7: 778000 | AD7: 0.3650385604
A8: Primary completed | B8: 217000 | C8: 233000 | D8: 284000 | E8: 253000 | F8: =E8/E13 -> 0.03017652672 | G8: 0.35 | O8: 723000 | P8: 470000 | Q8: 253000 | R8: 0.3499308437 | AA8: 5066000 | AB8: 3338000 | AC8: 8404000 | AD8: 0.3971918134
A9: Secondary not completed | B9: 1947000 | C9: 3467000 | D9: 3338000 | E9: 3441000 | F9: =E9/E13 -> 0.4104246183 | G9: 0.403 | O9: 8541000 | P9: 5100000 | Q9: 3441000 | R9: 0.4028802248 | AA9: 5860000 | AB9: 3187000 | AC9: 9047000 | AD9: 0.3522714712
A10: Secondary completed | B10: 1408000 | C10: 3074000 | D10: 3187000 | E10: 3387000 | F10: =E10/E13 -> 0.4039837786 | G10: 0.358 | O10: 9453000 | P10: 6066000 | Q10: 3387000 | R10: 0.3582989527 | AA10: 3859000 | AB10: 708000 | AC10: 4567000 | AD10: 0.1550251806
A11: Tertiary | B11: 226000 | C11: 742000 | D11: 708000 | E11: 817000 | F11: =E11/E13 -> 0.09744751908 | G11: 0.171 | O11: 4771000 | P11: 3954000 | Q11: 817000 | R11: 0.171242926 | AA11: 193000 | AB11: 50000 | AC11: 243000 | AD11: 0.2057613169
A12: Other | B12: 29000 | C12: 63000 | D12: 50000 | E12: 49000 | F12: =E12/E13 -> 0.005844465649 | G12: 0.17 | O12: 288000 | P12: 239000 | Q12: 49000 | R12: 0.1701388889 | AA12: 16346000 | AB12: 7921000 | AC12: 24267000 | AD12: 0.3264103515
A13: Total | B13: 4341000 | C13: 7994000 | D13: 7921000 | E13: 8384000 | F13: =E13/E13 -> 1 | G13: 0.335 | O13: =SUM(O6:O12) -> 25037000 | R13: 0.3348644007
A14: Source: Stats SA, QLFS Trends 2008-2024Q2, accessed 27 September 2024
A15: a Proportion of the total number of unemployed people who are in each level of education category.
A16: b Proportion of people in each education category who are unemployed.

Sheet Unemployment by duration
A2: Unemployment by duration, 2023 and 2024
D4: —Change— | F4: Proportion of labour force | G4: Proportion of unemployed
A5: Length of unemployment | B5: 2023 | C5: 2024 | D5: Number | E5: Proportion | F5: —2024—
A6: Long-term unemployment (1year and more) | B6: 6127000 | C6: 6385000 | D6: =C6-B6 -> 258000 | E6: =(C6-B6)/B6 -> 0.0421086992 | F6: =C6/41296000 -> 0.1546154591 | G6: =C6/C8 -> 0.7615696565
A7: Short-term unemployment (less than 1 year) | B7: 1795000 | C7: 1999000 | D7: =C7-B7 -> 204000 | E7: =(C7-B7)/B7 -> 0.1136490251 | F7: =C7/41296000 -> 0.04840662534 | G7: =C7/C8 -> 0.2384303435
A8: Total unemployed | B8: 7921000 | C8: 8384000 | D8: 463000 | E8: =(C8-B8)/B8 -> 0.05845221563 | F8: =C8/41296000 -> 0.2030220845 | G8: 1
A9: Source: Stats SA, QLFS Trends 2008-2024Q2, accessed 27 September 2024

Sheet Reasons for empl. termination
B3: Reasons for termination in commercial employment as reported to the UIF, 2007/08-2021/22
B5: Year | C5: Business closed | D5: End of contract | E5: Retrenched | F5: Dismissed
B6: 2007/08 | C6: 3005 | D6: 17092 | E6: 85247 | F6: 28899
B7: 2008/09 | C7: 4462 | D7: 139867 | E7: 30252 | F7: 42581
B8: 2009/10 | C8: 3502 | D8: 126582 | E8: 29292 | F8: 35298
B9: 2010/11 | C9: 3141 | D9: 129211 | E9: 25033 | F9: 33712
B10: 2011/12 | C10: 42716 | D10: 246401 | E10: 53081 | F10: 84935
B11: 2012/13 | C11: 14539 | D11: 238727 | E11: 90254 | F11: 119135
B12: 2013/14 | C12: 18486 | D12: 235470 | E12: 79552 | F12: 111062
B13: 2014/15 | C13: 47340 | D13: 94306 | E13: 48004 | F13: 142507
B14: 2015/16 | C14: 15361 | D14: 223804 | E14: 81356 | F14: 101978
B15: 2016/17 | C15: 19332 | D15: 259710 | E15: 102109 | F15: 134426
B16: 2017/18 | C16: 18749 | D16: 287711 | E16: 105358 | F16: 144081
B17: 2018/19 | C17: 17788 | D17: 223996 | E17: 206725 | F17: 96819
B18: 2019/20 | C18: 23308 | D18: 413757 | E18: 130860 | F18: 170007
B19: 2020/21 | C19: 28191 | D19: 440131 | E19: 223370 | F19: 150055
B20: 2021/22 | C20: 26043 | D20: 617799 | E20: 152066 | F20: 185648
B21: 2007/08-2021/22 | C21: =(C20-C6)/C6 -> 7.66655574 | D21: =(D20-D6)/D6 -> 35.14550667 | E21: =(E20-E6)/E6 -> 0.7838281699 | F21: =(F20-F6)/F6 -> 5.424028513
B22: Source: Department of Employment and Labour, Job Opportunities and Unemployment in the South African Labour Market 2019-20, 23 February 2021, Figure 8, p24; Job Opportunities and Unemployment in the South African Labour Market 2020-21, 16 March 2022, Figure 8, p11; Job Opportunities and Unemployment in the South African Labour Market 2021-22, 31 January 2024, Figure 7, p10

Sheet UNDERUTILISATION

Sheet Underutilisation.

Sheet Not economically active
A2: UNDERUTILISATION AND NON- PARTICIPATION OF LABOUR
A5: Not economically active
A7: People who are not economically active are those who were neither employed nor unemployed during the week of the survey. This includes students, pensioners, discouraged workseekers, and people who are without jobs but do not meet all of Stats SA’s criteria to be defined as officially unemployed [Stats SA, Quarterly Labour Force Survey].
A9: People not economically active, 2023 and 2024
B11: —2023— | D11: —2024— | F11: Change 2023-24 | G11: —Proportion of total aged 15-64—
A12: Category | B12: Number | C12: Proportion | D12: Number | E12: Proportion | G12: 2023 | H12: 2024
A13: Student/pupil | B13: 6097000 | C13: =B13/16478000 -> 0.3700084962 | D13: 6029000 | E13: =D13/16478000 -> 0.3658817818 | F13: =(D13-B13)/B13 -> -0.01115302608 | G13: =B13/40177000 -> 0.1517534908 | H13: =D13/40746000 -> 0.1479654445
A14: Homemaker | B14: 2525000 | C14: =B14/16478000 -> 0.1532346159 | D14: 2263000 | E14: =D14/16478000 -> 0.137334628 | F14: -0.1037623762 | G14: 0.06284690246 | H14: =D14/40746000 -> 0.05553919403
A15: Illness/disability | B15: 1669000 | C15: 0.1012865639 | D15: 1658000 | E15: 0.1006190072 | F15: -0.006590772918 | G15: 0.04154118028 | H15: 0.04069111078
A16: Too old/young to work | B16: 1753000 | C16: 0.1063842699 | D16: 1757000 | E16: 0.1066270178 | F16: 0.002281802624 | G16: 0.04363192872 | H16: 0.04312079713
A17: Discouraged workseekers | B17: 3182000 | C17: 0.1931059595 | D17: 3195000 | E17: 0.1938948902 | F17: 0.00408548083 | G17: 0.07919954203 | H17: 0.07841260492
A18: Other | B18: 1252000 | C18: 0.07598009467 | D18: 1358000 | E18: 0.08241291419 | F18: 0.08466453674 | G18: 0.03116210767 | H18: 0.03332842488
A19: Total | B19: =SUM(B13:B18) -> 16478000 | C19: =B19/16478000 -> 1 | D19: 16260000 | E19: =D19/16260000 -> 1 | F19: -0.01322976089 | G19: 0.410135152 | H19: 0.3990575762
A20: Source: Stats SA, QLFS Trends 2008-2024Q2, accessed 17 September 2024

Sheet Inactivity rate by age group
B2: Inactivity ratea by age group, 2009-24
C4: Male | D4: 2009 | E4: 2021 | F4: 2022 | G4: 2023 | H4: 2024
C5: 15–24 | D5: 0.685 | E5: 0.756 | F5: 0.708 | G5: 0.708 | H5: 0.707
C6: 25–54 | D6: 0.155 | E6: 0.185 | F6: 0.194 | G6: 0.188 | H6: 0.185
C7: 55– 64 | D7: 0.432 | E7: 0.482 | F7: 0.509 | G7: 0.513 | H7: 0.481
C8: Total | D8: 0.343 | E8: 0.363 | F8: 0.356 | G8: 0.351 | H8: 0.344
C9: Female
C10: 15–24 | D10: 0.739 | E10: 0.787 | F10: 0.76 | G10: 0.748 | H10: 0.752
C11: 25–54 | D11: 0.347 | E11: 0.334 | F11: 0.319 | G11: 0.309 | H11: 0.29
C12: 55– 64 | D12: 0.678 | E12: 0.656 | F12: 0.67 | G12: 0.644 | H12: 0.623
C13: Total | D13: 0.494 | E13: 0.486 | F13: 0.47 | G13: 0.457 | H13: 0.442
C14: Both sexes
C15: 15–24 | D15: 0.712 | E15: 0.771 | F15: 0.734 | G15: 0.728 | H15: 0.729
C16: 25–54 | D16: 0.254 | E16: 0.259 | F16: 0.256 | G16: 0.248 | H16: 0.237
C17: 55– 64 | D17: 0.568 | E17: 0.578 | F17: 0.598 | G17: 0.585 | H17: 0.559
C18: Total | D18: 0.421 | E18: 0.425 | F18: 0.414 | G18: 0.404 | H18: 0.394
B19: Source: Stats SA, QLFS Trends 2008-2024Q2, accessed 17 September 2024
B21: a Not economically active as a proportion of population of working age (15-64). For each age group, the inactivity rate refers to the not economically active as a proportion of the population in that age group. For example, 70.7% of men aged 15 to 24 were not economically active in 2024.

Sheet Discouraged workseekers
B2: Discouraged workseekers
B4: Stats SA defines discouraged workseekers as those who had not been employed during the reference period covered by the survey. These people are not considered to be part of the labour force. To be classified as discouraged workseekers, they had to be available to work or start a business, but had not taken active steps to do so in the survey reference period for any reason. In 2008, the definition was made more restrictive in that the main reason for not seeking work had to be one of the following:
B5: ● | C5: No jobs available in the area.
B6: ● | C6: Unable to find work fitting the respondent’s skills.
B7: ● | C7: Lost all hope of finding any kind of work.
B8: This change had the effect of substantially reducing the number of workers counted as ‘discouraged’, excluding, for instance, people who do not have enough money for transport to look for work, or those awaiting seasonal work.
B9: In 2014, Stats SA has updated the Quarterly Labour Force Survey results for 2008 to 2013 to reflect the new population benchmarks from Census 2011.

Sheet Discouraged workseekers by
A2: Discouraged workseekers by racea, 2001-24
A4: Year | B4: Black | C4: Coloured | D4: Indian/Asian | E4: White | F4: Totalb
A5: 2001 | B5: 1468000 | C5: 150000 | D5: 19000 | E5: 88000 | F5: 1725000
A6: 2002 | B6: 1758000 | C6: 112000 | D6: 28000 | E6: 60000 | F6: 1958000
A7: 2003 | B7: 1897000 | C7: 100000 | D7: 13000 | E7: 56000 | F7: 2067000
A8: 2004 | B8: 2073000 | C8: 142000 | D8: 22000 | E8: 48000 | F8: 2285000
A9: 2005 | B9: 2122000 | C9: 119000 | D9: 22000 | E9: 60000 | F9: 2324000
A10: 2006 | B10: 2162000 | C10: 161000 | D10: 51000 | E10: 72000 | F10: 2445000
A11: 2007 | B11: 2256000 | C11: 170000 | D11: 28000 | E11: 56000 | F11: 2511000
A12: 2008 | B12: 1041000 | C12: 44000 | D12: 4000 | E12: 11000 | F12: 1101000
A13: 2009 | B13: 1459000 | C13: 48000 | D13: 14000 | E13: 15000 | F13: 1536000
A14: 2010 | B14: 1818000 | C14: 91000 | D14: 14000 | E14: 36000 | F14: 1960000
A15: 2011 | B15: 2054000 | C15: 125000 | D15: 13000 | E15: 21000 | F15: 2214000
A16: 2012 | B16: 2247000 | C16: 83000 | D16: 9000 | E16: 21000 | F16: 2360000
A17: 2013 | B17: 2287000 | C17: 90000 | D17: 15000 | E17: 32000 | F17: 2425000
A18: 2014 | B18: 2272000 | C18: 90000 | D18: 27000 | E18: 31000 | F18: 2419000
A19: 2015 | B19: 2297000 | C19: 82000 | D19: 34000 | E19: 21000 | F19: 2434000
A20: 2016 | B20: 2382000 | C20: 95000 | D20: 19000 | E20: 30000 | F20: 2526000
A21: 2017 | B21: 2157000 | C21: 141000 | D21: 31000 | E21: 31000 | F21: 2361000
A22: 2018 | B22: 2666000 | C22: 96000 | D22: 31000 | E22: 71000 | F22: 2864000
A23: 2019 | B23: 2563000 | C23: 130000 | D23: 20000 | E23: 36000 | F23: 2749000
A24: 2020 | B24: 2289000 | C24: 126000 | D24: 26000 | E24: 30000 | F24: 2471000
A25: 2021 | B25: 3054000 | C25: 183000 | D25: 34000 | E25: 46000 | F25: 3317000
A26: 2022 | B26: 3242000 | C26: 230000 | D26: 61000 | E26: 36000 | F26: 3568000
A27: 2023 | B27: 2938000 | C27: 172000 | D27: 46000 | E27: 26000 | F27: 3182000
A28: 2024 | B28: 2918917 | C28: 207335 | D28: 42055 | E28: 26501 | F28: 3194808
A29: 2001-24 | B29: =(B28-B5)/B5 -> 0.988363079 | C29: =(C28-C5)/C5 -> 0.3822333333 | D29: =(D28-D5)/D5 -> 1.213421053 | E29: =(E28-E5)/E5 -> -0.6988522727 | F29: =(F28-F5)/F5 -> 0.8520626087
A30: Source: Stats SA, email communication, 9 September 2024; Socio-Economic Survey of South Africa Survey 2023, p276
A31: a A discouraged workseeker is a person who was not employed during the reference week of the survey, wanted to work, was available to work or start a business but did not take active steps to find work during the last four weeks, provided that the main reason given for not seeking work was any of the following: no jobs available in the area, unable to find work requiring his/her skills, lost hope of finding any kind of work.
A32: b Figures should add up horizontally but may not, owing to rounding.

Sheet Underutilisation of labour
A2: Underutilisation
A4: Underutilisation of labour, 2023 and 2024
D6: —2024—
A7: Male | B7: 2023 | C7: 2024 | D7: Proportion of all people aged 15-64 a | E7: Proportion of total labour forceb
A8: Underemployedc | B8: 338000 | C8: 299000 | D8: =C8/41296000 -> 0.007240410694 | E8: =(C8/25036000) -> 0.01194280236
A9: Unemployed | B9: 3938900 | C9: 4237000 | D9: =C9/41296000 -> 0.1026007361 | E9: =(C9/25036000) -> 0.1692362997
A10: Discouraged workseekers | B10: 1526000 | C10: 1526000 | D10: =C10/41296000 -> 0.0369527315 | E10: =(C10/25036000) -> 0.06095222879
A11: Total | B11: =SUM(B8:B10) -> 5802900 | C11: =SUM(C8:C10) -> 6062000 | D11: =C11/41296000 -> 0.1467938783 | E11: =(C11/25036000) -> 0.2421313309
A12: Female
A13: Underemployedc | B13: 378000 | C13: 378000 | D13: =C13/41296000 -> 0.009153428904 | E13: =(C13/25036000) -> 0.01509825851
A14: Unemployed | B14: 3983000 | C14: 4147000 | D14: =C14/41296000 -> 0.1004213483 | E14: =(C14/25036000) -> 0.1656414763
A15: Discouraged workseekers | B15: 1657000 | C15: 1657000 | D15: =C15/41296000 -> 0.04012495157 | E15: =(C15/25036000) -> 0.06618469404
A16: Total | B16: =SUM(B13:B15) -> 6018000 | C16: =SUM(C13:C15) -> 6182000 | D16: =C16/41296000 -> 0.1496997288 | E16: =(C16/25036000) -> 0.2469244288
A17: Both sexes
A18: Underemployedc | B18: 716000 | C18: 677000 | D18: =B18/41296000 -> 0.01733824099 | E18: =(C18/25036000) -> 0.02704106087
A19: Unemployed | B19: 7921000 | C19: 8384000 | D19: =B19/41296000 -> 0.1918103448 | E19: =(C19/25036000) -> 0.334877776
A20: Discouraged workseekers | B20: 3182000 | C20: 3182000 | D20: =B20/41296000 -> 0.07705346765 | E20: =(C20/25036000) -> 0.1270969803
A21: Total | B21: =SUM(B18:B20) -> 11819000 | C21: =SUM(C18:C20) -> 12243000 | D21: =B21/41296000 -> 0.2862020535 | E21: =(C21/25036000) -> 0.4890158172
A22: Source: Stats SA, Quarterly Labour Force Survey Quarter 2, 2024, Statistical release P0211, 13 August 2024, Table 3.9, p74; QLFS Trends 2008-2024Q2, accessed 27 September 2024
A23: a The working-age population, which comprises all persons aged 15 to 64.
A24: b The labour force comprises all persons who are employed and unemployed, excluding the not economically active.
A25: c Persons in underemployment (time-related) are employed persons who are willing and available to work additional hours and whose total number of hours actually worked during the reference period was below 35 per week.

Sheet Timerelated underempl by occup.
A2: Time-related underemployment by occupation, 2024
A4: Occupation | B4: Time-related underemployment a | C4: Total employed | D4: Underemployment as a proportion of total employment
A5: Manager | B5: 13000 | C5: 1451000 | D5: =B5/C5 -> 0.008959338387
A6: Professional | B6: 7000 | C6: 1102000 | D6: 0.006352087114
A7: Technician | B7: 26000 | C7: 1780000 | D7: 0.01460674157
A8: Clerk | B8: 17000 | C8: 1705000 | D8: 0.009970674487
A9: Sales and services | B9: 73000 | C9: 2584000 | D9: 0.02825077399
A10: Skilled agriculture | B10: 7000 | C10: 105000 | D10: 0.06666666667
A11: Craft and related trade | B11: 80000 | C11: 1672000 | D11: 0.04784688995
A12: Plant and machine operator | B12: 26000 | C12: 1308000 | D12: 0.01987767584
A13: Elementary | B13: 287000 | C13: 4094000 | D13: 0.07010258915
A14: Domestic worker | B14: 140000 | C14: 843000 | D14: 0.1660735469
A15: Totalb | B15: 677000 | C15: 16652000 | D15: 0.04065577708
A16: Source: Stats SA, QLFS Trends 2008-2024Q2, accessed 17 September 2024
A17: a People in underemployment (time-related) are employed persons who are willing and available to work additional hours and whose total number of hours actually worked during the reference period was below 35 per week.
A18: b Numbers should add up vertically but may not, owing to rounding.

Sheet Timerelated underempl. by indus
A2: Time-related underemployment by industry, 2024
A4: Industry | B4: Time-related underemployment | C4: Total employed | D4: Underemployment as a proportion of total employment
A5: Agriculture | B5: 17000 | C5: 896000 | D5: =B5/C5 -> 0.01897321429
A6: Mining | B6: —a | C6: 457000 | D6: —a
A7: Manufacturing | B7: 27000 | C7: 1655000 | D7: =B7/C7 -> 0.0163141994
A8: Utilities | B8: 1000 | C8: 114000 | D8: —a
A9: Construction | B9: 59000 | C9: 1204000 | D9: =B9/C9 -> 0.04900332226
A10: Trade | B10: 119000 | C10: 3360000 | D10: 0.03541666667
A11: Transport | B11: 21000 | C11: 1064000 | D11: 0.01973684211
A12: Finance | B12: 61000 | C12: 2905000 | D12: 0.02099827883
A13: Community and social services | B13: 179000 | C13: 3827000 | D13: =B13/C13 -> 0.04677292919
A14: Private households | B14: 194000 | C14: 1160000 | D14: =B14/C14 -> 0.1672413793
A15: Other | B15: —a | C15: —b | D15: —b
A16: Total | B16: 716000 | C16: 16652000 | D16: =B16/C16 -> 0.0429978381
A17: Source: Stats SA, QLFS Trends 2008-2024Q2, accessed 17 September 2024
A18: a For all values of 10 000 or lower the sample size is too small for reliable estimates.
A19: b Stats SA did not include the category 'Other' under time-related underemployment.

Sheet PROVINCIAL DATA

Sheet EAP by province
A2: PROVINCIAL LABOUR MARKET DATA
A5: Overall data
A7: Economically active population by province, 2024
A9: Province | B9: Employed | C9: Proportion of employed people | D9: Unemployed (official) | E9: Proportion of unemployed people | F9: Unemployed (expanded)a | G9: Economically active population (official) | H9: Economically active population (expanded)a
A10: Eastern Cape | B10: 1369000 | C10: =B10/Total146 -> 0.08221234687 | D10: 951000 | E10: =D10/Total147 -> 0.1134303435 | F10: 1354000 | G10: 2319000 | H10: =SUM(B10+F10) -> 2723000
A11: Free State | B11: 745000 | C11: =B11/Total146 -> 0.04473937065 | D11: 449000 | E11: 0.05355438931 | F11: 613000 | G11: 1194000 | H11: 1358000
A12: Gauteng | B12: 5103000 | C12: 0.3064496757 | D12: 2756000 | E12: 0.328721374 | F12: 3296000 | G12: 7858000 | H12: 8399000
A13: KwaZulu-Natal | B13: 2842000 | C13: =B13/Total146 -> 0.1706701898 | D13: 1281000 | E13: 0.1527910305 | F13: 2318000 | G13: 4124000 | H13: 5160000
A14: Limpopo | B14: 1526000 | C14: =B14/Total146 -> 0.09164064377 | D14: 699000 | E14: =D14/Total147 -> 0.0833730916 | F14: 1359000 | G14: 2225000 | H14: 2885000
A15: Mpumalanga | B15: 1192000 | C15: 0.07158299303 | D15: 712000 | E15: 0.08492366412 | F15: 1133000 | G15: 1904000 | H15: 2325000
A16: North West | B16: 887000 | C16: 0.05326687485 | D16: 624000 | E16: 0.07442748092 | F16: 1050000 | G16: 1511000 | H16: 1937000
A17: Northern Cape | B17: 314000 | C17: 0.0188565938 | D17: 147000 | E17: 0.01753339695 | F17: 256000 | G17: 461000 | H17: 570000
A18: Western Cape | B18: 2675000 | C18: 0.1606413644 | D18: 765000 | E18: 0.09124522901 | F18: 1003000 | G18: 3439000 | H18: 3678000
A19: South Africab | B19: 16652000 | C19: =Total146/Total146 -> 1 | D19: 8384000 | E19: =Total147/Total147 -> 1 | F19: 12383000 | G19: 25036000 | H19: =SUM(Total146+F19) -> 29035000
A20: Source: Stats SA, QLFS Trends 2008-2024Q2, accessed 27 September 2024
A21: a Stats SA’s expanded definition of unemployment measures anybody without a job who wanted to work and was available to take up employment during the reference period.
A22: b Figures should add up vertically but may not, owing to rounding, and owing to the fact that Stats SA disregarded sample sizes smaller than 10 000 as unreliable.

Sheet Provincial labour market trends
B2: Trends
B4: Labour market trends by province, 2023 and 2024
B6: Eastern Cape | C6: 2023 | D6: 2024 | E6: Change
B7: Total employed | C7: 1444000 | D7: 1369000 | E7: =(D7-C7)/C7 -> -0.05193905817
B8: Total unemployed | C8: 949000 | D8: 951000 | E8: 0.00210748156
B9: Total economically active | C9: 2393000 | D9: 2319000 | E9: -0.03092352695 | K9: * The Economically active = labour force data in QLFS
B10: Total not economically active | C10: 2105000 | D10: 2234000 | E10: 0.06128266033
B11: Total aged 15– 64 | C11: 4498000 | D11: 4553000 | E11: 0.01222765674
B12: Unemployment rate | C12: 0.397 | D12: 0.41 | E12: 0.03274559194
B13: Labour market participation rate | C13: 0.532 | D13: 0.509 | E13: -0.04323308271
B14: Labour absorption rate | C14: 0.321 | D14: 0.301 | E14: -0.06230529595
B15: Free State
B16: Total employed | C16: 730000 | D16: 745000 | E16: =(D16-C16)/C16 -> 0.02054794521
B17: Total unemployed | C17: 423000 | D17: 449000 | E17: 0.06146572104
B18: Total economically active | C18: 1153000 | D18: 1194000 | E18: 0.03555941023
B19: Total not economically active | C19: 781000 | D19: 745000 | E19: -0.04609475032
B20: Total aged 15– 64 | C20: 1934000 | D20: 1939000 | E20: 0.002585315408
B21: Unemployment rate | C21: 0.367 | D21: 0.376 | E21: 0.02452316076
B22: Labour market participation rate | C22: 0.596 | D22: 0.616 | E22: 0.03355704698
B23: Labour absorption rate | C23: 0.378 | D23: 0.384 | E23: 0.01587301587
B24: Gauteng
B25: Total employed | C25: 4988000 | D25: 5103000 | E25: =(D25-C25)/C25 -> 0.0230553328
B26: Total unemployed | C26: 2617000 | D26: 2756000 | E26: 0.05311425296
B27: Total economically active | C27: 7605000 | D27: 7858000 | E27: 0.03326758711
B28: Total not economically active | C28: 3499000 | D28: 3417000 | E28: -0.02343526722
B29: Total aged 15– 64 | C29: 11104000 | D29: 11275000 | E29: 0.01539985591
B30: Unemployment rate | C30: 0.344 | D30: 0.351 | E30: 0.02034883721
B31: Labour market participation rate | C31: 0.685 | D31: 0.697 | E31: 0.01751824818
B32: Labour absorption rate | C32: 0.449 | D32: 0.453 | E32: 0.008908685969
B33: KwaZulu-Natal
B34: Total employed | C34: 2642000 | D34: 2842000 | E34: =(D34-C34)/C34 -> 0.0757002271
B35: Total unemployed | C35: 1187000 | D35: 1281000 | E35: 0.07919123842
B36: Total economically active | C36: 3829000 | D36: 4124000 | E36: 0.07704361452
B37: Total not economically active | C37: 3701000 | D37: 3509000 | E37: -0.05187787085
B38: Total aged 15– 64 | C38: 7529000 | D38: 7633000 | E38: 0.01381325541
B39: Unemployment rate | C39: 0.31 | D39: 0.311 | E39: 0.003225806452
B40: Labour market participation rate | C40: 0.509 | D40: 0.54 | E40: 0.06090373281
B41: Labour absorption rate | C41: 0.351 | D41: 0.372 | E41: 0.05982905983
B42: Limpopo
B43: Total employed | C43: 1469000 | D43: 1526000 | E43: =(D43-C43)/C43 -> 0.03880190606
B44: Total unemployed | C44: 677000 | D44: 699000 | E44: 0.03249630724
B45: Total economically active | C45: 2146000 | D45: 2225000 | E45: 0.03681267474
B46: Total not economically active | C46: 1839000 | D46: 1811000 | E46: -0.01522566612
B47: Total aged 15– 64 | C47: 3984000 | D47: 4036000 | E47: 0.01305220884
B48: Unemployment rate | C48: 0.316 | D48: 0.314 | E48: -0.006329113924
B49: Labour market participation rate | C49: 0.539 | D49: 0.551 | E49: 0.02226345083
B50: Labour absorption rate | C50: 0.369 | D50: 0.378 | E50: 0.0243902439
B51: Mpumalanga
B52: Total employed | C52: 1158000 | D52: 1192000 | E52: =(D52-C52)/C52 -> 0.02936096718
B53: Total unemployed | C53: 723000 | D53: 712000 | E53: -0.01521438451
B54: Total economically active | C54: 1881000 | D54: 1904000 | E54: 0.01222753854
B55: Total not economically active | C55: 1243000 | D55: 1264000 | E55: 0.01689460981
B56: Total aged 15– 64 | C56: 3124000 | D56: 3168000 | E56: 0.01408450704
B57: Unemployment rate | C57: 0.384 | D57: 0.374 | E57: -0.02604166667
B58: Labour market participation rate | C58: 0.602 | D58: 0.601 | E58: -0.001661129568
B59: Labour absorption rate | C59: 0.371 | D59: 0.376 | E59: 0.01347708895
B60: North West
B61: Total employed | C61: 881000 | D61: 887000 | E61: =(D61-C61)/C61 -> 0.006810442679
B62: Total unemployed | C62: 513000 | D62: 624000 | E62: 0.216374269
B63: Total economically active | C63: 1394000 | D63: 1511000 | E63: 0.08393113343
B64: Total not economically active | C64: 1367000 | D64: 1288000 | E64: -0.05779078274
B65: Total aged 15– 64 | C65: 2761000 | D65: 2799000 | E65: 0.0137631293
B66: Unemployment rate | C66: 0.368 | D66: 0.413 | E66: 0.1222826087
B67: Labour market participation rate | C67: 0.505 | D67: 0.54 | E67: 0.06930693069
B68: Labour absorption rate | C68: 0.319 | D68: 0.317 | E68: -0.006269592476
B69: Northern Cape
B70: Total employed | C70: 322000 | D70: 314000 | E70: =(D70-C70)/C70 -> -0.0248447205
B71: Total unemployed | C71: 118000 | D71: 147000 | E71: 0.2457627119
B72: Total economically active | C72: 441000 | D72: 461000 | E72: 0.04535147392
B73: Total not economically active | C73: 392000 | D73: 378000 | E73: -0.03571428571
B74: Total aged 15– 64 | C74: 833000 | D74: 840000 | E74: 0.008403361345
B75: Unemployment rate | C75: 0.269 | D75: 0.32 | E75: 0.1895910781
B76: Labour market participation rate | C76: 0.529 | D76: 0.549 | E76: 0.03780718336
B77: Labour absorption rate | C77: 0.387 | D77: 0.374 | E77: -0.03359173127
B78: Western Cape
B79: Total employed | C79: 2711000 | D79: 2675000 | E79: =(D79-C79)/C79 -> -0.01327923276
B80: Total unemployed | C80: 715000 | D80: 765000 | E80: 0.06993006993
B81: Total economically active | C81: 3426000 | D81: 3439000 | E81: 0.003794512551
B82: Total not economically active | C82: 1552000 | D82: 1615000 | E82: 0.04059278351
B83: Total aged 15– 64 | C83: 4978000 | D83: 5054000 | E83: 0.01526717557
B84: Unemployment rate | C84: 0.209 | D84: 0.222 | E84: 0.06220095694
B85: Labour market participation rate | C85: 0.686 | D85: 0.681 | E85: -0.007288629738
B86: Labour absorption rate | C86: 0.545 | D86: 0.529 | E86: -0.02935779817
B87: South Africa
B88: Total employed | C88: 16346000 | D88: 16652000 | E88: =(D88-C88)/C88 -> 0.01872017619
B89: Total unemployed | C89: 7921000 | D89: 8384000 | E89: 0.05845221563
B90: Total economically active | C90: 24268000 | D90: =SUM(D88:D89) -> 25036000 | E90: 0.03164661282
B91: Total not economically active | C91: 16478000 | D91: 16260000 | E91: -0.01322976089
B92: Total aged 15– 64 | C92: 40746000 | D92: 41296000 | E92: 0.0134982575
B93: Unemployment rate | C93: 0.326 | D93: 0.335 | E93: 0.02760736196
B94: Labour market participation rate | C94: 0.596 | D94: 0.606 | E94: 0.01677852349
B95: Labour absorption rate | C95: 0.401 | D95: 0.403 | E95: 0.004987531172
B96: Source: Stats SA, QLFS Trends 2008-2024Q2, accessed 27 September 2024

Sheet Unemploym. numbers by province
A2: Unemployment
A4: Unemployment numbers by province, 2009-24
B6: —Official definition— | F6: —Expanded definitiona—
A7: Province | B7: 2009 | C7: 2022 | D7: 2023 | E7: 2024 | F7: 2009 | G7: 2022 | H7: 2023 | I7: 2024
A8: Eastern Cape | B8: 514000 | C8: 1006000 | D8: 949000 | E8: 951000 | F8: 854000 | G8: 1443000 | H8: 1103000 | I8: 1354000
A9: Free State | B9: 275000 | C9: 386000 | D9: 423000 | E9: 449000 | F9: 421000 | G9: 544000 | H9: 573000 | I9: 613000
A10: Gauteng | B10: 1370000 | C10: 2515000 | D10: 2617000 | E10: 2756000 | F10: 1612000 | G10: 3301000 | H10: 3224000 | I10: 3296000
A11: KwaZulu-Natal | B11: 565000 | C11: 1207000 | D11: 1187000 | E11: 1281000 | F11: 1247000 | G11: 2421000 | H11: 2313000 | I11: 2318000
A12: Limpopo | B12: 314000 | C12: 791000 | D12: 677000 | E12: 699000 | F12: 671000 | G12: 1256000 | H12: 1351000 | I12: 1359000
A13: Mpumalanga | B13: 358000 | C13: 660000 | D13: 723000 | E13: 712000 | F13: 605000 | G13: 1079000 | H13: 1135000 | I13: 1133000
A14: North West | B14: 328000 | C14: 439000 | D14: 513000 | E14: 624000 | F14: 510000 | G14: 896000 | H14: 1012000 | I14: 1050000
A15: Northern Cape | B15: 102000 | C15: 99000 | D15: 118000 | E15: 147000 | F15: 162000 | G15: 274000 | H15: 246000 | I15: 256000
A16: Western Cape | B16: 515000 | C16: 891000 | D16: 715000 | E16: 765000 | F16: 596000 | G16: 1065000 | H16: 917000 | I16: 1003000
A17: South Africab | B17: 4341000 | C17: 7994000 | D17: 7921000 | E17: 8384000 | F17: 6678000 | G17: 12282000 | H17: 11872000 | I17: 12383000
A18: Source: Stats SA, QLFS Trends 2008-2024Q2, accessed 27 September 2024
A19: a Stats SA’s expanded definition of unemployment measures anybody without a job who wanted to work and was available to take up employment during the reference period.
A20: b Figures should add up vertically but may not, owing to rounding, and owing to the fact that Stats SA disregarded sample sizes smaller than 10 000 as unreliable.

Sheet Unemployment rate by province
B2: Unemployment ratea by province, 2009-24
C4: —Official definition— | F4: —Expanded definitiona—
B5: Province | C5: 2009 | D5: 2023 | E5: 2024 | F5: 2009 | G5: 2023 | H5: 2024
B6: Eastern Cape | C6: 0.277 | D6: 0.397 | E6: 0.41 | F6: 0.389 | G6: 0.433 | H6: 0.497
B7: Free State | C7: 0.264 | D7: 0.367 | E7: 0.376 | F7: 0.354 | G7: 0.44 | H7: 0.451
B8: Gauteng | C8: 0.228 | D8: 0.344 | E8: 0.351 | F8: 0.258 | G8: 0.393 | H8: 0.392
B9: KwaZulu-Natal | C9: 0.189 | D9: 0.31 | E9: 0.311 | F9: 0.339 | G9: 0.467 | H9: 0.449
B10: Limpopo | C10: 0.246 | D10: 0.316 | E10: 0.314 | F10: 0.411 | G10: 0.479 | H10: 0.471
B11: Mpumalanga | C11: 0.262 | D11: 0.384 | E11: 0.374 | F11: 0.374 | G11: 0.495 | H11: 0.487
